Department,Entity,Date,Expense Type,Expense Area,Supplier ,Transaction Number, Amount ,Description
Defra,Core Defra,10/01/2013,GPC Card,Central Finance Group,Barclaycard Business Issuing,4.71532E+21,"41,712.28",Barclaycard Bill - January 2013
Defra,Core Defra ,18/01/2013,Clearing Construction in Progress (Building Works),Chief Operating Officer DG,Interserve (Facilities Mngmnt) Ltd,FI00021858,"31,024.36",Costs associated with London estate rationalisation project
Defra,Core Defra ,24/01/2013,Rents to Landlords,Chief Operating Officer DG,Interserve (Facilities Mngmnt) Ltd,FI00022666,"128,654.27","Facilities site maintenance - Animal Health Wildlife Unit, Stroud"
Defra,Core Defra ,28/01/2013,Agency Recharge,Chief Operating Officer DG,Interserve (Facilities Mngmnt) Ltd,FI00021131,"454,198.57",Bio security design and works
Defra,Core Defra ,30/01/2013,Clearing Construction in Progress (Building Works),Chief Operating Officer DG,Interserve (Facilities Mngmnt) Ltd,FI00022655,"49,507.20",Carry out fire stopping areas as part of London estate rationalisation project
Defra,Core Defra ,30/01/2013,Clearing Construction in Progress (Building Works),Chief Operating Officer DG,Interserve (Facilities Mngmnt) Ltd,FI00022650,"56,281.93",Provision of furniture as part of London estate rationilisation project
Defra,Core Defra ,30/01/2013,Clearing Construction in Progress (Building Works),Chief Operating Officer DG,Interserve (Facilities Mngmnt) Ltd,FI00020272,"90,150.00",Provision of furniture as part of London estate rationilisation project
Defra,Core Defra ,30/01/2013,Clearing Construction in Progress (Building Works),Chief Operating Officer DG,Interserve (Facilities Mngmnt) Ltd,FI00022638,"156,912.48",Refurbishment costs associated with London estate rationalisation project
Defra,Core Defra ,30/01/2013,Clearing Construction in Progress (Building Works),Chief Operating Officer DG,Interserve (Facilities Mngmnt) Ltd,FI00022640,"54,193.88",Costs associated with London estate rationalisation project
Defra,Core Defra ,30/01/2013,Clearing Construction in Progress (Building Works),Chief Operating Officer DG,Interserve (Facilities Mngmnt) Ltd,FI00022651,"214,152.60",Replacement of lighting as part of London estate rationalisation project
Defra,Core Defra ,30/01/2013,Agency Recharge,Chief Operating Officer DG,Interserve (Facilities Mngmnt) Ltd,FI00021853,"299,378.90",Remedial works at AHVLA Weybridge site - rechargeable to the Agency
Defra,Core Defra ,30/01/2013,Clearing Construction in Progress (Building Works),Chief Operating Officer DG,Interserve (Facilities Mngmnt) Ltd,FI00022644,"87,387.73",Provision of furniture as part of London estate rationilisation project
Defra,Core Defra ,30/01/2013,Clearing Construction in Progress (Building Works),Chief Operating Officer DG,Interserve (Facilities Mngmnt) Ltd,FI00022658,"51,984.00",Provision of furniture as part of London estate rationilisation project
Defra,Core Defra ,30/01/2013,Agency Recharge,Chief Operating Officer DG,Interserve (Facilities Mngmnt) Ltd,FI00021154,"92,116.58",Remedial works at AHVLA Weybridge site - rechargeable to the Agency
Defra,Core Defra ,30/01/2013,Clearing Construction in Progress (Building Works),Chief Operating Officer DG,Interserve (Facilities Mngmnt) Ltd,FI00022657,"90,612.90",Provison of furniture as part of London estate rationaliation project
Defra,Core Defra ,30/01/2013,Clearing Construction in Progress (Building Works),Chief Operating Officer DG,Interserve (Facilities Mngmnt) Ltd,FI00022656,"39,674.27",Costs associated with London estate rationalisation project
Defra,Core Defra ,02/01/2013,Grant-in Aid Payments,Chief Operating Officer DG,Royal Botanic Gardens Kew,KEWGIA101213,"2,000,000.00",Grant in Aid - January 2012
Defra,Core Defra ,03/01/2013,Gas,Chief Operating Officer DG,Corona Energy,7785666,"27,643.27",Defra Site Gas Bill July to August 2012
Defra,Core Defra ,03/01/2013,Gas,Chief Operating Officer DG,Corona Energy,7800309,"115,175.50",Defra Site Gas Bill November to December 2012 
Defra,Core Defra ,04/01/2013,Rents to Landlords,Chief Operating Officer DG,D T Z,03-Jan-13,"443,400.00",Rents to Landlord payment for Quadrant House
Defra,Core Defra ,08/01/2013,Estates - Site Preparation and Demolition,Chief Operating Officer DG,Davis Langdon LLP,28146843,"73,857.60",Project Management services for Demolitions at Weybridge - management fees.
Defra,Core Defra ,08/01/2013,Civil service Pension Administration,Chief Operating Officer DG,R C P S,6038,"35,577.46",Provision of Closed Horticulture Research International Staff Pension Scheme - Pension Payment December 2012
Defra,Core Defra ,14/01/2013,Estates IFM Core Maintenance,Chief Operating Officer DG,Interserve (Facilities Mngmnt) Ltd,FI00022585,"2,051,217.55",Core facilities contract for the period 1/4/12 to 31/3/13  
Defra,Core Defra ,14/01/2013,Reactive Element of Core IFM fee,Chief Operating Officer DG,Interserve (Facilities Mngmnt) Ltd,FI00022586,"576,352.07",Re-Active part of the Core Contract for the period 14112 to 31/3/13
Defra,Core Defra ,14/01/2013,Other Current Payments E,Chief Operating Officer DG,Foden Grealy Limited,505373,"40,488.76",Consulting service for Change Management Programme - September to November 2012
Defra,Core Defra ,14/01/2013,Work package/WPO Implementation,Chief Operating Officer DG,IBM United Kingdom Ltd,5812120959,"26,776.42",Defra Information Communication Technology  Pre Engagement Service Framework Work Package Order charged on a time and materials basis.
Defra,Core Defra ,14/01/2013,Work package/WPO Implementation,Chief Operating Officer DG,IBM United Kingdom Ltd,5812121080,"56,869.18",Technology Refresh
Defra,Core Defra ,14/01/2013,Transition & Transformation,Chief Operating Officer DG,IBM United Kingdom Ltd,5811122016,"82,469.34",Transformation and Transition Projects at Rural Payments Agency 
Defra,Core Defra ,16/01/2013,Consultancy Non-Scheme,Chief Operating Officer DG,Local Partnerships LLP,41101112,"28,151.58",Provision of Professional Services - Food and Environment Research Agency (FERA) Commercial Services Support. 
Defra,Core Defra ,17/01/2013,Property Lease Costs,Chief Operating Officer DG,D T Z,DEFRA170,"57,900.43",Debenham Tie Leung Funding Request
Defra,Core Defra ,18/01/2013,IBM Miscellaneous Goods and Services,Chief Operating Officer DG,IBM United Kingdom Ltd,5812120282,"187,500.00",Catchup charges to end of Oct 2012: Project Call off Charges (re Windows 7)
Defra,Core Defra ,18/01/2013,Transition & Transformation,Chief Operating Officer DG,IBM United Kingdom Ltd,5812121314,"73,971.10",IT Delivery Refresh Transformation and Transition Projects
Defra,Core Defra ,22/01/2013,Other Current Payments E,Chief Operating Officer DG,Interserve (Facilities Mngmnt) Ltd,FI00022015,"34,834.87",Pass-though costs for October 2012 for Foot and Mouth Disease Sites only
Defra,Core Defra ,22/01/2013,Treasury Solicitors,Chief Operating Officer DG,Treasury Solicitors Department,A1705,"1,523,583.00",Defra Legal Charges for representation and advice - Quarter 1 2013 
Defra,Core Defra ,22/01/2013,Treasury Solicitors,Chief Operating Officer DG,Treasury Solicitors Department,A1704,"292,232.40",Defra Legal Charges for representation and advice - Quarter 1 2013 
Defra,Core Defra ,22/01/2013,Estates IFM Pass- Through Maintenance,Chief Operating Officer DG,Interserve (Facilities Mngmnt) Ltd,FI00022016,"91,138.62",Services required for waste management - October 2012 
Defra,Core Defra ,22/01/2013,Payments to Agencies UK,Chief Operating Officer DG,Food & Environment Research Agency,F0026608,"1,941,250.02",STRUCTURAL FUNDING FOR OCTOBER TO DECEMBER 2012
Defra,Core Defra ,22/01/2013,Payments to Agencies UK,Chief Operating Officer DG,Food & Environment Research Agency,F0026126,"711,001.00",Food & Environment Research Agency Corporate Services Charges October to November 2012
Defra,Core Defra ,22/01/2013,Payments to Agencies UK,Chief Operating Officer DG,Food & Environment Research Agency,F0026388,"1,781,578.00",Plant Health Non-Evidence Memorandum of Understanding - September 2012
Defra,Core Defra ,24/01/2013,Gas,Chief Operating Officer DG,Corona Energy,7822041,"82,907.53",Gas bill - November to December 2012
Defra,Core Defra ,24/01/2013,Business Rates,Chief Operating Officer DG,D T Z,DEFRA171,"969,425.79",Debenham Tie Leung Funding Request.
Defra,Core Defra ,24/01/2013,FM Projects Non Capital Works,Chief Operating Officer DG,Interserve (Facilities Mngmnt) Ltd,FI00022637,"80,062.06","Refurbishment works of Nobel House, London"
Defra,Core Defra ,28/01/2013,Estates Reactive Maintenance,Chief Operating Officer DG,Interserve (Facilities Mngmnt) Ltd,FI00022665,"124,100.57",Various facilities management works
Defra,Core Defra ,28/01/2013,FM Projects Non Capital Works,Chief Operating Officer DG,Interserve (Facilities Mngmnt) Ltd,FI00019585,"47,612.24",Office and laboratory refurbishment
Defra,Core Defra ,30/01/2013,FM Projects Non Capital Works,Chief Operating Officer DG,Interserve (Facilities Mngmnt) Ltd,FI00021156,"61,056.25","AHVLA relocation design and planning costs - Government Buildings, Chelmsford"
Defra,Core Defra ,30/01/2013,FM Projects Non Capital Works,Chief Operating Officer DG,Interserve (Facilities Mngmnt) Ltd,FI00018801,"64,831.12",Office refurbishment and staff relocation
Defra,Core Defra ,30/01/2013,IBM Base Services Control,Chief Operating Officer DG,IBM United Kingdom Ltd,5801130878,"6,035,248.24",Core Defra IT base services - January 2013
Defra,Core Defra ,31/01/2013,Business Rates,Chief Operating Officer DG,D T Z,FR172,"69,518.67",Debenham Tie Leung Funding Request - January 2013
Defra,Core Defra ,02/01/2013,Other Current Payments E,Policy Delivery DG,Rural Payments Agency,333210,"119,267.42",McDonald Task Force funding  - review of invoices paid by RPA to IBM
Defra,Core Defra ,02/01/2013,Current grants to charitable bodies,Policy Delivery DG,Canal & River Trust,90664147,"9,750,000.00",Grant payment to Canal & River Trust (CRT) 2012-13
Defra,Core Defra ,02/01/2013,Grant-in Aid Payments,Policy Delivery DG,Environment Agency,EAGIAJAN12191212,"60,000,000.00",Grant in Aid payment to Environment Agency - Environmental protection and Flood - 2012/13
Defra,Core Defra ,02/01/2013,Grant-in Aid Payments,Policy Delivery DG,The National Forest Co,141212,"1,089,709.00",Grant in Aid payment to National Forest Company for 2012-13
Defra,Core Defra ,02/01/2013,Grant-in Aid Payments,Policy Delivery DG,Natural England,191212,"10,000,000.00",Grant In Aid Payment for Natural England Grant December 2012
Defra,Core Defra ,03/01/2013,Current grants to charitable bodies,Policy Delivery DG,Waste Aware North East Ltd,13,"80,408.00",Grant funding in respect of Reward and Recognition Fund
Defra,Core Defra ,03/01/2013,Current Grants E,Policy Delivery DG,New Forest National Park Auth,141212,"861,260.00",Grant In Aid payment to New Forest National Park Authority 2012-13 Quarter 4
Defra,Core Defra ,03/01/2013,Current Grants E,Policy Delivery DG,Yorkshire Dales National Authority,141212,"1,204,543.00",Grant In Aid payment to Yorkshire Dales National Park Authority 2012-13 Quarter 4
Defra,Core Defra ,03/01/2013,Current Grants E,Policy Delivery DG,Northumberland Nat Park Authority,141212,"668,241.00",Grant In Aid payment to Northumberland National Park Authority 2012-13 Quarter 4
Defra,Core Defra ,03/01/2013,Current Grants E,Policy Delivery DG,Dartmoor National Park Authority,141212,"893,815.00",Grant in Aid payment to Dartmoor National Park Authority 2012-13 Quarter 4
Defra,Core Defra ,03/01/2013,Current Grants E,Policy Delivery DG,North York Moors National Park,141212,"1,211,171.00",Grant In Aid payment to North York Moors National Park Authority 2012-13 Quarter 4
Defra,Core Defra ,03/01/2013,Current Grants E,Policy Delivery DG,Exmoor National Park Authority,141212,"817,000.00",Grant In Aid payment to Exmoor National Park Authority 2012-13 Quarter 4
Defra,Core Defra ,03/01/2013,Current Grants E,Policy Delivery DG,Broads Authority,141212,"943,700.00",Grant In Aid Payment to The Broads Authority Quarter 4
Defra,Core Defra ,03/01/2013,Current Grants E,Policy Delivery DG,Peak District National Park Auth,141212,"856,630.00",Grant In Aid payment to Peak District National Park Authority 2012-13 Quarter 4
Defra,Core Defra ,03/01/2013,Current Grants E,Policy Delivery DG,Lake District National Park Auth,141212,"1,494,290.00",Grant In Aid payment to Lake District National Park Authority 2012-13 Quarter 4
Defra,Core Defra ,03/01/2013,Current Grants E,Policy Delivery DG,South Downs National Park Authority,141212,"2,621,987.00",Grant In Aid payment to South Downs National Park Authority 2012-13 Quarter 4
Defra,Core Defra ,03/01/2013,Current Grants E,Policy Delivery DG,Fauna & Flora International,141212,"28,192.00",Darwin Grant for Conservation of the newly-discovered Burmese (Myanmar) snub-nosed monkey July-September 2012
Defra,Core Defra ,03/01/2013,Current Grants E,Policy Delivery DG,Fauna & Flora International,221012,"27,182.25",Darwin Grant for the design and management of Cambodia's first Marine Protected Area December 12
Defra,Core Defra ,03/01/2013,Consultancy Non-Scheme,Policy Delivery DG,Ernst & Young LLP,11112,"26,919.60",Thames Tunnel Commercial Consultancy fee 
Defra,Core Defra ,04/01/2013,Other Current Payments (Evidence R&D),Policy Delivery DG,Institute Of Education,WPINV01097,"26,842.50",Review of the latest evidence on lead estimation of intake via drinking water - November 2012
Defra,Core Defra ,04/01/2013,Current Grants E,Policy Delivery DG,Fauna & Flora International,1.41212E+12,"28,192.00",Darwin Grant for the conservation of the newly-discovered Burmese (Myanmar) snub-nosed monkey - October to December 2012
Defra,Core Defra ,08/01/2013,Other Current Payments E,Policy Delivery DG,A H D B,180014160,"55,000.00",Provision of electronic reporting for pigs by British Pig Executive (BPEX)
Defra,Core Defra ,08/01/2013,Other Current Payments (Evidence R&D),Policy Delivery DG,Department Of Energy and Climate Change,1100003574,"1,125,000.00","Memorandum of Understanding on sustaining Met Office climate programme funding
"
Defra,Core Defra ,08/01/2013,Other Current Payments (Evidence R&D),Policy Delivery DG,Ministry Of Justice,10RL110161,"25,000.00",Memorandum of Understanding with Law Commission for Conservation Covenants project - Quarter 3 2012/13
Defra,Core Defra ,08/01/2013,Other Current Payments (Evidence R&D),Policy Delivery DG,UNEP-WCMC,1264,"26,000.00",Lessons learnt from incorporating the valuation of biodiversity and ecosystem services into the development of National Biodiversity Strategies and Action Plans 
Defra,Core Defra ,08/01/2013,Current Grants - Local Authorities,Policy Delivery DG,Dept For Communities & Local Gov,70113,"3,000,000.00",Local Services Support Grant January 2013
Defra,Core Defra ,08/01/2013,Other Current Payments E,Policy Delivery DG,Local Partnerships LLP,41101103,"234,332.87",Local Partnerships Contract for Private Finance Initiatives projects -  December 2012 
Defra,Core Defra ,08/01/2013,Other Current Payments (GB),Policy Delivery DG,C E F A S,8002456,"50,392.00",Environmental Risk Assessment 2012/2013
Defra,Core Defra ,08/01/2013,Other Current Payments E,Policy Delivery DG,JSS Pensions Administration,6060,"123,850.25",Nature Conservancy Council Pensions Scheme - payments for 2012-13 - October to March
Defra,Core Defra ,08/01/2013,Grant-in Aid Payments,Policy Delivery DG,Marine Management Organisation,40113,"3,900,000.00",Grant in Aid payments to Marine Management Organisation - January 2013
Defra,Core Defra ,08/01/2013,Other Current Payments (GB),Policy Delivery DG,Dept For Communities & Local Gov,30113,"250,000.00",London Support Grant Services for Local Services Support Grant - January 2013
Defra,Core Defra ,10/01/2013,Current Grants UK,Policy Delivery DG,Devon County Council,53009727,"346,500.00",Pilot Funding for Devon County Council Rural Growth Network
Defra,Core Defra ,10/01/2013,Other Current Payments (GB),Policy Delivery DG,University Of Westminster,9801060,"30,928.50",Defra-funded Sustainable Development Research Network 
Defra,Core Defra ,10/01/2013,Evidence Non R&D,Policy Delivery DG,Hepworth Acoustics Ltd,C0061,"82,929.05",Calculation of Noise Levels from Road & Rail Sources
Defra,Core Defra ,10/01/2013,Evidence Non R&D,Policy Delivery DG,North Wales Police,F0003356,"25,500.00",National Crime Unit for Study of illegal trade and other activities relating to wildlife crime on the internet
Defra,Core Defra ,10/01/2013,Evidence Non R&D,Policy Delivery DG,North Wales Police,F0003333,"34,000.00",Crime Project Contribution for the Study of illegal trade and other activities relating to wildlife crime on the internet
Defra,Core Defra ,10/01/2013,Other Current Payments (Evidence R&D),Policy Delivery DG,BTO Services Limited,ACCS1205,"32,373.00","Farmland heterogeneity, biodiversity and ecosystem services 2012/13"
Defra,Core Defra ,14/01/2013,Other Current Payments E,Policy Delivery DG,Natural England,8000010335,"197,905.44",Reimbursement of legal charges in preparation for Project Milton 
Defra,Core Defra ,14/01/2013,Other Current Payments (Evidence R&D),Policy Delivery DG,C E F A S,8002460,"26,045.00",Japanese Research collaoration on Endocrine Disrupters in the Aquatic Environment
Defra,Core Defra ,14/01/2013,Other Current Payments (Evidence R&D),Policy Delivery DG,C E F A S,8002485,"38,312.94",Memorandum of Understanding for the provision of Research and Deverlopment Services to Chemicals and Emerging Technologies 
Defra,Core Defra ,14/01/2013,Other Current Payments (Evidence R&D),Policy Delivery DG,C E F A S,8002239,"26,045.00",Japanese Research Collaboration on Endocrine Disrupters in the Aquatic Environment 
Defra,Core Defra ,14/01/2013,Other Current Payments (Evidence R&D),Policy Delivery DG,Best Foot Forward Ltd,101043,"38,875.00",Evidence to support the development of a sustainability roadmap for soft drinks 
Defra,Core Defra ,14/01/2013,Other Current Payments E,Policy Delivery DG,Rural Payments Agency,333141,"55,982.06",Design and Test Strategy for Sheep and Goat Database Interface.
Defra,Core Defra ,14/01/2013,Evidence Non R&D,Policy Delivery DG,Hepworth Acoustics Ltd,C0062,"48,010.65",Calculation of Noise Levels from Road & Rail Sources
Defra,Core Defra ,14/01/2013,Other Current Payments E,Policy Delivery DG,The Planning Inspectorate,1800000157,"95,569.32",Planning Inspectorate Casework for Quarter 2 Payments
Defra,Core Defra ,14/01/2013,Other Current Payments E,Policy Delivery DG,Food & Environment Research Agency,F0026750,"85,748.00","Emergency Response and Recovery Programme for The UK Government Decontamination Service to support, inform and influence Defra Policy for public good"
Defra,Core Defra ,14/01/2013,Other Current Payments (GB),Policy Delivery DG,Brook Lyndhurst Ltd,761,"38,106.00",Evaluation of Animal Health and Welfare Board in England
Defra,Core Defra ,14/01/2013,Evidence Non R&D,Policy Delivery DG,Identigen Ltd,Dec-12,"33,636.79",Transmissible Spongiform Encephalopathy Laboratory Testing 2012/13
Defra,Core Defra ,14/01/2013,Other Current Payments (Evidence R&D),Policy Delivery DG,University Of York,64159,"29,682.00","Evaluation of the Victoria Business Improvement District, Environmental Improvement Initiative Milestone"
Defra,Core Defra ,14/01/2013,Evidence Non R&D,Policy Delivery DG,C E F A S,8002489,"2,232,833.33",High Level Agreement Payment - January 2013 
Defra,Core Defra ,14/01/2013,Evidence Non R&D,Policy Delivery DG,C E F A S,8002490,"156,000.00",High Level Agreement Partnership - January 2013
Defra,Core Defra ,15/01/2013,Other Current Payments (GB),Policy Delivery DG,International Council for Exploration of the Sea,140113,"180,728.00",Contribution to International Council for Exploration of the Sea
Defra,Core Defra ,16/01/2013,Current Grants - Local Authorities,Policy Delivery DG,Milton Keynes Council,6050001642,"28,500.00",Defra's contribution to International Council for the Exploration of the Sea (ICES) 2013
Defra,Core Defra ,16/01/2013,Current Grants - Local Authorities,Policy Delivery DG,Milton Keynes Council,6050001642,"28,500.00",Grant funding in respect of Reward and Reconginition Fund 
Defra,Core Defra ,16/01/2013,Current Grants E,Policy Delivery DG,Preen Community Interest Company,DEFRA0002,"31,446.00",Grant funding in respect of Reward and Reconginition Fund 
Defra,Core Defra ,16/01/2013,Current Grants E,Policy Delivery DG,Vehicle Certification Agency,SIAR172188,"49,015.00",Enforcement of Batteries Regulations
Defra,Core Defra ,16/01/2013,Overhead Incidental Expenses,Policy Delivery DG,Vehicle Certification Agency,SIAR171651,"60,427.00",Enforcement of Batteries Regulations
Defra,Core Defra ,16/01/2013,Grant-in Aid Payments,Policy Delivery DG,Joint Nature Conservation Committee,80113,"906,000.00",Grant in Aid payment for 2012-2013
Defra,Core Defra ,18/01/2013,Evidence Non R&D,Policy Delivery DG,National Physical Laboratory,114806,"116,447.49",Polycyclic Aromatic Hydrocarbon Network
Defra,Core Defra ,18/01/2013,Other Current Payments (Evidence R&D),Policy Delivery DG,ICAEW,SINVINV009431183,"50,000.00",Contribution to the The Economics of Ecosystems and Biodiversity (TEEB) scoping study
Defra,Core Defra ,18/01/2013,Other Current Payments E,Policy Delivery DG,Local Partnerships LLP,41101066,"232,852.91",Contract for Private Finance Initiatives projects - November 2012
Defra,Core Defra ,22/01/2013,Other Current Payments (Evidence R&D),Policy Delivery DG,Risk Solutions,160113,"40,658.66",Evidence on Impacts of Abstraction Reform Options On the Environment and Abstractors.
Defra,Core Defra ,22/01/2013,Other Current Payments (Evidence R&D),Policy Delivery DG,The Coal Authority,CA101991,"444,674.04",Defra and DECC working together to address the polluted water emanating from the Wheal Jane abandoned mine
Defra,Core Defra ,22/01/2013,Other Current Payments (GB),Policy Delivery DG,Rural Payments Agency,333243,"29,627.61",Sheep and Goat Inspections Administrative Support for 2012/13
Defra,Core Defra ,22/01/2013,Other Current Payments E,Policy Delivery DG,Rural Payments Agency,333244,"157,853.65","Sheep and goat movement data inputting for Devon, North Yorkshire and Leeds Local Authorities"
Defra,Core Defra ,22/01/2013,Other Current Payments E,Policy Delivery DG,C E F A S,8002513,"27,868.00",The control of invasive species of crayfish - December 2012 to January 2013
Defra,Core Defra ,22/01/2013,Grant-in Aid Payments,Policy Delivery DG,Consumer Council for Water (CCW),100113,"1,282,500.00",Grand in Aid Payment for 1st Quarter 2013
Defra,Core Defra ,22/01/2013,Other Current Payments E,Policy Delivery DG,Animal Health and Veterinary Laboratories Agency,5000020022,"74,300.94",Payments for Bovine Tuberculosis Testing  
Defra,Core Defra ,22/01/2013,Evidence Non R&D,Policy Delivery DG,Animal Health and Veterinary Laboratories Agency,5000019450,"1,459,500.00",Laboratory surveillance 2012-2013
Defra,Core Defra ,22/01/2013,Other Current Payments E,Policy Delivery DG,Food & Environment Research Agency,F0026842,"255,124.00","Emergency Response and Recovery Programme - The UK Government Decontaminiation Service to Support, inform and influence Defra Policy for public good - December 2012"
Defra,Core Defra ,22/01/2013,Evidence Non R&D,Policy Delivery DG,L G C Limited,50203856,"141,141.78",Transmissible Spongiform Encephalopathy Testing - December 2012
Defra,Core Defra ,22/01/2013,Other Current Payments (Evidence R&D),Policy Delivery DG,A D A S UK Ltd,RIRP066647,"34,195.26",Developing a field toolkit for ecological targeting of agricultural diffuse pollution mitigation.
Defra,Core Defra ,22/01/2013,Evidence Non R&D,Policy Delivery DG,Office For National Statistics,1025876,"83,540.58",Living Costs & Food Survey 2012/13 - Quarter 4
Defra,Core Defra ,22/01/2013,Other Current Payments UK,Policy Delivery DG,Gangmasters Licensing Authority,191212,"395,960.33",Licensing Expenses and Enforcement Funding - January 2013
Defra,Core Defra ,22/01/2013,Evidence Non R&D,Policy Delivery DG,Animal Health and Veterinary Laboratories Agency,5000021415,"31,583.33",Enhancing Surveillance - November 2012
Defra,Core Defra ,22/01/2013,Evidence Non R&D,Policy Delivery DG,Animal Health and Veterinary Laboratories Agency,5000021425,"31,583.33",Enhancing Surveillance - April 2012 to March 2013
Defra,Core Defra ,22/01/2013,Current Grants E,Policy Delivery DG,Cotswolds Conservation Board,311212,"122,461.25",Area of Outstanding Natural Beauty grant allocation 2012-2013
Defra,Core Defra ,24/01/2013,Evidence Non R&D,Policy Delivery DG,Extrium Ltd,0214DEFRA,"106,655.06",Accoustic Modelling/Geographic Information System Advisory Contract
Defra,Core Defra ,24/01/2013,Evidence Non R&D,Policy Delivery DG,Extrium Ltd,0212DEFRA,"155,332.67",Accoustic Modelling/Geographic Information System Advisory Contract
Defra,Core Defra ,24/01/2013,Current Transfers Abroad UK,Policy Delivery DG,UNEP/CITES Secretariat,2012033,"33,477.60",International Consortium on Combating Wildlife Crime contribution
Defra,Core Defra ,24/01/2013,Current Transfers Abroad UK,Policy Delivery DG,International Union for Conservation of Nature,SI000570,"25,000.00",Foreign payment - Analyses of the proposals to amend Convention on International Trade in Endangered Species (CITES) Appendices for CITES' 16th Conference
Defra,Core Defra ,24/01/2013,Current Grants E,Policy Delivery DG,Waste & Resources Action Programme,JAN1140113,"2,983,101.00",Waste & Resources Action Programme (WRAP) Grant - January 2013
Defra,Core Defra ,24/01/2013,Payments to Agencies GB,Policy Delivery DG,D L O Holding/Prionics AG,33235,"187,988.18",Foreign payment - Tuberculin order
Defra,Core Defra ,24/01/2013,Other Current Payments (Evidence R&D),Policy Delivery DG,A D A S UK Ltd,1.80113E+12,"28,265.83",Potential for nitrification inhibitors and fertiliser nitrogen application timing strategies to reduce direct and indirect nitrous oxide emissions from UK agriculture - January 2013
Defra,Core Defra ,24/01/2013,Other Current Payments (Evidence R&D),Policy Delivery DG,Sac Commercial Ltd,1.80113E+12,"25,795.83",Greenhouse Gas Platform - Nitrous Oxide Emissions Factors - January 2013
Defra,Core Defra ,24/01/2013,Other Current Payments (Evidence R&D),Policy Delivery DG,A D A S UK Ltd,1.80113E+12,"38,241.16",Greenhouse Gas Platform - Nitrous Oxide Emissions Factors - January 2013
Defra,Core Defra ,24/01/2013,Other Current Payments (Evidence R&D),Policy Delivery DG,Marine Biological Association,218,"51,000.00",Marine Environmental Change Network (MECN)
Defra,Core Defra ,25/01/2013,Other Current Payments (Evidence R&D) (Agency),Policy Delivery DG,Animal Health and Veterinary Laboratories Agency,ERS-511090-42549,"28,280.33",Selection of Extended Spectrum Beta Lactamase resistance in calves fed waste milk containing antibiotic residues
Defra,Core Defra ,25/01/2013,Other Current Payments (Evidence R&D) (Agency),Policy Delivery DG,Animal Health and Veterinary Laboratories Agency,ERS-511062-42547,"31,053.50",Pathology and Pathogenesis of prion diseases - January 2013 
Defra,Core Defra ,25/01/2013,Other Current Payments (Evidence R&D) (Agency),Policy Delivery DG,Animal Health and Veterinary Laboratories Agency,ERS-511128-42524,"134,403.08",Continued vaccine development: Improving BCG and developing non-sensitising vaccines for cattle - January 2013
Defra,Core Defra ,25/01/2013,Other Current Payments (Evidence R&D) (Agency),Policy Delivery DG,Food & Environment Research Agency,ERS-511124-42485,"37,093.33",Badger Survey of England and Wales - January 2013
Defra,Core Defra ,25/01/2013,Other Current Payments (Evidence R&D) (Agency),Policy Delivery DG,Animal Health and Veterinary Laboratories Agency,ERS-511069-42510,"31,474.30",Emerging and Major Infection Diseases of Livestock: Towards breeding of goats for genetically determined Transmissible Spongiform Encephalopathy resistance: A PrP gene survey of the national goat herd and the development of breeding strategies for goats in Great Britain - September 2012 to January 2013
Defra,Core Defra ,25/01/2013,Other Current Payments (Evidence R&D) (Agency),Policy Delivery DG,Animal Health and Veterinary Laboratories Agency,ERS-511068-42509,"53,156.68",Optimising targeted proteomics for quantitative species-specific analyses of animal feed - October 2012 to January 2013
Defra,Core Defra ,25/01/2013,Other Current Payments (Evidence R&D) (Agency),Policy Delivery DG,C E F A S,ERS-511151-42336,"48,513.34",Disease and mortality in juvenile commercial shellfish - October 2012 to January 2013
Defra,Core Defra ,25/01/2013,Other Current Payments (Evidence R&D) (Agency),Policy Delivery DG,Animal Health and Veterinary Laboratories Agency,ERS-511129-42525,"61,065.75","Antigen mining, Differentiation of Infected and Vaccinated Animals assays and other diagnostic approaches - January 2013"
Defra,Core Defra ,25/01/2013,Other Current Payments (Evidence R&D) (Agency),Policy Delivery DG,Animal Health and Veterinary Laboratories Agency,ERS-511176-42538,"51,067.16",Studies of natural and experimental Transmissible Spongiform Encephalopathies - January 2013
Defra,Core Defra ,25/01/2013,Other Current Payments (Evidence R&D) (Agency),Policy Delivery DG,Animal Health and Veterinary Laboratories Agency,ERS-511059-42506,"49,578.50",Maintenance of a Transmissible Spongiform Encephalopathy-free sheep flock after importation from New Zealand - January 2013
Defra,Core Defra ,25/01/2013,Other Current Payments (Evidence R&D),Policy Delivery DG,Centre For Ecology & Hydrology,ERS-510792-42404,"29,005.00",Operation of the UK Eutrophying & Acidifying Atmospheric Pollutants (UKEAP)
Defra,Core Defra ,25/01/2013,Other Current Payments (Evidence R&D) (Agency),Policy Delivery DG,Animal Health and Veterinary Laboratories Agency,ERS-511126-42556,"71,234.08",Development of an oral BCG vaccine for badgers - January 2013
Defra,Core Defra ,25/01/2013,Other Current Payments (Evidence R&D) (Agency),Policy Delivery DG,Animal Health and Veterinary Laboratories Agency,ERS-511146-42557,"83,013.91",Development of an oral BCG vaccine for badgers - January 2013
Defra,Core Defra ,25/01/2013,Other Current Payments (Evidence R&D) (Agency),Policy Delivery DG,Food & Environment Research Agency,ERS-511125-42486,"236,981.44",Estimating Badger Group Sizes in Different Landscapes in England and Wales - September 2012 to January 2013
Defra,Core Defra ,25/01/2013,Other Current Payments (Evidence R&D),Policy Delivery DG,Natural Environ Research Council,ERS-510838-42355,"28,800.80","Implementing component 2 of Demonstration Test Catchments � to test integrated diffuse pollution mitigation measures for arable cropping, livestock, dairy and other farming systems "
Defra,Core Defra ,28/01/2013,Other Current Payments (Evidence R&D),Policy Delivery DG,National Physical Laboratory,113627,"75,000.00",Bioaerosols Study Report
Defra,Core Defra ,28/01/2013,Evidence Non R&D,Policy Delivery DG,Animal Health and Veterinary Laboratories Agency,5000019449,"25,000.00",Provision of Veterinary Laboratories Agency Services in Relation to Surveillance work carried out under Food Processing System (FPS) Programme - April to September 2012
Defra,Core Defra ,28/01/2013,Overhead Incidental Expenses,Policy Delivery DG,Lancaster University,8642904,"59,744.00",Toxic Organic Micro Pollutants (TOMPs) monitoring network contract - October 2012 to March 2013
Defra,Core Defra ,28/01/2013,Other Current Payments E,Policy Delivery DG,Food Standards Agency,1701905,"71,602.80",Charges for work relating to the supervision of Cleansing and Disinfection of Livestock vehicles
Defra,Core Defra ,28/01/2013,Other Current Payments E,Policy Delivery DG,Food Standards Agency,1701829,"59,132.00",Charges for work relating to the supervision of Cleansing and Disinfection of Livestock vehicles
Defra,Core Defra ,28/01/2013,Other Current Payments (Evidence R&D),Policy Delivery DG,D S T L,MST005556,"28,870.00",Defence Science and Technology Laboratory Rapid Methods
Defra,Core Defra ,28/01/2013,Evidence Non R&D,Policy Delivery DG,Veterinary Medicines Directorate,FI00018944,"797,750.00",Veterinary Medicines & Agricultural Marketing Report Surveillance - December 2012
Defra,Core Defra ,28/01/2013,Current Grants E,Policy Delivery DG,Met Office,I0084870,"566,000.00",Grant Payment providing an Integrated Flood Forecasting and Alerts Service Covering England to Support and enhance exisiting National area delivery 
Defra,Core Defra ,28/01/2013,Evidence Non R&D,Policy Delivery DG,Animal Health and Veterinary Laboratories Agency,5000021416,"243,250.00",Laboratory surveillance
Defra,Core Defra ,28/01/2013,Other Current Payments E,Policy Delivery DG,Animal Health and Veterinary Laboratories Agency,Animal Health and Veterinary Laboratories Agency,"4,817,265.89",Bovine tuberculosis testing - October 2012
Defra,Core Defra ,28/01/2013,Evidence Non R&D,Policy Delivery DG,Animal Health and Veterinary Laboratories Agency,Animal Health and Veterinary Laboratories Agency,"243,250.00",Laboratory surveillance
Defra,Core Defra ,28/01/2013,Payments to Agencies GB,Policy Delivery DG,Animal Health and Veterinary Laboratories Agency,Animal Health and Veterinary Laboratories Agency,"2,244,583.33",Laboratory surveillance
Defra,Core Defra ,28/01/2013,Payments to Agencies GB,Policy Delivery DG,Animal Health and Veterinary Laboratories Agency,Animal Health and Veterinary Laboratories Agency,"2,244,583.33",Laboratory surveillance
Defra,Core Defra ,28/01/2013,Other Current Payments (GB),Policy Delivery DG,Food Standards Agency,Food Standards Agency,"47,259.96",Bovine Spongiform Encephalopathy Testing 2012/13
Defra,Core Defra ,28/01/2013,Evidence Non R&D,Policy Delivery DG,Animal Health and Veterinary Laboratories Agency,Animal Health and Veterinary Laboratories Agency,"190,516.67",Laboratory surveillance 2012/13
Defra,Core Defra ,28/01/2013,Payments to Agencies GB,Policy Delivery DG,Animal Health and Veterinary Laboratories Agency,Animal Health and Veterinary Laboratories Agency,"116,583.14",Funding for animal bi-products - December 2012
Defra,Core Defra ,28/01/2013,Evidence Non R&D,Policy Delivery DG,Animal Health and Veterinary Laboratories Agency,Animal Health and Veterinary Laboratories Agency,"175,000.00",Transmissible Spongiform Encephalopathy Surveillance - November 2012
Defra,Core Defra ,28/01/2013,Evidence Non R&D,Policy Delivery DG,Animal Health and Veterinary Laboratories Agency,Animal Health and Veterinary Laboratories Agency,"190,516.67",Transmissible Spongiform Encephalopathy Surveys - November 2012
Defra,Core Defra ,28/01/2013,Evidence Non R&D,Policy Delivery DG,Animal Health and Veterinary Laboratories Agency,Animal Health and Veterinary Laboratories Agency,"175,000.00",Laboratory surveillance 2012/13
Defra,Core Defra ,28/01/2013,Other Current Payments (Evidence R&D),Policy Delivery DG,Office For National Statistics,Office For National Statistics,"46,682.77",Data Capture of Defra Surveys
Defra,Core Defra ,28/01/2013,Other Current Payments (Evidence R&D),Policy Delivery DG,National Physical Laboratory,National Physical Laboratory,"40,000.00",Monitoring bioaerosol and odour emissions from composting facilities
Defra,Core Defra ,28/01/2013,Other Current Payments (Evidence R&D),Policy Delivery DG,Natural Environ Research Council,Natural Environ Research Council,"350,000.00",Shelf Sea Biogeochemistry 
Defra,Core Defra ,28/01/2013,Evidence Non R&D,Policy Delivery DG,Animal Health and Veterinary Laboratories Agency,Animal Health and Veterinary Laboratories Agency,"244,960.42",Laboratory surveillance 2012/13
Defra,Core Defra ,28/01/2013,Evidence Non R&D,Policy Delivery DG,Animal Health and Veterinary Laboratories Agency,Animal Health and Veterinary Laboratories Agency,"512,500.00",Scanning Surveillance of Emerging Disease - November 2012
Defra,Core Defra ,28/01/2013,Evidence Non R&D,Policy Delivery DG,Animal Health and Veterinary Laboratories Agency,Animal Health and Veterinary Laboratories Agency,"244,960.42",Zoonoses laboratory surveillance - November 2012
Defra,Core Defra ,28/01/2013,Evidence Non R&D,Policy Delivery DG,Animal Health and Veterinary Laboratories Agency,Animal Health and Veterinary Laboratories Agency,"512,500.00",Scanning Surveillance of Emerging Disease 2012/13
Defra,Core Defra ,29/01/2013,Other Current Payments (Evidence R&D),Policy Delivery DG,University Of Bristol,University Of Bristol,"35,463.41",Evaluation of Meat Chicken Regulations - January 2013
Defra,Core Defra ,29/01/2013,Other Current Payments (Evidence R&D),Policy Delivery DG,The Pirbright Institute,The Pirbright Institute,"95,472.44",Further development of RT-PCR (diagnostic technique) technology  in support of foot and mouth disease diagnosis - January 2013
Defra,Core Defra ,29/01/2013,Other Current Payments (Evidence R&D),Policy Delivery DG,The Pirbright Institute,The Pirbright Institute,"34,804.00",Tracing the origins of foot and mouth disease outbreaks - January 2013
Defra,Core Defra ,29/01/2013,Other Current Payments (Evidence R&D),Policy Delivery DG,The Pirbright Institute,The Pirbright Institute,"31,616.00",Understanding and predicting the spread of vector- and aerosol-borne livestock pathogens in the UK - January 2013
Defra,Core Defra ,29/01/2013,Other Current Payments (Evidence R&D),Policy Delivery DG,The Pirbright Institute,The Pirbright Institute,"27,662.33",Development of methods to enhance implementation of foot and mouth disease virus control measures - January 13
Defra,Core Defra ,29/01/2013,Other Current Payments (Evidence R&D),Policy Delivery DG,The Pirbright Institute,The Pirbright Institute,"27,600.58",African swine fever virus: Improvement of diagnostic tests and vaccine development - January 2013
Defra,Core Defra ,29/01/2013,Other Current Payments (Evidence R&D),Policy Delivery DG,The Pirbright Institute,The Pirbright Institute,"57,810.83",Development of novel foot and mouth disease vaccines
Defra,Core Defra ,29/01/2013,Other Current Payments (Evidence R&D),Policy Delivery DG,University Of Edinburgh,University Of Edinburgh,"27,119.75",Carrier state: do sheep of resistant PrP genotypes become sub-clinically infected when exposed to scrapie - January 2013
Defra,Core Defra ,29/01/2013,Other Current Payments (Evidence R&D),Policy Delivery DG,Zoological Society Of London.,Zoological Society Of London.,"62,778.00",A study to examine the interactions between cattle and badgers - January 2013
Defra,Core Defra ,29/01/2013,Other Current Payments (Evidence R&D),Policy Delivery DG,University Of Reading,University Of Reading,"32,753.33",Optimising the efficiency of dietary nitrogen use to reduce emissions and waste in dairy systems -  January 2013
Defra,Core Defra ,29/01/2013,Other Current Payments (Evidence R&D),Policy Delivery DG,North Wyke Research.,North Wyke Research.,"57,508.00","Implementing component 2 of Demonstration Test Catchments � to test integrated diffuse pollution mitigation measures for arable cropping, livestock, dairy and other farming systems - June 2012 to January 2013"
Defra,Core Defra ,29/01/2013,Other Current Payments (Evidence R&D),Policy Delivery DG,University Of Newcastle Upon Tyne,University Of Newcastle Upon Tyne,"30,240.00","Implementing component 2 of Demonstration Test Catchments � to test integrated diffuse pollution mitigation measures for arable cropping, livestock, dairy and other farming systems - June 2012 to January 2013"
Defra,Core Defra ,29/01/2013,Other Current Payments (Evidence R&D),Policy Delivery DG,University Of East Anglia,University Of East Anglia,"46,672.00","Implementing component 2 of Demonstration Test Catchments � to test integrated diffuse pollution mitigation measures for arable cropping, livestock, dairy and other farming systems - June 2012 to January 2013"
Defra,Core Defra ,29/01/2013,Other Current Payments (Evidence R&D),Policy Delivery DG,North Wyke Research.,North Wyke Research.,"36,437.74",Greenhouse Gas Platform - Nitrous Oxide Emissions Factors - January 2013
Defra,Core Defra ,29/01/2013,Other Current Payments (Evidence R&D),Policy Delivery DG,University Of Warwick,University Of Warwick,"238,615.00",Support for the Warwick Horticulture Research International Genetic Resources Unit as a base collection and for use in vegetable research 2012/13
Defra,Core Defra ,30/01/2013,Other Current Payments E,Policy Delivery DG,NERA UK Ltd,NERA UK Ltd,"42,260.00",Risk modelling with the capacity forecast model that is used to assess progress towards the 2020 landfill directive targets 2012/13
Defra,Core Defra ,30/01/2013,Grant-in Aid Payments,Policy Delivery DG,Northern Ireland Environment Agency,Northern Ireland Environment Agency,"66,000.00",Waste Shipments to Northern Ireland Environment Agency 2012/13
Defra,Core Defra ,30/01/2013,Current Grants E,Policy Delivery DG,Mendip Hills AONB,Mendip Hills AONB,"113,411.16",Mendip Hills Area of Outstanding Natural Beauty grant payment - April to December 2012
Defra,Core Defra ,30/01/2013,Current Grants E,Policy Delivery DG,Malvern Hills AONB,Malvern Hills AONB,"79,212.00",Malvern Hills Area of Outstanding Natural Beauty grant payment 2012/13
Defra,Core Defra ,30/01/2013,Current Grants E,Policy Delivery DG,East Devon AONB,East Devon AONB,"124,940.25",East Devon Area of Outstanding Natural Beauty grant payment - April to Janaury 2013
Defra,Core Defra ,30/01/2013,Current Grants E,Policy Delivery DG,Quantock Hills AONB,Quantock Hills AONB,"109,015.00",Quantock Hills Area of Outstanding Natural Beauty grant payment - April to Deceber 2012
Defra,Core Defra ,30/01/2013,Current Grants E,Policy Delivery DG,Dedham Vale ANOB,Dedham Vale ANOB,"88,632.00",Dedham Vale Area of Outstanding Natural Beauty grant payment - April to December 2012.
Defra,Core Defra ,30/01/2013,Evidence Non R&D,Policy Delivery DG,University Of Nottingham,7676190,"1,336,706.50",Farm Business Survey Final payment 2011/12 
Defra,Core Defra ,31/01/2013,Other Current Payments (GB),Policy Delivery DG,The International Monitoring Control and Surveillance Network,220113,"25,000.00",Seafisheries conservation (illegal unreported unregulated fishing) payment
Defra,Core Defra ,31/01/2013,Current Transfers Abroad UK,Policy Delivery DG,UNEP/CITES Secretariat,2012032,"50,000.00",Foreign payment - contribution towards sponsored delegates project
Defra,Core Defra ,03/01/2013,Evidence Non R&D,"Strategy, Evidence and Customers DG",Simon Christmas Ltd,211212,"27,500.00",Biodiversity segmentation scoping study
Defra,Core Defra ,04/01/2013,Other Current Payments (Evidence R&D),"Strategy, Evidence and Customers DG",Cranfield University,1365906,"50,000.00",The Collaborative Centre of Excellence in Understanding and Managing Natural and Environmental Risk and Futures - November 2012
Defra,Core Defra ,04/01/2013,Other Current Payments (Evidence R&D),"Strategy, Evidence and Customers DG",Cranfield University,1365905,"50,000.00",The Collaborative Centre of Excellence in Understanding and Managing Natural and Environmental Risk and Futures - October 2012
Defra,Core Defra ,04/01/2013,Other Current Payments (Evidence R&D),"Strategy, Evidence and Customers DG",Cranfield University,1365907,"50,000.00",The Collaborative Centre of Excellence in Understanding and Managing Natural and Environmental Risk and Futures - December 2012
Defra,Core Defra ,08/01/2013,Other Current Payments (Evidence R&D),"Strategy, Evidence and Customers DG",Food & Environment Research Agency,F0026590,"72,636.00","New tools in evidence gathering, traceability through metagenomics 2012/13"
Defra,Core Defra ,10/01/2013,Other Current Payments (Evidence R&D),"Strategy, Evidence and Customers DG",University Of York,64380,"46,723.00",Evaluation of the use of detention ponds to mitigate transfer of pesticides to surface waters via drain flow 2012/13
Defra,Core Defra ,22/01/2013,Other Current Payments (Evidence R&D),"Strategy, Evidence and Customers DG",Environment Agency,1149336,"52,151.33",Strategic Evidence Partnership Fund (SEPF) project to develop Climate Change Impact Report Cards for Water and Biodiversity.
Defra,Core Defra ,24/01/2013,Other Current Payments (GB),"Strategy, Evidence and Customers DG",Resource Decisions Ltd,200113,"28,147.50",Defra's Regulatory Stock Assessment 2011 to 2013 - provide advisory services 
Defra,Core Defra ,25/01/2013,Other Current Payments (Evidence R&D) (Agency),"Strategy, Evidence and Customers DG",C E F A S,ERS-511178-42338,"56,569.34","Influence of climate change on impact, surveillance strategies and contingency planning for notifiable aquatic animal pathogens - October 2012 to January 2013"
Defra,Core Defra ,31/01/2013,Current Transfers Abroad UK,"Strategy, Evidence and Customers DG",Bank Of England,290113,"8,000,000.00",International Climate Fund Cerrado project in Brazil
Defra,Core Defra,21/02/2013,Rents to Landlords,Chief Operating Officer DG,D T Z,DEFRA176,"615,745.97",Property holding costs - Rent payments for multiple sites for January 2013
Defra,Core Defra,21/02/2013,Electricity,Chief Operating Officer DG,E D F Energy,1.4201E+15,"33,961.73",Electricity costs for CEFAS Weymouth for January 2013
Defra,Core Defra,21/02/2013,Electricity,Chief Operating Officer DG,E D F Energy,142010213,"47,907.18",Electricity costs for CEFAS Lowestoft for January 2013
Defra,Core Defra,07/02/2013,Electricity,Chief Operating Officer DG,E D F Energy,146020113,"26,954.96",Electricity costs for AHVLA Weybridge for January 2013
Defra,Core Defra,07/02/2013,Gas,Chief Operating Officer DG,Corona Energy,7905683,"25,146.25",Gas costs for AHVLA Weybridge for January 2013
Defra,Core Defra,01/02/2013,Electricity,Chief Operating Officer DG,E D F Energy,137,"58,606.42",Electricity costs for AHVLA Weybridge for December 2012
Defra,Core Defra,19/02/2013,Inwards Secondments,Chief Operating Officer DG,Environment Agency,1150348,"38,146.80",Wage costs for staff secondment from Other Government Department
Defra,Core Defra,14/02/2013,Property Lease Costs,Chief Operating Officer DG,D T Z,DEFRA174,"528,674.48","Property holding costs - Rent, Rates and Service Charge payments for multiple sites for February 2013"
Defra,Core Defra,21/02/2013,Property Lease Costs,Chief Operating Officer DG,D T Z,DEFRA175,"397,184.99",Property holding costs - Rent payments for multiple sites for February 2013
Defra,Core Defra,07/02/2013,Electricity,Chief Operating Officer DG,E D F Energy,135020113,"130,873.67",Electricity costs for FERA Sand Hutton for December 2012
Defra,Core Defra,07/02/2013,Gas,Chief Operating Officer DG,Corona Energy,7905735,"51,625.63",Gas costs for AHVLA Weybridge for December 2012
Defra,Core Defra,28/02/2013,Clearing Freehold Property,Chief Operating Officer DG,Eversheds LLP,26022013,"1,403,706.67","Property holding costs - Purchase of Beacon House, Stafford"
Defra,Core Defra,05/02/2013,Porters & Joiners (C),Chief Operating Officer DG,N O M S Agency,383392,"33,309.60",Sale of office furniture to National Offender Management Service
Defra,Core Defra,07/02/2013,Gas,Chief Operating Officer DG,Corona Energy,7905705,"123,927.58",Gas costs for FERA Sand Hutton for January 2013
Defra,Core Defra,21/02/2013,Electricity,Chief Operating Officer DG,E D F Energy,1.3801E+15,"65,099.75",Electricity costs for AHVLA Weybridge for January 2013
Defra,Core Defra,19/02/2013,Electricity,Chief Operating Officer DG,E D F Energy,10010213,"26,247.19","Electricity costs for Nobel House, London for January 2013"
Defra,Core Defra,07/02/2013,Gas,Chief Operating Officer DG,Corona Energy,7800402,"46,427.70",Gas costs for AHVLA Weybridge for January 2013
Defra,Core Defra,05/02/2013,Estates Professional Fees & Services,Chief Operating Officer DG,D T Z,201612,"37,442.60",Property Holding Costs - Estates management fee payment for January 2013
Defra,Core Defra,28/02/2013,Business Rates,Chief Operating Officer DG,D T Z,DEFRA177,"49,772.02","Property holding costs - Rent, Rates and Service Charge payments for multiple sites for February 2013"
Defra,Core Defra,21/02/2013,Electricity,Chief Operating Officer DG,E D F Energy,147010213,"55,367.50",Electricity costs for AHVLA Weybridge for February 2013
Defra,Core Defra,19/02/2013,Electricity,Chief Operating Officer DG,E D F Energy,136010213,"266,962.73",Electricity costs for FERA Sand Hutton for January 2013
Defra,Core Defra,11/02/2013,Oil,Chief Operating Officer DG,Corona Energy,7724569,"73,599.76",Electricity costs for FERA Sand Hutton for October 2012
Defra,Core Defra,27/02/2013,Training - Learning & Development,Chief Operating Officer DG,Oxford Said Business School Limited,34069,"30,000.00",Major Projects Leadership Academy - Staff training costs
Defra,Core Defra,15/02/2013,Water,Chief Operating Officer DG,Anglian Water,90296877,"42,035.95",Water costs for CEFAS Lowestoft for January 2013
Defra,Core Defra,19/02/2013,Clearing Construction in Progress (Building Works),Chief Operating Officer DG,Interserve (Facilities Mngmnt) Ltd,FI00023364,"72,362.48","Supply of furniture following renovation of Nobel House, London"
Defra,Core Defra,21/02/2013,Clearing Construction in Progress (Building Works),Chief Operating Officer DG,Interserve (Facilities Mngmnt) Ltd,FI00023370,"41,328.00","Supply of furniture following renovation of Nobel House, London"
Defra,Core Defra,21/02/2013,Clearing Construction in Progress (Building Works),Chief Operating Officer DG,Interserve (Facilities Mngmnt) Ltd,FI00023365,"293,111.26","Supply of lighting units, parts, fixtures, fittings and labour following renovation of Nobel House, London"
Defra,Core Defra,21/02/2013,Agency Recharge,Chief Operating Officer DG,Interserve (Facilities Mngmnt) Ltd,FI00023372,"220,461.55",Refurbishment of AHVLA laboratory in Newcastle upon Tyne
Defra,Core Defra,15/02/2013,Clearing Construction in Progress (Building Works),Chief Operating Officer DG,Interserve (Facilities Mngmnt) Ltd,FI00023366,"28,872.47","Costs associated with renovation of Nobel House, London - Fire Safety"
Defra,Core Defra,19/02/2013,Clearing Construction in Progress (Building Works),Chief Operating Officer DG,Interserve (Facilities Mngmnt) Ltd,FI00023367,"50,783.06","Costs associated with renovation of Nobel House, London - Painting and Decorating"
Defra,Core Defra,07/02/2013,Clearing Construction in Progress (Building Works),Chief Operating Officer DG,IBM United Kingdom Ltd,5801130776,"69,061.04",Information Technology costs associated with the Newcastle upon Tyne estates rationalisation programme
Defra,Core Defra,01/02/2013,Agency Recharge,Chief Operating Officer DG,Pick Everard,16032,"28,800.00","Costs incurred for the undertaking of estates maintenance projects at FERA, Sand Hutton which was invoiced for in February 2013"
Defra,Core Defra,15/02/2013,Clearing Construction in Progress (Building Works),Chief Operating Officer DG,Interserve (Facilities Mngmnt) Ltd,FI00023371,"236,668.86","Costs associated with renovation of Nobel House, London - Purchase of new furniture, carpets and fittings"
Defra,Core Defra,15/02/2013,Clearing Construction in Progress (Building Works),Chief Operating Officer DG,Interserve (Facilities Mngmnt) Ltd,FI00023363,"74,516.59","Costs associated with renovation of Nobel House, London - portering services associated with staffing movement"
Defra,Core Defra,21/02/2013,Clearing Construction in Progress (Building Works),Chief Operating Officer DG,Interserve (Facilities Mngmnt) Ltd,FI00023368,"54,367.74","Supply of furniture following renovation of Nobel House, London"
Defra,Core Defra,21/02/2013,Clearing Construction in Progress (Building Works),Chief Operating Officer DG,Interserve (Facilities Mngmnt) Ltd,FI00023369,"165,552.00","Supply of furniture following renovation of Nobel House, London"
Defra,Core Defra,19/02/2013,Current Grants UK,Policy Delivery DG,Wiltshire Council,90153673,"1,470,000.00",Grant in Aid - Swindon and Wiltshire Rural Growth Network Pilot funding
Defra,Core Defra,05/02/2013,Other Current Payments E,Policy Delivery DG,Animal Health and Veterinary Laboratories Agency,5000022712,"60,230.51",Animal Health - Willdife Licensing costs for December 2012
Defra,Core Defra,15/02/2013,Other Current Payments E,Policy Delivery DG,Cabi Bioscience (Egham),SI5392,"110,500.00","Biocontrol of floating pennywort, crassula and Himalayan balsam"
Defra,Core Defra,05/02/2013,Other Current Payments E,Policy Delivery DG,Animal Health and Veterinary Laboratories Agency,5000022670,"76,653.46",Animal Health - Willdife Licensing costs for November 2012
Defra,Core Defra,19/02/2013,Other Current Payments (Evidence R&D),Policy Delivery DG,A D A S UK Ltd,1.40213E+12,"25,363.20","Research costs associated with the ""Horticultural crops grown under protection"" initiative"
Defra,Core Defra,25/02/2013,Other Current Payments (Evidence R&D),Policy Delivery DG,Food & Environment Research Agency,ERS-513049-42920,"30,275.34",Research and development payments - January and February 2013
Defra,Core Defra,25/02/2013,Other Current Payments (Evidence R&D),Policy Delivery DG,Food & Environment Research Agency,ERS-513058-42924,"59,851.20","Development and improvement of methods for the Wildlife Incident Investigation Scheme - Nov, Dec 12 and Jan, Feb 13 payments"
Defra,Core Defra,01/02/2013,Other Current Payments (Evidence R&D),Policy Delivery DG,Brook Lyndhurst Ltd,763,"29,873.25",Monitoring and evaluation of Defra's Reward and Recognition Scheme 2012/13
Defra,Core Defra,05/02/2013,Other Current Payments (Evidence R&D),Policy Delivery DG,Ricardo-A E A Ltd,6150190,"53,163.92",Environmental Monitoring Services Costs
Defra,Core Defra,27/02/2013,Other Current Payments (Evidence R&D),Policy Delivery DG,University Of Bristol,ERS-12-FEB-13-42790,"35,463.41",Costs associated with the evaluation of Meat Chicken Regulations Feb 13
Defra,Core Defra,19/02/2013,Other Current Payments (Evidence R&D),Policy Delivery DG,Sac Commercial Ltd,1.30214E+12,"63,636.00",Reaseach Costs: Investigation of 13-17 year olds' attitudes and behaviour to animals
Defra,Core Defra,19/02/2013,Other Current Payments (Evidence R&D),Policy Delivery DG,The Royal Veterinary College,1.30214E+12,"66,936.00",Research Costs: Animal Welfare
Defra,Core Defra,01/02/2013,Telephone Call Charges (C),Chief Operating Officer DG,Level 3 Communications UK Limited,80319225,"77,505.16",Telephony Charges
Defra,Core Defra,07/02/2013,FM Projects Non Capital Works,Chief Operating Officer DG,Interserve (Facilities Mngmnt) Ltd,FI00023352,"43,022.43",Costs incurred for the undertaking of estates maintenance projects over multiple sites; invoiced for in February 2013
Defra,Core Defra,15/02/2013,FM Projects Non Capital Works,Chief Operating Officer DG,Interserve (Facilities Mngmnt) Ltd,FI00023351,"285,904.56",Costs incurred for the undertaking of estates maintenance projects over multiple sites; invoiced for in February 2013
Defra,Core Defra,11/02/2013,Estates Reactive Maintenance,Chief Operating Officer DG,Interserve (Facilities Mngmnt) Ltd,FI00023349,"165,524.34",Costs incurred for the undertaking of estates maintenance projects over multiple sites; invoiced for in February 2013
Defra,Core Defra,11/02/2013,FM Projects Non Capital Works,Chief Operating Officer DG,Interserve (Facilities Mngmnt) Ltd,FI00023360,"76,726.14","Costs associated with renovation of Nobel House, London "
Defra,Core Defra,13/02/2013,Estates IFM Core Maintenance,Chief Operating Officer DG,Interserve (Facilities Mngmnt) Ltd,FI00023028,"2,051,217.55",Facilities Management contract fee for period 01/04/2012 - 31/03/2013
Defra,Core Defra,13/02/2013,Reactive Element of Core IFM fee,Chief Operating Officer DG,Interserve (Facilities Mngmnt) Ltd,FI00023029,"576,352.07",Facilities Management Reactive Maintenance costs for period 01/04/2012 - 31/03/2013
Defra,Core Defra,19/02/2013,Estates Reactive Maintenance,Chief Operating Officer DG,Interserve (Facilities Mngmnt) Ltd,FI00023350,"161,454.95",Costs incurred for the undertaking of estates maintenance projects over multiple sites; invoiced for in February 2013
Defra,Core Defra,05/02/2013,PUS Servicing & repairs (C),Chief Operating Officer DG,Willis,11540188,"33,464.20",Servicing and repair costs for the Private User Scheme fleet of vehicles
Defra,Core Defra,25/02/2013,Reallocation of Pay Costs,Chief Operating Officer DG,Rural Payments Agency,333507,"330,787.70",Recharge of staffing loans (wages) to Rural Payments Agency
Defra,Core Defra,19/02/2013,Purchase of Statistical Data,Chief Operating Officer DG,Cabinet Office,250006214,"46,741.20",Costs incurred for the adminstration of the 2012 staff survey
Defra,Core Defra,20/02/2013,Current Transfers Abroad UK,Policy Delivery DG,United Nations Environment Prog,1.80213E+13,"256,559.25",Chemicals Regulation - International Subscription
Defra,Core Defra,11/02/2013,Other Current Payments (Evidence R&D),Policy Delivery DG,Natural Environ Research Council,57511,"31,579.00",Environmental Nanosciences Initiative contribution 2012/13
Defra,Core Defra,27/02/2013,Other Current Payments (Evidence R&D),Policy Delivery DG,Cranfield University,1366580,"35,012.40",Research Costs: Environment and Health related Science Policy 
Defra,Core Defra,20/02/2013,Current Transfers Abroad UK,Policy Delivery DG,United Nations Environment Prog,180213,"119,035.84",Chemicals Regulation - International Subscription
Defra,Core Defra,21/02/2013,Other Current Payments (Evidence R&D),Policy Delivery DG,Ricardo-A E A Ltd,6150634,"31,090.80",Research Costs: UK Persistent Organic Pollutants Multimedia Emissions Inventory - Quarter 3 2012/13
Defra,Core Defra,15/02/2013,Other Current Payments E,Policy Delivery DG,United Nations Environment Prog,FUND9340UK040213,"150,247.30",Chemicals Regulation - International Subscription
Defra,Core Defra,20/02/2013,Other Current Payments (Evidence R&D),Policy Delivery DG,Bio Intelligence Service,1210023,"30,000.00",Bio Intelligence Service Payment Fund
Defra,Core Defra,01/02/2013,Other Current Payments (Evidence R&D),Policy Delivery DG,Trace Wildlife Forensics Network Ltd,T13013001,"40,000.00",Sustainability Research Costs: Geographic Tracability of fish
Defra,Core Defra,15/02/2013,Evidence Non R&D,Policy Delivery DG,Grant Thornton UK LLP,6705346,"62,570.00",Research Costs: Barriers to UK food and drink exports
Defra,Core Defra,15/02/2013,Evidence Non R&D,Policy Delivery DG,Grant Thornton UK LLP,6705118,"44,900.00",Research Costs: Barriers to UK food and drink exports
Defra,Core Defra,27/02/2013,Other Current Payments (Evidence R&D),Policy Delivery DG,Risk Solutions,1889,"120,400.00",Research Costs: Assessment of Water Abstraction Reforms
Defra,Core Defra,15/02/2013,Other Current Payments (Evidence R&D),Policy Delivery DG,A D A S UK Ltd,RIRP067251,"140,396.00",Research Costs: Monitoring the effectiveness of the nitrates action programme in Nitrate Vulnerable Zones
Defra,Core Defra,11/02/2013,Capital Grant to NDPB,Policy Delivery DG,The Coal Authority,CA102099,"917,548.80",2012/13 Remediation Work costs for the abandoned metal mine at Saltburn Gill
Defra,Core Defra,05/02/2013,Other Current Payments E,Policy Delivery DG,The Coal Authority,CA102100,"294,972.00",Payment to the Coal Authority under Memorandum of Understanding for feasibility studies for remediation of minewaters
Defra,Core Defra,27/02/2013,Other Current Payments (Evidence R&D),Policy Delivery DG,Risk Solutions,1890,"389,555.98",2012/13 Costs for the Contract for Assessment of Water Abstraction Reforms
Defra,Core Defra,25/02/2013,Other Current Payments (Evidence R&D),Policy Delivery DG,Vivid Economics Ltd,22222152DEF190213,"48,055.20",Research Costs: Economic Impact of Drought
Defra,Core Defra,13/02/2013,Other Current Payments E,Policy Delivery DG,Cascade Consulting (Environment & Planning) Ltd,2566,"108,250.85",Project Costs: Evaluation of the catchment based approach (Pilot) for the Environment Agency
Defra,Core Defra,19/02/2013,Grant-in Aid Payments,Policy Delivery DG,Natural England,8000011016,"157,530.00",Grant in Aid payment to Natural England for the Catchment Sensitive Farming Programme
Defra,Core Defra,25/02/2013,Other Current Payments (Evidence R&D),Policy Delivery DG,Vivid Economics Ltd,22042152DEF310113,"96,109.20",Research Costs: Economic Impact of Drought in England
Defra,Core Defra,21/02/2013,Other Current Payments (Evidence R&D),Policy Delivery DG,Risk Solutions,140213,"40,658.66",Research Costs: Evidence on Impacts of Abstraction Reform Options On the Environment and Abstractors 2012/13
Defra,Core Defra,05/02/2013,Other Current Payments (Evidence R&D),Policy Delivery DG,Marine Management Organisation,6000005845,"102,768.85","Project Costs: Monitoring North Sea cod, and Western Isles sole fishing quotas using CCTV, and remote electronic monitoring"
Defra,Core Defra,27/02/2013,Other Current Payments (Evidence R&D),Policy Delivery DG,The Pirbright Institute,ERS-512912-43006,"95,472.44",Research Costs: Prevention of Foot and Mouth Disease
Defra,Core Defra,27/02/2013,Other Current Payments (Evidence R&D),Policy Delivery DG,The Pirbright Institute,ERS-512921-43007,"236,019.56",Research Costs: Orbivirus molecular epidemiology studies and development of diagnostic assay systems
Defra,Core Defra,19/02/2013,Evidence Non R&D,Policy Delivery DG,B B S R C,16500,"1,887,000.00",Project Costs: Provision of the National Reference Laboratory Requirements to Defra 2012/13
Defra,Core Defra,05/02/2013,Other Current Payments E,Policy Delivery DG,Health & Safety Commission & Executive,87925,"124,367.98",Research Costs: Disease prevention 2012/13
Defra,Core Defra,07/02/2013,Other Current Payments (GB),Policy Delivery DG,Bat Conservation Trust,12122,"45,338.40",Project Costs: Funding of the Bat Conservation Trust's Helpline
Defra,Core Defra,25/02/2013,Other Current Payments (Evidence R&D),Policy Delivery DG,Animal Health and Veterinary Laboratories Agency,ERS-513435-42985,"74,814.03",Research Costs: Disease prevention in poultry 2012/13
Defra,Core Defra,25/02/2013,Other Current Payments (Evidence R&D) (Agency),Policy Delivery DG,Animal Health and Veterinary Laboratories Agency,ERS-512963-42964,"112,915.50",Research Costs: Tools to support arthropod-borne virus investigation Dec 12 to�Feb 13
Defra,Core Defra,25/02/2013,Evidence Non R&D,Policy Delivery DG,Animal Health and Veterinary Laboratories Agency,ERS-513420-42984,"233,168.75",Project Costs: Surveillance for notable diseases
Defra,Core Defra,19/02/2013,Other Current Payments (GB),Policy Delivery DG,Rural Payments Agency,333349,"337,316.76",Project Costs: Sheep and Goat Inspections 2012/13
Defra,Core Defra,25/02/2013,Evidence Non R&D,Policy Delivery DG,Animal Health and Veterinary Laboratories Agency,ERS-511810-42632,"233,168.75",Project Costs: Surveillance for notable diseases
Defra,Core Defra,27/02/2013,Other Current Payments (Evidence R&D),Policy Delivery DG,The Pirbright Institute,ERS-512928-43013,"34,804.00",Research Costs: Tracing the origins of foot-and-mouth disease outbreaks
Defra,Core Defra,25/02/2013,Other Current Payments (Evidence R&D) (Agency),Policy Delivery DG,Food & Environment Research Agency,ERS-512973-42915,"37,093.33",Research Costs: Badger Survey of England and Wales Feb 13
Defra,Core Defra,25/02/2013,Evidence Non R&D,Policy Delivery DG,Animal Health and Veterinary Laboratories Agency,ERS-513015-42982,"37,866.30",Research Costs: Disease prevention in pigs 2012/13
Defra,Core Defra,05/02/2013,Payments to Agencies GB,Policy Delivery DG,Animal Health and Veterinary Laboratories Agency,5000022661,"526,896.75",Project Costs: Funding to AHVLA for work carried out at border control sites
Defra,Core Defra,25/02/2013,Other Current Payments (Evidence R&D) (Agency),Policy Delivery DG,Animal Health and Veterinary Laboratories Agency,ERS-512863-42949,"51,067.16",Research Costs: Studies of natural and experimental Transmissible Spongiform Encephalopathies - Feb 13
Defra,Core Defra,25/02/2013,Other Current Payments (Evidence R&D) (Agency),Policy Delivery DG,Animal Health and Veterinary Laboratories Agency,ERS-512859-42947,"49,578.50",Project Costs: Prevention of disease arising from importing sheep
Defra,Core Defra,25/02/2013,Other Current Payments (Evidence R&D) (Agency),Policy Delivery DG,Animal Health and Veterinary Laboratories Agency,ERS-512861-42990,"31,053.50",Research Costs: Pathology and Pathogenesis of prion diseases - Feb 13
Defra,Core Defra,27/02/2013,Other Current Payments (Evidence R&D),Policy Delivery DG,University Of Edinburgh,ERS-512845-42795,"60,304.00",Research Costs: Studies on the environmental persistence of Transmissible spongiform encephalopathies infectivity
Defra,Core Defra,27/02/2013,Other Current Payments (Evidence R&D),Policy Delivery DG,The Pirbright Institute,ERS-512923-43010,"57,810.83",Development of novel foot and mouth vaccines
Defra,Core Defra,27/02/2013,Other Current Payments (Evidence R&D),Policy Delivery DG,The Pirbright Institute,ERS-512913-43008,"27,600.58",African swine fever virus: Improvement of diagnostic tests and vaccine development - February 2013
Defra,Core Defra,05/02/2013,Payments to Agencies GB,Policy Delivery DG,Animal Health and Veterinary Laboratories Agency,5000022703,"390,709.04",Border control charges - December 2012
Defra,Core Defra,27/02/2013,Other Current Payments (Evidence R&D),Policy Delivery DG,The Pirbright Institute,ERS-512964-43014,"31,616.00",Understanding and predicting the spread of vector and aerosol-borne livestock pathogens in the UK - February 2013
Defra,Core Defra,01/02/2013,Other Current Payments (Evidence R&D),Policy Delivery DG,University Of Cambridge,EW9058336,"33,988.93",Cattle vaccination for the control of bovine Tuberculosis (bTB) 
Defra,Core Defra,27/02/2013,Other Current Payments (Evidence R&D),Policy Delivery DG,The Pirbright Institute,ERS-512924-43011,"27,662.33",Development of methods to enhance implementation of foot and mouth disease virus control measures - February 2013
Defra,Core Defra,25/02/2013,Other Current Payments (Evidence R&D) (Agency),Policy Delivery DG,Animal Health and Veterinary Laboratories Agency,ERS-512976-42969,"134,403.08",Continued vaccine development: Improving BCG and developing non-sensitising vaccines for cattle - February 2013
Defra,Core Defra,25/02/2013,Other Current Payments (Evidence R&D) (Agency),Policy Delivery DG,Animal Health and Veterinary Laboratories Agency,ERS-512894-42992,"28,280.33",Selection of Extended Spectrum Beta Lactamase resistance in calves fed waste milk containing antibiotic residues - February 2013
Defra,Core Defra,25/02/2013,Other Current Payments (Evidence R&D),Policy Delivery DG,B B S R C,ERS-512961-42748,"55,904.50","Emerging and Major Infectious Diseases of Livestock - Molecular studies of orbivirus transmission, epidemiology and diagnostics - February 2013"
Defra,Core Defra,27/02/2013,Other Current Payments (Evidence R&D),Policy Delivery DG,University Of Edinburgh,ERS-512849-42798,"27,119.75",Carrier state: do sheep of resistant PrP genotypes become sub-clinically infected when exposed to scrapie - February 2013
Defra,Core Defra,25/02/2013,Other Current Payments (Evidence R&D) (Agency),Policy Delivery DG,Animal Health and Veterinary Laboratories Agency,ERS-512978-42970,"61,065.75","Antigen mining, Differentiation of Infected and Vaccinated Animals assays and other diagnostic approaches - February 13"
Defra,Core Defra,11/02/2013,Other Current Payments (Evidence R&D),Policy Delivery DG,B B S R C,16247,"26,494.74",Development of Rationally Attenuated live Vaccines for Effective Control of Infectious Bronchitis
Defra,Core Defra,05/02/2013,Other Current Payments (Evidence R&D),Policy Delivery DG,B B S R C,16245,"63,957.72",Agronomic Processes to Optimise Galanthamine Content of Daffodil Biomass
Defra,Core Defra,25/02/2013,Other Current Payments (Evidence R&D),Policy Delivery DG,Food & Environment Research Agency,ERS-512772-42894,"183,632.17",Sustainable Farming Systems and Biodiversity grant
Defra,Core Defra,13/02/2013,Capital LA Grant E,Policy Delivery DG,South Northamptonshire Council,40213,"50,000.00",Air quality grant
Defra,Core Defra,13/02/2013,Capital LA Grant E,Policy Delivery DG,Sheffield City Council,40213,"75,000.00",Air quality grant
Defra,Core Defra,13/02/2013,Capital LA Grant E,Policy Delivery DG,Sefton Metropolitan Borough Council.,40213,"31,750.00",Air quality grant
Defra,Core Defra,13/02/2013,Capital LA Grant E,Policy Delivery DG,Chichester District Council,40213,"51,430.00",Air quality grant
Defra,Core Defra,13/02/2013,Capital LA Grant E,Policy Delivery DG,Slough Borough Council,40213,"78,000.00",Air quality grant
Defra,Core Defra,13/02/2013,Capital LA Grant E,Policy Delivery DG,Lancaster City Council,40213,"30,000.00",Air quality grant
Defra,Core Defra,13/02/2013,Capital LA Grant E,Policy Delivery DG,Colchester Borough Council,40213,"87,000.00",Air quality grant
Defra,Core Defra,13/02/2013,Capital LA Grant E,Policy Delivery DG,South Oxfordshire District Council,40213,"60,000.00",Air quality grant
Defra,Core Defra,13/02/2013,Capital LA Grant E,Policy Delivery DG,London Borough Of Waltham Forest,40213,"51,700.00",Air quality grant
Defra,Core Defra,13/02/2013,Capital LA Grant E,Policy Delivery DG,Newcastle City Council,40213,"40,000.00",Air quality grant
Defra,Core Defra,21/02/2013,Evidence Non R&D,Policy Delivery DG,Ricardo-A E A Ltd,6150802,"26,196.00",Baseline measurements: UK Stratospheric Ozone and Spectral Ultraviolet
Defra,Core Defra,25/02/2013,Other Current Payments (Evidence R&D),Policy Delivery DG,Centre For Ecology & Hydrology,ERS-512473-42830,"28,096.00",Operation of the UK Eutrophying & Acidifying Atmospheric Pollutants
Defra,Core Defra,21/02/2013,Evidence Non R&D,Policy Delivery DG,National Physical Laboratory,114003,"25,847.30",Heavy metal monitoring - October 2012
Defra,Core Defra,07/02/2013,Evidence Non R&D,Policy Delivery DG,Ricardo-A E A Ltd,6.1505E+13,"106,104.00",UK auto and non-auto hydrocarbons - October to December 2012
Defra,Core Defra,05/02/2013,Other Current Payments (Evidence R&D),Policy Delivery DG,University Of Birmingham,210I07658,"27,228.75",Use of Chemical Composition & Molecular Makers to infer the Sources of Airborne Particulate
Defra,Core Defra,21/02/2013,Evidence Non R&D,Policy Delivery DG,National Physical Laboratory,115151,"28,107.30",Peer review of a research project - Monitoring and evaluation of Nature Improvement Areas
Defra,Core Defra,05/02/2013,Other Current Payments (Evidence R&D),Policy Delivery DG,Ricardo-A E A Ltd,6.15015E+13,"50,995.00",UK National Atmospheric Emissions Inventory 
Defra,Core Defra,21/02/2013,Evidence Non R&D,Policy Delivery DG,National Physical Laboratory,114783,"29,067.30",Heavy metal monitoring   
Defra,Core Defra,05/02/2013,Other Current Payments (Evidence R&D),Policy Delivery DG,Ricardo-A E A Ltd,6150139,"59,962.00",UK Ambient Air Quality Assessments - November 2012
Defra,Core Defra,05/02/2013,Evidence Non R&D,Policy Delivery DG,Ricardo-A E A Ltd,6150481,"26,196.00",Baseline measurements: UK Stratospheric Ozone and Spectral Ultraviolet - December 2012
Defra,Core Defra,05/02/2013,IBM Base Services Control,Policy Delivery DG,Ricardo-A E A Ltd,6150317,"58,252.00",Provision of pollutant release and transfer register charges
Defra,Core Defra,05/02/2013,Other Current Payments (Evidence R&D),Policy Delivery DG,Ricardo-A E A Ltd,6.15052E+13,"50,995.00",UK National Atmospheric Emissions Inventory - December 2012
Defra,Core Defra,11/02/2013,Evidence Non R&D,Policy Delivery DG,Hepworth Acoustics Ltd,C0063,"79,437.21",Calculation of Noise Levels from Road & Rail Sources
Defra,Core Defra,07/02/2013,Evidence Non R&D,Policy Delivery DG,Ricardo-A E A Ltd,6150378,"77,848.00",Quality Assurance for the Automatic Urban and Rural Network (2008-2011)
Defra,Core Defra,05/02/2013,Other Current Payments (Evidence R&D),Policy Delivery DG,Ricardo-A E A Ltd,6150457,"59,962.00",UK Ambient Air Quality Assessments 2010-2013 - December 2012
Defra,Core Defra,13/02/2013,Evidence Non R&D,Policy Delivery DG,Bureau Veritas UK Ltd,13001503,"141,453.00",Automatic Urban & Rural Network fees - December 2012
Defra,Core Defra,07/02/2013,Other Current Payments (Evidence R&D),Policy Delivery DG,Ricardo-A E A Ltd,6150806,"49,984.00",Eutrophying & Acidfying Atmospheric Pollutants 
Defra,Core Defra,21/02/2013,Evidence Non R&D,Policy Delivery DG,National Physical Laboratory,114782,"32,003.70",Heavy metal monitoring   
Defra,Core Defra,11/02/2013,Other Current Payments (Evidence R&D),Policy Delivery DG,Ricardo-A E A Ltd,6150824,"50,995.00",UK National Atmospheric Emissions Inventory 
Defra,Core Defra,05/02/2013,Evidence Non R&D,Policy Delivery DG,Ricardo-A E A Ltd,6150127,"77,848.00",Quality assurance and quality control services - November 2012
Defra,Core Defra,25/02/2013,Evidence Non R&D,Policy Delivery DG,Department Of Energy and Climate Change,1100004603,"78,413.00",Payment to DECC for Adaptation Sub-Committee for 2012-13 Grant-in-Aid
Defra,Core Defra,19/02/2013,Evidence Non R&D,Policy Delivery DG,Department Of Energy and Climate Change,1100004602,"54,585.00",Payment to DECC for Adaptation Sub-Committee for 2012-13 Grant-in-Aid - December 2012
Defra,Core Defra,21/02/2013,Other Current Payments (Evidence R&D),Policy Delivery DG,Ricardo-A E A Ltd,6150575,"123,014.00",Translation of marine conservation zones consultation executive summary into Welsh
Defra,Core Defra,21/02/2013,Other Current Payments (Evidence R&D),Policy Delivery DG,Ricardo-A E A Ltd,6150790,"36,817.00","Programme of Research Preparedness, Adaptation & Risk "
Defra,Core Defra,05/02/2013,Other Current Payments (Evidence R&D),Policy Delivery DG,Frontier Economics Ltd,6040,"46,323.00",Economics of Climate Resilience 2012/13
Defra,Core Defra,13/02/2013,Evidence Non R&D,Policy Delivery DG,SKM Enviros,JW02736,"28,915.36",WasteDataFlow administration and management - January 2013
Defra,Core Defra,05/02/2013,Current Grants E,Policy Delivery DG,Environment Agency,1150009,"199,000.00",Funding for Maintenance of Flycapture Database
Defra,Core Defra,07/02/2013,Grant-in Aid Payments,Policy Delivery DG,S E P A,9058397,"517,000.00",Waste Shipments to Scottish Environment Protection Agency
Defra,Core Defra,05/02/2013,Evidence Non R&D,Policy Delivery DG,SKM Enviros,JW02696,"28,915.36",Waste Data Flow administration and management - December 2012
Defra,Core Defra,01/02/2013,Application Services/Applications On-Boarding,Policy Delivery DG,IBM United Kingdom Ltd,5801130351,"29,587.84",Logical Data Model Consultancy; Time and materials
Defra,Core Defra,05/02/2013,Other Current Payments (Evidence R&D),Policy Delivery DG,Animal Health and Veterinary Laboratories Agency,5000022437,"32,150.00",Extension of capability and resilience for the UK Water Industry Research contract
Defra,Core Defra,25/02/2013,Other Current Payments (Evidence R&D),"Strategy, Evidence and Customers DG",G H K Consulting Ltd,30405557,"54,000.00",The Red Tape Challenge review - Smarter Environmental Regulation for a Greener Economy
Defra,Core Defra,05/02/2013,Publicity Campaigns,"Strategy, Evidence and Customers DG",Cabinet Office RM Shared Services,250006159,"45,600.00",Central Office of Information (COI) News and PR Services - April 2011 to March 2012 ( last quarter to pay)
Defra,Core Defra,11/02/2013,Inwards Secondments,"Strategy, Evidence and Customers DG",Office Of Fair Trading,GEN000793,"72,761.10",Reimbursement of salary costs for secondee
Defra,Core Defra,19/02/2013,Work package/WPO Implementation,Chief Operating Officer DG,IBM United Kingdom Ltd,5801130681,"31,721.51",Lumension device control - December 2012
Defra,Core Defra,07/02/2013,Work package/WPO Implementation,Chief Operating Officer DG,IBM United Kingdom Ltd,5812120960,"31,722.00",Lumension device control - December 2012
Defra,Core Defra,21/02/2013,Other Current Payments E,Chief Operating Officer DG,Foden Grealy Limited,505375,"40,890.00",Defra Network Open Working Programme - January 2013
Defra,Core Defra,01/02/2013,Grant-in Aid Payments,Chief Operating Officer DG,Royal Botanic Gardens Kew,KEWGIA111213,"2,000,000.00",Grant in Aid payment to The Royal Botanical Gardens at Kew
Defra,Core Defra,11/02/2013,Redfern Suspense,Central Finance Group,Redfern Travel Ltd,48039,"116,699.86",Official travel and accommodation costs for December 2012
Defra,Core Defra,05/02/2013,Current Grants E,Policy Delivery DG,Isle of Wight AONB,280113,"79,271.00",2012/13 Area of Outstanding Natural Beauty Grant in Aid Payment  - Isle of Wight
Defra,Core Defra,01/02/2013,Current Grants E,Policy Delivery DG,Northumberland Coast AONB,250113,"80,682.00",2012/13 Area of Outstanding Natural Beauty Grant in Aid Payment  - Northumberland Coast
Defra,Core Defra,01/02/2013,Current Grants E,Policy Delivery DG,Dorset County Council,1800227928,"262,338.00",2012/13 Area of Outstanding Natural Beauty Grant in Aid Payment  - Dorset County Council
Defra,Core Defra,13/02/2013,Current Grants E,Policy Delivery DG,Cranborne Chase and West Wiltshire Downs AONB,300113,"149,053.45",2012/13 Area of Outstanding Natural Beauty Grant in Aid Payment - Cranborne Chase and West Wiltshire Downs
Defra,Core Defra,11/02/2013,Current Grants E,Policy Delivery DG,Arnside and Silverdale AONB,160113,"106,070.41",2012/13 Area of Outstanding Natural Beauty Grant in Aid Payment - Arnside and Silverdale
Defra,Core Defra,05/02/2013,Current Grants E,Policy Delivery DG,Tamar Valley AONB,290113,"141,631.06",2012/13 Area of Outstanding Natural Beauty Grant in Aid Payment - Tamar Valley
Defra,Core Defra,05/02/2013,Current Grants E,Policy Delivery DG,North Pennines AONB Partnership,230113,"262,443.00",2012/13 Area of Outstanding Natural Beauty Grant in Aid Payment - North Pennines
Defra,Core Defra,01/02/2013,Current Grants E,Policy Delivery DG,Cornwall AONB Unit,210113,"137,741.66",2012/13 Area of Outstanding Natural Beauty Grant in Aid Payment - Cornwall
Defra,Core Defra,05/02/2013,Current Grants E,Policy Delivery DG,Cannock Chase AONB,280113,"99,746.84",2012/13 Area of Outstanding Natural Beauty Grant in Aid Payment - Cannock Chase
Defra,Core Defra,13/02/2013,Current Grants E,Policy Delivery DG,Suffolk Coast & Heaths AONB,310113,"134,628.00",2012/13 Area of Outstanding Natural Beauty Grant in Aid Payment - Suffolk Coast and Heaths
Defra,Core Defra,13/02/2013,Current Grants E,Policy Delivery DG,North Devon Coast AONB,310113,"72,143.47",2012/13 Area of Outstanding Natural Beauty Grant in Aid Payment - North Devon Coast
Defra,Core Defra,05/02/2013,Grant-in Aid Payments,Policy Delivery DG,The National Forest Co,280113,"144,884.00",2012/13 Grant in Aid payment - National Forest Company February 2013
Defra,Core Defra,05/02/2013,Current Grants E,Policy Delivery DG,East Sussex County Council (High Weald AONB),250113,"220,553.00",2012/13 Area of Outstanding Natural Beauty Grant in Aid Payment - High Weald
Defra,Core Defra,13/02/2013,Current Grants E,Policy Delivery DG,North Wessex Downs AONB,300113,"178,350.47",2012/13 Area of Outstanding Natural Beauty Grant in Aid Payment - North Wessex Downs
Defra,Core Defra,13/02/2013,Current Grants E,Policy Delivery DG,Lincolnshire Wolds AONB.,10213,"97,488.00",2012/13 Area of Outstanding Natural Beauty Grant in Aid Payment - Lincolnshire Wolds
Defra,Core Defra,13/02/2013,Current Grants E,Policy Delivery DG,Blackdown Hills AONB,311212,"111,141.05",2012/13 Area of Outstanding Natural Beauty Grant in Aid Payment - Blackdown Hills
Defra,Core Defra,01/02/2013,Current Grants E,Policy Delivery DG,North Yorkshire County Council,23-Jan-13,"100,227.00",2012/13 Area of Outstanding Natural Beauty Grant in Aid Payment - Howardian Hills 
Defra,Core Defra,11/02/2013,Current Grants E,Policy Delivery DG,Shropshire Hills AONB,290113,"128,384.00",2012/13 Area of Outstanding Natural Beauty Grant in Aid Payment - Shropshire Hills
Defra,Core Defra,05/02/2013,Current Grants E,Policy Delivery DG,Norfolk Coast AONB,280113,"101,856.95",2012/13 Area of Outstanding Natural Beauty Grant in Aid Payment - Norfolk Coast
Defra,Core Defra,01/02/2013,Current Grants E,Policy Delivery DG,Chichester Harbour AONB,240113,"120,029.00",2012/13 Area of Outstanding Natural Beauty Grant in Aid Payment - Chichester Harbour
Defra,Core Defra,13/02/2013,Current Grants E,Policy Delivery DG,Forest of Bowland AONB,310113,"156,190.82",2012/13 Area of Outstanding Natural Beauty Grant in Aid Payment - Forest of Bowland
Defra,Core Defra,11/02/2013,Current Grants E,Policy Delivery DG,Surrey Hills AONB,300113,"150,549.75",2012/13 Area of Outstanding Natural Beauty Grant in Aid Payment - Surrey Hills
Defra,Core Defra,05/02/2013,Current Grants E,Policy Delivery DG,Solway Coast AONB Partnership,240113,"108,744.82",2012/13 Area of Outstanding Natural Beauty Grant in Aid Payment - Solway Coast
Defra,Core Defra,01/02/2013,Current Grants E,Policy Delivery DG,Wye Valley AONB,310113,"107,188.00",2012/13 Area of Outstanding Natural Beauty Grant in Aid Payment - Wye Valley
Defra,Core Defra,15/02/2013,Evidence Non R&D,Policy Delivery DG,United Nations Environment Prog,120213,"406,000.00","International Biodiversity, Ecosystems and Evidence grant"
Defra,Core Defra,19/02/2013,Current Grants E,Policy Delivery DG,University Of Exeter,240113,"35,827.00",Darwin Initiative Grant Payment - University of Exeter - Implementing a Darwin Initiative Biodiversity Action Plan for Ascension Island (2012-2015)
Defra,Core Defra,27/02/2013,Current Transfers Abroad UK,Policy Delivery DG,United Nations Environment Prog,UNEPCMS,"35,000.00","International Biodiversity, Ecosystems and Evidence Darwin Initiative Grant Payment"
Defra,Core Defra,19/02/2013,Current Grants E,Policy Delivery DG,International Inst For Env & Dev,4.02133E+11,"34,972.50",Darwin Initiative Grant Payment - International Institute for Environment and Development - Mainstreaming biodiversity and development (2012-2015) October-December 2012
Defra,Core Defra,11/02/2013,Evidence Non R&D,Policy Delivery DG,Food & Environment Research Agency,F0027051,"217,952.00",FERA projects - Memorandum of Understanding Quarter 3 01/10/2012 to 31/12/2012
Defra,Core Defra,19/02/2013,Current Grants E,Policy Delivery DG,International Inst For Env & Dev,40213,"33,172.00",Darwin Initiative Grant Payment - International Institute for Environment and Development - Building capacity for conservation through poverty alleviation (2012-2015) October-December 2012
Defra,Core Defra,25/02/2013,Other Current Payments E,Policy Delivery DG,Centre For Ecology & Hydrology,7060004002,"34,434.35","Biological recording, analysis and interpretation 2011-12"
Defra,Core Defra,19/02/2013,Current Grants E,Policy Delivery DG,Fauna & Flora International,10213,"26,102.00",Darwin Initiative Grant Payment - Fauna & Flora International - Integrating Batwa cultural values into national parks management in Uganda (2012-2015) October - December 2012
Defra,Core Defra,19/02/2013,Current Grants E,Policy Delivery DG,University Of Exeter,24011335827,"35,827.00",Darwin Initiative Grant Payment - University of Exeter - Implementing a Darwin Initiative Biodiversity Action Plan for Ascension Island (2012-2015) October - December 2012
Defra,Core Defra,21/02/2013,Current Grants E,Policy Delivery DG,Waste & Resources Action Programme,FEB1150213,"3,443,075.00",Grant Payment  - Waste & Resources Action Programme
Defra,Core Defra,01/02/2013,Application Services/Applications Delivery,Chief Operating Officer DG,IBM United Kingdom Ltd,5810120897,"43,092.26",Development of standard desktop builds
Defra,Core Defra,11/02/2013,Work package/WPO Implementation,Chief Operating Officer DG,IBM United Kingdom Ltd,5810121266,"36,127.83",IT Technology Refresh - September 2012
Defra,Core Defra,01/02/2013,Work package/WPO Implementation,Chief Operating Officer DG,IBM United Kingdom Ltd,5801130520,"43,156.43",IT Technology Refresh 
Defra,Core Defra,19/02/2013,Work package/WPO Implementation,Chief Operating Officer DG,IBM United Kingdom Ltd,5801131262,"27,355.73",Websphere Process Choreographer Replacement
Defra,Core Defra,01/02/2013,Application Services/Applications Delivery,Chief Operating Officer DG,IBM United Kingdom Ltd,5812122014,"51,470.64",Anti Virus Technology Refresh
Defra,Core Defra,27/02/2013,Contractor - Management Cover,Chief Operating Officer DG,Detica Ltd,1052490,"82,620.00",Costs of consultant providing specialist Information Assurance and IT security advice - Oct 12 - Jan 13
Defra,Core Defra,21/02/2013,Other Current Payments E,Policy Delivery DG,Forest Research Agency,R0007373,"41,250.00",Flood defence work for Pickering phase 2 2011/12 - Slowing the flow at Pickering 
Defra,Core Defra,05/02/2013,Grant-in Aid Payments,Policy Delivery DG,Environment Agency,EAGIAFEB13,"50,000,000.00",Grant in Aid Payment 2012/13 - EA Environmental Protection 
Defra,Core Defra,19/02/2013,Current Grants - Local Authorities,Policy Delivery DG,Dept For Communities & Local Gov,40213,"3,000,000.00",Local Services Support Grant Payment February 2013
Defra,Core Defra,19/02/2013,Other Current Payments (GB),Policy Delivery DG,Food & Environment Research Agency,F0027219,"577,700.00",Memorandum of Understanding October to December 2012
Defra,Core Defra,27/02/2013,Programme Income (E),Policy Delivery DG,Department Of Agriculture & Rur Dev,260213,"3,985,175.24",Payment of 1st tranche of EU funding to DARDNI for the 2011 TB Eradication plan
Defra,Core Defra,27/02/2013,Other Current Payments (Evidence R&D),Policy Delivery DG,Zoological Society Of London.,ERS-512970-42935,"62,778.00",A study to examine the interactions between cattle and badgers - AHVLA� February 2013
Defra,Core Defra,05/02/2013,Evidence Non R&D,Policy Delivery DG,Animal Health and Veterinary Laboratories Agency,5000022583,"243,250.00",AHVLA Contract L (BTB) covering period FYR 2012-2013
Defra,Core Defra,27/02/2013,Programme Income (E),Policy Delivery DG,Welsh Government,260213,"2,864,894.29",Payment of 1st tranche of EU funding to Welsh Government for the 2011 TB Eradication plan
Defra,Core Defra,11/02/2013,Evidence Non R&D,Policy Delivery DG,Food & Environment Research Agency,F0027222,"59,516.20",Memorandum of Understanding Badger Vaccine Deployment - October to December 2012
Defra,Core Defra,25/02/2013,Other Current Payments (Evidence R&D) (Agency),Policy Delivery DG,Animal Health and Veterinary Laboratories Agency,ERS-512969-42968,"41,206.00",An exploration of factors that influence the expansion of the area affected by endemic bovine TB - AHVLA� February 13
Defra,Core Defra,19/02/2013,Other Current Payments (GB),Policy Delivery DG,Food & Environment Research Agency,F0027220,"86,926.00",Memorandum of Understanding October to December 2012
Defra,Core Defra,25/02/2013,Other Current Payments (Evidence R&D) (Agency),Policy Delivery DG,Food & Environment Research Agency,47396.28,"47,396.28",Estimating Badger Group Sizes in Different Landscapes in England and Wales - Fera - February 2013
Defra,Core Defra,19/02/2013,Other Current Payments (GB),Policy Delivery DG,Food & Environment Research Agency,46231,"46,231.00",Memorandum of Understanding October to December 2012
Defra,Core Defra,25/02/2013,Other Current Payments (Evidence R&D) (Agency),Policy Delivery DG,Animal Health and Veterinary Laboratories Agency,ERS-513262-43000,"71,234.08",Development of an oral BCG vaccine for badgers - research component - AHVLA� February 2013
Defra,Core Defra,27/02/2013,IBM Base Services Control,Chief Operating Officer DG,IBM United Kingdom Ltd,5802130144,"5,997,736.36",IT Base Services - February 2013
Defra,Core Defra,01/02/2013,Computer & IT Services,Chief Operating Officer DG,IBM United Kingdom Ltd,5812122013,"75,521.22",IT Anti Virus Technology Refresh
Defra,Core Defra,19/02/2013,Estates IFM Pass- Through Maintenance,Chief Operating Officer DG,Interserve (Facilities Mngmnt) Ltd,FI00023354,"39,265.43",Pass-through costs for November 2012
Defra,Core Defra,27/02/2013,Office Equipment,Chief Operating Officer DG,Xerox Finance,96683103,"34,255.42",Photocopier Rental Charges 25/03/13 to 24/09/13
Defra,Core Defra,21/02/2013,Estates IFM Pass- Through Maintenance,Chief Operating Officer DG,Interserve (Facilities Mngmnt) Ltd,FI00023388,"87,791.73",Pass-through costs for December 2012
Defra,Core Defra,05/02/2013,Overhead Incidental Expenses,Chief Operating Officer DG,Civil Service Resourcing,1.8E+13,"125,400.00",Payment to Civil Service Resourcing for Defra Fast Stream Intake 2013 
Defra,Core Defra,07/02/2013,Training - Other External,Chief Operating Officer DG,Oxford Said Business School Limited,33904,"30,000.00",Major Projects Leadership Academy attendance
Defra,Core Defra,05/02/2013,Current grants to charitable bodies,Policy Delivery DG,University Of Reading,96491,"49,458.00",Addressing vulnerabilities and building capacity for adaption of agriculture to climate change in China
Defra,Core Defra,25/02/2013,Overhead Incidental Expenses,Policy Delivery DG,The Scotland Office,80058177,"127,021.70",Distribution of Scotland's share of UK grant payment from EC for 2010 Structure Survey data
Defra,Core Defra,19/02/2013,Other Current Payments E,Policy Delivery DG,Food & Environment Research Agency,F0027327,"88,264.00","Emergency Response and Recovery Programme - The UK Government Decontaminiation Service to support, inform and influence Defra Policy for public good - January 2013"
Defra,Core Defra,19/02/2013,Other Current Payments E,Policy Delivery DG,Food & Environment Research Agency,F0027326,"55,401.00","Emergency Response and Recovery Programme - The UK Government Decontaminiation Service to support, inform and influence Defra Policy for public good - January 2013"
Defra,Core Defra,05/02/2013,Prog - Admin Costs - FLS Office Services Consultancy,Policy Delivery DG,Treasury Solicitor,AH1344,"200,600.23",Legal Services Major Projects Thames Tunnel Order
Defra,Core Defra,05/02/2013,Prog - Admin Costs - FLS Office Services Consultancy,Policy Delivery DG,Freshfields Bruckhaus Deringer,EUKFF133442,"112,003.98",Thames Tideway Tunnel project - provision of commercial legal consultancy between 1 April and 31 May 2013
Defra,Core Defra,21/02/2013,Contractor - Management Cover,Policy Delivery DG,Ricardo-A E A Ltd,6150906,"42,678.00",Contract for the provision of Technical Support for the Water Technology List 2012-14 
Defra,Core Defra,15/02/2013,Contractor - Management Cover,Policy Delivery DG,Capita Resourcing Ltd,WN4008789,"31,395.00",Provision of commercial expertise to strengthen Defra's Thames Tideway Tunnel project team 
Defra,Core Defra,11/02/2013,Evidence Non R&D,Policy Delivery DG,Food & Environment Research Agency,F0027094,"199,853.00",Food & Environment Research Agency Memorandum of Understanding
Defra,Core Defra,11/02/2013,Evidence Non R&D,Policy Delivery DG,Food & Environment Research Agency,F0026381,"2,178,622.00",Food & Environment Research Agency Memorandum of Understanding - September to November 2012
Defra,Core Defra,25/02/2013,Payments to Agencies GB,Policy Delivery DG,Animal Health and Veterinary Laboratories Agency,5000019451,"15,712,083.33",Laboratory surveillance 
Defra,Core Defra,05/02/2013,Payments to Agencies GB,Policy Delivery DG,Animal Health and Veterinary Laboratories Agency,5000022600,"2,244,583.33",Laboratory surveillance 
Defra,Core Defra,19/02/2013,Payments to Agencies GB,Policy Delivery DG,Animal Health and Veterinary Laboratories Agency,5000023235,"266,095.39",Pass-through costs for onboarding to IBM
Defra,Core Defra,21/02/2013,Evidence Non R&D,Policy Delivery DG,L G C Limited,50210885,"178,413.84",Transmissible Spongiform Encephalopathy Laboratory Testing
Defra,Core Defra,21/02/2013,Evidence Non R&D,Policy Delivery DG,Identigen Ltd,Jan-13,"44,071.23",Bovine Spongiform Encephalopathy Testing - January 2013
Defra,Core Defra,05/02/2013,Payments to Agencies GB,Policy Delivery DG,Animal Health and Veterinary Laboratories Agency,5000022710,"42,204.01",Funding for Perfluorocarbon Transmissible Spongiform Encephalopathies 2012/13 
Defra,Core Defra,25/02/2013,Evidence Non R&D,Policy Delivery DG,Animal Health and Veterinary Laboratories Agency,5000022584,"190,516.67",Laboratory surveillance contract  - January 2013
Defra,Core Defra,11/02/2013,Evidence Non R&D,Policy Delivery DG,Animal Health and Veterinary Laboratories Agency,5000023135,"52,638.33",Fallen Stock Sampling Fee
Defra,Core Defra,05/02/2013,Payments to Agencies GB,Policy Delivery DG,Animal Health and Veterinary Laboratories Agency,5000022662,"178,577.14",Funding for Perfluorocarbon Transmissible Spongiform Encephalopathies 2012/13 
Defra,Core Defra,05/02/2013,Other Current Payments (GB),Policy Delivery DG,Food Standards Agency,1701904,"38,294.44",Food Standards Agency Memorandum of Understanding 12/13
Defra,Core Defra,05/02/2013,Evidence Non R&D,Policy Delivery DG,Animal Health and Veterinary Laboratories Agency,5000022580,"175,000.00",Laboratory surveillance - January 2013
Defra,Core Defra,07/02/2013,Publications - Storage & Distribution (C),Chief Operating Officer DG,Iron Mountain (UK) Ltd,Z277770Z277788,"28,886.36",Defra records storage contract
Defra,Core Defra,27/02/2013,Other Current Payments (Evidence R&D),Policy Delivery DG,University Of Reading,ERS-512743-42818,"32,753.33",Optimising the efficiency of dietary nitrogen use to reduce emissions and waste in dairy systems - February 2013
Defra,Core Defra,21/02/2013,Other Current Payments (Evidence R&D),Policy Delivery DG,Drew Associates,19003,"39,780.00",Farm Business Survey Quality Assessor Contract 2009-2012
Defra,Core Defra,21/02/2013,Other Current Payments E,Policy Delivery DG,University Of Nottingham,7677753,"267,375.00",Farm Business Survey Framework Agreement 2011/12 
Defra,Core Defra,21/02/2013,Other Current Payments (Evidence R&D),Policy Delivery DG,A D A S UK Ltd,1.40213E+12,"38,241.16",Greenhouse Gas Platform - Nitrous Oxide Emissions Factors
Defra,Core Defra,21/02/2013,Other Current Payments (Evidence R&D),Policy Delivery DG,A D A S UK Ltd,RIRP067333,"48,901.75",Link Project Environmental and Nutritional Benefits of Bioethanol Co-products 
Defra,Core Defra,21/02/2013,Other Current Payments (Evidence R&D),Policy Delivery DG,A D A S UK Ltd,RIRP067282,"38,717.83",Improving the sustainability of phosphorus use in arable farming 
Defra,Core Defra,21/02/2013,Other Current Payments (Evidence R&D),Policy Delivery DG,University Of Nottingham,7675995,"60,000.00",On-Farm Energy Usage Based on Farm Business Survey Farms: Data Collection 2011/12
Defra,Core Defra,07/02/2013,Other Current Payments (Evidence R&D),Policy Delivery DG,University Of Wales Aberystwyth,20024498,"160,400.63",Genetic Improvements of Miscanthus as a Sustainable Feedstock for Bioenergy in the UK
Defra,Core Defra,01/02/2013,Other Current Payments (Evidence R&D),Policy Delivery DG,University Of Wales Aberystwyth,20023975,"27,820.12",Genetic improvement of perennial ryegrass and white clover to increase the efficiency of nitrogen use in the rumen
Defra,Core Defra,01/02/2013,Other Current Payments (Evidence R&D),Policy Delivery DG,A D A S UK Ltd,RIRP067006,"40,687.85",Sustainable Crop and Environment Protection Targeted Research for Edibles - October to December 2012
Defra,Core Defra,27/02/2013,Other Current Payments (Evidence R&D),Policy Delivery DG,North Wyke Research.,ERS-512742-42880,"36,437.74",Greenhouse Gas Platform - Nitrous Oxide Emissions Factors - February 2013
Defra,Core Defra,21/02/2013,Other Current Payments (Evidence R&D),Policy Delivery DG,A D A S UK Ltd,1.40213E+12,"28,265.83",Potential for nitrification inhibitors and fertiliser nitrogen application timing strategies to reduce direct and indirect nitrous oxide emissions from UK agriculture
Defra,Core Defra,21/02/2013,Other Current Payments (Evidence R&D),Policy Delivery DG,Sac Commercial Ltd,1.40213E+12,"25,795.83",Greenhouse Gas Platform - Nitrous Oxide Emissions Factors
Defra,Core Defra,15/02/2013,Other Current Payments (Evidence R&D),Policy Delivery DG,N I A B,NI5007,"32,975.21","Buglossoides arvensis: A new crop for the UK, containing stearidonic acid, a precursor of long chain Omega-3 fatty acid with nutraceutical properties"
Defra,Core Defra,05/02/2013,Other Current Payments (Evidence R&D),Policy Delivery DG,Technology Strategy Board,699,"47,249.12",Knowledge Transfer Partnership (Adjustments) - Technology Strategy Board
Defra,Core Defra,07/02/2013,Other Current Payments (Evidence R&D),Policy Delivery DG,University Of Wales Aberystwyth,20024518,"37,986.54",Harnessing new technologies for sustainable oat production and utilisation - October to December 2012
Defra,Core Defra,01/02/2013,Other Current Payments (Evidence R&D),Policy Delivery DG,Cranfield University,1365706,"42,360.15","Developing precision irrigation for field scale vegetable production, linking in-field moisture sensing, wireless networks and variable rate application technology - April to June 2012"
Defra,Core Defra,25/02/2013,Grant-in Aid Payments,Policy Delivery DG,Gangmasters Licensing Authority,140213,"471,502.59",GLA Licensing/Enforcement Expenses Funding - February 2013
Defra,Core Defra,13/02/2013,Grant-in Aid Payments,Policy Delivery DG,Gangmasters Licensing Authority,170113,"286,369.00",GLA Licensing/Enforcement Expenses Funding - January 2013
Defra,Core Defra,05/02/2013,Evidence Non R&D,Policy Delivery DG,Ricardo-A E A Ltd,6150362,"122,408.74",Energy using products - November 2012
Defra,Core Defra,07/02/2013,Evidence Non R&D,Policy Delivery DG,Ricardo-A E A Ltd,6150744,"139,950.29",Energy using products  
Defra,Core Defra,15/02/2013,Other Current Payments (Evidence R&D),Policy Delivery DG,University Of Hertfordshire,49213,"35,000.00",Pilot for a Nursery Equipment Product Service System
Defra,Core Defra,11/02/2013,Other Current Payments E,Policy Delivery DG,Local Partnerships LLP,41101127,"269,695.42",Waste infrastructure delivery programme transactor support - January 2013
Defra,Core Defra,15/02/2013,Evidence Non R&D,Policy Delivery DG,Marine Biological Association,229,"34,040.00",Infrastructure Delivery Programme
Defra,Core Defra,11/02/2013,Evidence Non R&D,Policy Delivery DG,C E F A S,8002554,"2,232,833.33",CEFAS High Level Agreement Payment 2012/13 February 2013
Defra,Core Defra,05/02/2013,Payments to Agencies GB,Policy Delivery DG,Animal Health and Veterinary Laboratories Agency,5000022708,"75,451.39",Funding for Reportable Diseases and Zoonoses for year 2012/13 - December 2012
Defra,Core Defra,05/02/2013,Evidence Non R&D,Policy Delivery DG,Animal Health and Veterinary Laboratories Agency,5000022579,"244,960.42",Laboratory surveillance contract - January 2013
Defra,Core Defra,05/02/2013,Evidence Non R&D,Policy Delivery DG,Animal Health and Veterinary Laboratories Agency,5000022578,"512,500.00",Laboratory surveillance contract - January 2013
Defra,Core Defra,05/02/2013,Evidence Non R&D,Policy Delivery DG,Animal Health and Veterinary Laboratories Agency,5000022582,"31,583.33",Laboratory surveillance contract - January 2013
Defra,Core Defra,05/02/2013,Payments to Agencies GB,Policy Delivery DG,Animal Health and Veterinary Laboratories Agency,5000022666,"157,453.80",Funding for Reportable Diseases and Zoonoses for year 2012/13 - November 2012
Defra,Core Defra,19/02/2013,Other Current Payments (Evidence R&D),Chief Operating Officer DG,NERC Proudman Oceanographic Laboratory,7060004032,"127,650.00",Environmental Change Network Central (data) Coordination unit
Defra,Core Defra,11/02/2013,Payments to Agencies UK,Chief Operating Officer DG,Food & Environment Research Agency,F0027095,"360,189.00",FERA Plant Health Memorandum of Understanding 2012/13
Defra,Core Defra,01/02/2013,Overhead Incidental Expenses,Chief Operating Officer DG,Royal Botanic Gardens Kew,S8661MT,"109,483.19",Onboarding activities - October 2012
Defra,Core Defra,01/02/2013,Overhead Incidental Expenses,Chief Operating Officer DG,Royal Botanic Gardens Kew,S8997MT,"111,190.02",Onboarding activities - November 2012
Defra,Core Defra,11/02/2013,Current Grants E,Policy Delivery DG,N A A O N B.,100113,"37,616.00",National Association of Areas of Outstanding Natural Beauty Grant 2012-13 
Defra,Core Defra,05/02/2013,Current Grants E,Policy Delivery DG,N A A O N B.,11212,"33,465.00",National Association of Areas of Outstanding Natural Beauty Grant 2012-13 
Defra,Core Defra,05/02/2013,Other Current Payments E,Policy Delivery DG,JSS Pensions Administration,6364,"111,057.26",Nature Conservancy Council Pension Scheme - January 2013
Defra,Core Defra,05/02/2013,Grant-in Aid Payments,Policy Delivery DG,Natural England,250113,"10,000,000.00",Grant in Aid Payment - February 2013
Defra,Core Defra,13/02/2013,Grant-in Aid Payments,Policy Delivery DG,Joint Nature Conservation Committee,70213,"735,000.00",Grant in Aid Payment - February 2013
Defra,Core Defra,07/02/2013,Other Current Payments (GB),Policy Delivery DG,University Of Reading,ERS-511750-42628,"36,506.67",National Fruit Collection - January 2013
Defra,Core Defra,07/02/2013,Other Current Payments (GB),Policy Delivery DG,University Of Reading,ERS-511749-42626,"328,560.00",National Fruit Collection April - December 2012
Defra,Core Defra,05/02/2013,Other Current Payments E,Policy Delivery DG,Rural Payments Agency,333295,"47,904.66",School Milk Top Up Quarter 3 2012/13
Defra,Core Defra,27/02/2013,Other Current Payments (GB),Policy Delivery DG,University Of Reading,ERS-513467-42821,"36,506.67",National Fruit Collection�payment February 2013 
Defra,Core Defra,05/02/2013,Other Current Payments E,Policy Delivery DG,Ricardo-A E A Ltd,6150583,"55,630.18",Farming Advice Service Contract for 2012 - 2014 December 2012
Defra,Core Defra,05/02/2013,Other Current Payments E,Policy Delivery DG,Ricardo-A E A Ltd,6150218,"50,574.92",Farming Advice Service Contract for 2012 - 2014 November 2012
Defra,Core Defra,25/02/2013,Other Current Payments E,Policy Delivery DG,Ricardo-A E A Ltd,6150952,"71,177.68",Farming Advice 
Defra,Core Defra,13/02/2013,Other Current Payments E,Policy Delivery DG,Ricardo-A E A Ltd,6149976,"50,574.92",Farming Advice project and stakeholder management
Defra,Core Defra,11/02/2013,Other Current Payments (Evidence R&D),Policy Delivery DG,A D A S UK Ltd,RIRP067010,"52,683.20",Implications of grazing regimes
Defra,Core Defra,15/02/2013,Other Current Payments (Evidence R&D),Policy Delivery DG,Cl:aire,33352013SP1010,"41,269.00",Development of screening for assessment of land affected by contaminants
Defra,Core Defra,07/02/2013,Other Current Payments UK,Policy Delivery DG,Soil Association Certification Ltd,177270,"31,035.50","Grant Payment Organic Farming. SACL first quarter payment, April-June 11.  Payment to organic Control Bodies"
Defra,Core Defra,11/02/2013,Other Current Payments E,Policy Delivery DG,Carbon Disclosure Project,1822KL,"29,077.00",Grant Payment to Carbon Disclosure Project for Investor Work which includes engaging with companies in the FTSE All-Share index
Defra,Core Defra,05/02/2013,Grant-in Aid Payments,Policy Delivery DG,Marine Management Organisation,290113,"1,675,000.00",Grant in Aid payments to Marine Management Organisation
Defra,Core Defra,05/02/2013,Other Current Payments (GB),Policy Delivery DG,Dept For Communities & Local Gov,10213,"250,000.00",London Support Grant Services for 2010/11
Defra,Core Defra,01/02/2013,Other Current Payments (Evidence R&D),Policy Delivery DG,Institute of Zoology,31984,"60,206.00",Cetacean strandings investigation 01/10-31/12/12
Defra,Core Defra,19/02/2013,Evidence Non R&D,Policy Delivery DG,Sea Mammal Research Unit,RG040503,"53,555.00",Cetacean Bycatch Observer Monitoring Scheme July - September 2012
Defra,Core Defra,11/02/2013,Evidence Non R&D,Policy Delivery DG,C E F A S,8002553,"156,000.00",Cefas High Level Agreement Payment 2012/13 
Defra,Core Defra,07/02/2013,Evidence Non R&D,Policy Delivery DG,Sea Mammal Research Unit,RG040900,"48,761.00",Cetacean Bycatch Observer Monitoring Scheme October - December 2012
Defra,Core Defra,11/02/2013,Other Current Payments (Evidence R&D),"Strategy, Evidence and Customers DG",C E F A S,8002558,"25,000.00",Response to ecosystems and fisheries to management in a changing environment February 2013
Defra,Core Defra,13/02/2013,Other Current Payments (Evidence R&D),"Strategy, Evidence and Customers DG",Cranfield University,1368329,"50,000.00",Natural environment risk and futures January 2013
Defra,Core Defra,25/02/2013,Other Current Payments (Evidence R&D),"Strategy, Evidence and Customers DG",Animal Health and Veterinary Laboratories Agency,ERS-512966-42965,"37,100.00",Anticipating the global onset of Novel Epidemics - AHVLA February 2013
Defra,Core Defra,11/02/2013,Other Current Payments (Evidence R&D),"Strategy, Evidence and Customers DG",C E F A S,8002508,"25,000.00",Response to ecosystems and fisheries to management in a changing environment January 2013
Defra,Core Defra,01/02/2013,Evidence Non R&D,"Strategy, Evidence and Customers DG",B E T A Technology Ltd,5207,"30,114.47",Provision of UK national contact points services for EU and International Partnerships Project 2012/2013
Defra,Core Defra,25/02/2013,Other Current Payments (Evidence R&D),"Strategy, Evidence and Customers DG",Food & Environment Research Agency,ERS-512771-42893,"115,783.59",Assessing the environmental outcomes of the Campaign for the Farmed Environment
Defra,Core Defra,05/02/2013,Other Current Payments (Evidence R&D),"Strategy, Evidence and Customers DG",Tavistock Institute Of Human Relations,26142,"36,750.00",Local Nature Partnerships formative contract evaluation
Defra,Core Defra,19/02/2013,Other Current Payments (Evidence R&D),"Strategy, Evidence and Customers DG",Sac Commercial Ltd,1.30213E+13,"140,000.00",Transforming our use of veterinary economic assessment project - February 2013
Defra,Core Defra,01/03/2013,Redfern Suspense,Central Finance Group,Redfern Travel Ltd,50051,"274,321.90",Travel costs January 2013
Defra,Core Defra,05/03/2013,Mobile Phones,Central Finance Group,Vodafone Ltd,66623177,"71,846.80",Vodafone quarterly bill February 2013
Defra,Core Defra,05/03/2013,Clearing Construction in Progress (Building Works),Chief Operating Officer DG,IBM United Kingdom Ltd,5802130410,"50,983.85",Data Centre Disaster Recovery investigations and scoping costs.
Defra,Core Defra,05/03/2013,Other recharges,Chief Operating Officer DG,H M Revenue & Customs,948TZ03485250113,"78,748.00",Final payment to Her Majesty's Revenue and Customs for Animal Health and Veterinary Laboratories Agency Tax issue
Defra,Core Defra,07/03/2013,FM Projects Non Capital Works,Chief Operating Officer DG,Interserve (Facilities Mngmnt) Ltd,FI00024090,"72,423.78",Costs incurred for the undertaking of estates maintenance projects over multiple sites which have been invoiced for February 2013
Defra,Core Defra,07/03/2013,FM Projects Non Capital Works,Chief Operating Officer DG,Interserve (Facilities Mngmnt) Ltd,FI00024089,"55,690.97",Costs incurred for the undertaking of estates maintenance projects over multiple sites which have been invoiced for February 2013
Defra,Core Defra,11/03/2013,GPC Card,Central Finance Group,Barclaycard Business Issuing,4.72E+21,"45,559.47",Barclaycard Monthly Bill March 2013
Defra,Core Defra,13/03/2013,GPC Card,Central Finance Group,Barclaycard Business Issuing,4.72E+21,"43,558.26",Barclaycard Monthly Bill February 2013
Defra,Core Defra,13/03/2013,Redfern Suspense,Central Finance Group,Redfern Travel Ltd,52222,"203,672.98",Travel costs February 2013
Defra,Core Defra,15/03/2013,Other recharges,Chief Operating Officer DG,Interserve (Facilities Mngmnt) Ltd,FI00024105,"62,386.20",Costs associated with staff moves and renovation of the Weybridge site. February 2013 payment.
Defra,Core Defra,19/03/2013,Clearing Construction in Progress (Building Works),Chief Operating Officer DG,Interserve (Facilities Mngmnt) Ltd,FI00024129,"48,850.45",Refurbishment works to ground and first floor of Ergon House
Defra,Core Defra,19/03/2013,Clearing Construction in Progress (Building Works),Chief Operating Officer DG,Interserve (Facilities Mngmnt) Ltd,FI00024125,"47,027.81",Decoration of lift lobbies and stairwells in Nobel House 
Defra,Core Defra,19/03/2013,Clearing Construction in Progress (Building Works),Chief Operating Officer DG,Interserve (Facilities Mngmnt) Ltd,FI00024106,"42,903.48","Works in connection with the complete moves of staff and furniture at Nobel House, London. March 2013 Payment"
Defra,Core Defra,19/03/2013,Clearing Construction in Progress (Building Works),Chief Operating Officer DG,Interserve (Facilities Mngmnt) Ltd,FI00024126,"45,228.66",Decoration to lift lobbies and stairwells in Nobel House. February 2013 payment.
Defra,Core Defra,19/03/2013,Clearing Construction in Progress (Building Works),Chief Operating Officer DG,Interserve (Facilities Mngmnt) Ltd,FI00024135,"241,354.28","Costs associated with staff moves and the renevation of London properties, Nobel House"
Defra,Core Defra,19/03/2013,Clearing Construction in Progress (Building Works),Chief Operating Officer DG,Interserve (Facilities Mngmnt) Ltd,FI00024112,"168,439.63",New lighting for Nobel House including removal of the existing set up and rewiring where required. February 2013 payment
Defra,Core Defra,19/03/2013,Clearing Construction in Progress (Building Works),Chief Operating Officer DG,Interserve (Facilities Mngmnt) Ltd,FI00024138,"86,970.79","Space plan and fit study for Toothill Close, Unex House. February 2013 payment"
Defra,Core Defra,19/03/2013,Clearing Construction in Progress (Building Works),Chief Operating Officer DG,Interserve (Facilities Mngmnt) Ltd,FI00023362,"616,526.38","Replacement of existing ceilings, decoration and renewal of partitioning in Nobel House January 2013 payment."
Defra,Core Defra,19/03/2013,Clearing Construction in Progress (Building Works),Chief Operating Officer DG,Interserve (Facilities Mngmnt) Ltd,FI00024134,"188,534.84",Costs associated with staff moves and the renevation of London properties - Nobel House - Emergency Operations Centre
Defra,Core Defra,19/03/2013,Clearing Construction in Progress (Building Works),Chief Operating Officer DG,Interserve (Facilities Mngmnt) Ltd,FI00024133,"127,200.00",Costs associated with staff moves and renovation of Clyst House to facilitate the relocation of the Rural Payments Agency
Defra,Core Defra,19/03/2013,Capital LA Grant E,Policy Delivery DG,Tonbridge & Malling B C,120313,"150,000.00",2012-2013 Air Quality Grant
Defra,Core Defra,19/03/2013,Clearing Scientific & Research,Policy Delivery DG,City Of London,120313,"95,500.00",Air Quality Grant City of London Corporation - March 2013
Defra,Core Defra,21/03/2013,Clearing Scientific & Research,Policy Delivery DG,"Aerodyne Research, Inc",200313,"157,150.37","Purchase, delivery and installation of a Foreign Aerosol Chemical Speciation Monitor "
Defra,Core Defra,25/03/2013,Estate Maintenance Admin,Chief Operating Officer DG,Interserve (Facilities Mngmnt) Ltd,FI00024088,"181,332.90",Costs incurred for the undertaking of estates maintenance projects over multiple sites which have been invoiced for in February 2013.
Defra,Core Defra,27/03/2013,Clearing Construction in Progress (Building Works),Chief Operating Officer DG,IBM United Kingdom Ltd,5803130363,"95,355.40",Costs associated with the closure of Ergon House. March 2013 payment.
Defra,Core Defra,27/03/2013,Clearing Construction in Progress (Building Works),Chief Operating Officer DG,Interserve (Facilities Mngmnt) Ltd,FI00024136,"259,331.76",Refurbishment of Stirling House February 2013 payment.
Defra,Core Defra,27/03/2013,Clearing Construction in Progress (Building Works),Chief Operating Officer DG,IBM United Kingdom Ltd,5803130446,"30,544.18","Costs associated with the Closure of Ergon House - IT Service migration, reconfiguration, and decommissioning. March 2013 payment"
Defra,Core Defra,27/03/2013,Clearing Scientific & Research,Policy Delivery DG,Bureau Veritas UK Ltd,13004654,"31,242.00",2012-2013 Air Quality Evidence base - Non-Research and Development for the Automatic Urban & Rural Network. March 2013 payment
Defra,Core Defra,01/03/2013,Grant-in Aid Payments,Chief Operating Officer DG,Royal Botanic Gardens Kew,KEWGIA121213,"3,400,000.00",Grant in Aid 2012-2013 February payment
Defra,Core Defra,01/03/2013,Consultancy Non-Scheme,Chief Operating Officer DG,Cadence Partnership LLP,DEF1301003,"25,320.00","Commercial Management support contract, providing change advice, coaching and initiating work with the Strategic Alignment team to help to start up cross-network transformational change for period 1/11/12 - 1/02/13. February 2013 payment "
Defra,Core Defra,01/03/2013,Publications - Storage & Distribution (C),Chief Operating Officer DG,Iron Mountain (UK) Ltd,Z488623Z488640,"42,250.10",Records storage invoice January 2013
Defra,Core Defra,01/03/2013,Other Current Payments (Evidence R&D),Policy Delivery DG,Sac Commercial Ltd,10423921,"40,919.02",Detection of the presence of insects or other pests in prepared salad products.  January 2013 payment
Defra,Core Defra,01/03/2013,Other Current Payments (Evidence R&D),Policy Delivery DG,D S T L,MST005771,"28,870.00",Financial year 2012-2013 Defence Science and Technology Laboratory wider exposure routes report. February 2013 payment
Defra,Core Defra,01/03/2013,Current Grants E,Policy Delivery DG,University Of Reading,1.71E+12,"41,246.75",Enhancing the Elephant Trade Information System to guide Convention on International Trade in Endangered Species policy.  December 2012 payment.
Defra,Core Defra,01/03/2013,Other Current Payments (Evidence R&D),Policy Delivery DG,BTO Services Limited,ACCS0203,"35,061.00",2012-2013 - Effects of woodland structure on woodland bird abundance February 2013 payment.
Defra,Core Defra,01/03/2013,Other Current Payments (Evidence R&D),Policy Delivery DG,UNEP-WCMC,1339,"29,141.00","2011-2014 Developing the UK biodiversity indicators, 2012-2013 payment."
Defra,Core Defra,01/03/2013,Other Current Payments E,Policy Delivery DG,The National Trust,AR298731,"36,845.00",2012-2013 Holnicote Project 
Defra,Core Defra,01/03/2013,Market Research,Policy Delivery DG,A D A S UK Ltd,RIRP067436,"27,036.00","Horticultural Crop Data Collection, Ornamental Production and Mushroom Data.  February 2013 payment"
Defra,Core Defra,01/03/2013,Other Current Payments (Evidence R&D),Policy Delivery DG,A D A S UK Ltd,RIRP067448,"56,274.15",2012-13 Minimising nitrous oxide intensities of arable crop products. February 2013 payment
Defra,Core Defra,01/03/2013,Other Current Payments (Evidence R&D),Policy Delivery DG,Brunel University,FI150706,"69,708.90",Lead Participant - Link project claim. January 2013 payment
Defra,Core Defra,01/03/2013,Other Current Payments (Evidence R&D),Policy Delivery DG,A D A S UK Ltd,RIRP067451,"31,992.24","2010-2011 and 2012-2013 Reducing greenhouse gas emissions, nitrate pollution and lost productivity by fully automating nitrogen fertiliser management. February 2013 payment."
Defra,Core Defra,05/03/2013,Gas,Chief Operating Officer DG,Corona Energy,7956452,"27,636.28",Defra Property Holding Costs - Gas for January - February 2013
Defra,Core Defra,05/03/2013,Water,Chief Operating Officer DG,Anglian Water,2.50E+12,"48,234.84",Water Sewearage charges 27/7/12-25/1/13
Defra,Core Defra,05/03/2013,Estates Professional Fees & Services,Chief Operating Officer DG,D T Z,203068,"38,032.60",Professional Management Services February 2013
Defra,Core Defra,05/03/2013,Civil service Pension Administration,Chief Operating Officer DG,Cabinet Office,250005759,"127,568.40",Pension Administration Charges 01/11/12-31/03/13
Defra,Core Defra,05/03/2013,Overhead Incidental Expenses,Chief Operating Officer DG,Cabinet Office,250006550,"498,723.00",Civil Service Human Resources expert services for the year 2012-13 �Expert Services� are HR services provided to Defra by Civil Service HR (with the Cabinet Office as host) one service is Civil Service Learning
Defra,Core Defra,05/03/2013,Work package/WPO Implementation,Chief Operating Officer DG,IBM United Kingdom Ltd,5802130411,"32,826.87",Websphere Process Choreographer Replacement.
Defra,Core Defra,05/03/2013,Application Services/Applications Delivery,Chief Operating Officer DG,IBM United Kingdom Ltd,5802130632,"30,215.41",Payment of milestones related to the development of a joint Environment Agency and Defra network
Defra,Core Defra,05/03/2013,Work package/WPO Implementation,Chief Operating Officer DG,IBM United Kingdom Ltd,5802130406,"54,350.83",Technology Refresh to remove NT4 and Windows 2000 operating systems. January 2013 payment
Defra,Core Defra,05/03/2013,Other Current Payments E,Policy Delivery DG,Natural England,8000010936,"82,855.62",Legal charges incurrred in preparation of Project Milton 
Defra,Core Defra,05/03/2013,Other Current Payments E,Policy Delivery DG,Food Standards Agency,1701941,"53,871.60",Supervision of the Cleaning and Disinfection of Livestock vehicles 2012-13
Defra,Core Defra,05/03/2013,Capital LA Grant E,Policy Delivery DG,Forest Of Dean District Council,270213,"44,000.00",2012-2013 Air Quality Grant
Defra,Core Defra,05/03/2013,Capital LA Grant E,Policy Delivery DG,City Of Stoke On Trent,270213,"30,000.00",2012-2013 Air Quality Grant
Defra,Core Defra,05/03/2013,Capital LA Grant E,Policy Delivery DG,Portsmouth City Council,270213,"30,000.00",2012-2013 Air Quality Grant
Defra,Core Defra,05/03/2013,Capital LA Grant E,Policy Delivery DG,London Borough Of Haringey,270213,"40,000.00",2012-2013 Air Quality Grant
Defra,Core Defra,05/03/2013,Capital LA Grant E,Policy Delivery DG,Chiltern District Council,270213,"30,000.00",2012-2013 Air Quality Grant
Defra,Core Defra,05/03/2013,Capital LA Grant E,Policy Delivery DG,Wakefield Metropolitan D C,270213,"45,000.00",2012-2013 Air Quality Grant
Defra,Core Defra,05/03/2013,Evidence Non R&D,Policy Delivery DG,Kings College London,SINV1233686,"25,828.63",2012-2013 - Provision of the Air Quality Monitoring Automatic London Network 
Defra,Core Defra,05/03/2013,Other Current Payments (Evidence R&D),Policy Delivery DG,Ricardo-A E A Ltd,6150832,"59,962.00",2012-2013 UK Ambient Air Quality Assessments February 2013 Payment
Defra,Core Defra,05/03/2013,Evidence Non R&D,Policy Delivery DG,SKM Enviros,JW02771,"28,915.36",WasteDataFlow administration and management
Defra,Core Defra,05/03/2013,Evidence Non R&D,Policy Delivery DG,Food & Environment Research Agency,F0027500,"250,000.00",ObservaTree Feasibility Study
Defra,Core Defra,05/03/2013,Grant-in Aid Payments,Policy Delivery DG,The National Forest Co,210213,"606,240.00",2012-2013 Grant in Aid payment 
Defra,Core Defra,05/03/2013,Other Current Payments E,Policy Delivery DG,The Planning Inspectorate,1800000311,"26,929.45",2012-2013 Refund of charges incurred in the handling and determination of applications to the Secretary of State - Long Field Kent site.
Defra,Core Defra,05/03/2013,Current Grants E,Policy Delivery DG,South Devon AONB Unit,190213,"128,651.00"," 2012-2013 Grant payment.
 "
Defra,Core Defra,05/03/2013,Current Grants E,Policy Delivery DG,Dartmoor National Park Authority,DARTMOOR14313,"26,437.50",2012-2013 South West Protected Landscape Grant Payment
Defra,Core Defra,05/03/2013,Evidence Non R&D,Policy Delivery DG,Simon Christmas Ltd,150213,"27,500.00",Biodiversity segmentation scoping study
Defra,Core Defra,05/03/2013,Other Current Payments (Evidence R&D),Policy Delivery DG,Pond Conservation,114,"26,217.50",2012-2013 Biodiversity of ponds - developing and testing new approaches to data collection in the voluntary sector.
Defra,Core Defra,05/03/2013,Grant-in Aid Payments,Policy Delivery DG,Environment Agency,EAGIAMAR13,"175,090,000.00",2012-2013 - Environmental Protection/Flood Grant in Aid
Defra,Core Defra,05/03/2013,Other Current Payments E,Policy Delivery DG,Environment Agency,1150601,"42,093.76",2012-2013 Making Space for Water in the Upper Derwent Valley
Defra,Core Defra,05/03/2013,Other Current Payments (GB),Policy Delivery DG,Food Standards Agency,1701940,"28,277.39",Service Level Agreement - February 2013 payment.
Defra,Core Defra,05/03/2013,Other Current Payments (GB),Policy Delivery DG,Food Standards Agency,1701943,"37,091.18",2012-2013 Cattle Testing - Bovine Spongiform Encephalopathy  
Defra,Core Defra,05/03/2013,Other Current Payments (Evidence R&D),Policy Delivery DG,B B S R C,16250,"194,787.15","2012-2013 Insect Pollinator Initiative
"
Defra,Core Defra,05/03/2013,Grant-in Aid Payments,Policy Delivery DG,Natural England,260213,"30,242,000.00",2012-2013 Grant in Aid 
Defra,Core Defra,05/03/2013,Grant-in Aid Payments,Policy Delivery DG,Marine Management Organisation,10313,"2,400,000.00",March 2013 Grant in Aid Payment
Defra,Core Defra,05/03/2013,Other Current Payments (GB),Policy Delivery DG,Dept For Communities & Local Gov,10313,"250,000.00",2012-2013 London Support Grant Services - Inshore fisheries conservation.  March 2013 payment.
Defra,Core Defra,05/03/2013,Other Current Payments (Evidence R&D),"Strategy, Evidence and Customers DG",Health & Safety Laboratory,32885,"120,000.00",Development of a natural hazards impacts model to quantify the impacts from a range of hazardous natural elements
Defra,Core Defra,06/03/2013,Current Transfers Abroad UK,Policy Delivery DG,Convention On Biological Diversity,BE012013,"50,000.00",Darwin Initiative UK Contribution towards International Biodiversitiy implementation of the Nagoya Protocol
Defra,Core Defra,07/03/2013,Business Rates,Chief Operating Officer DG,D T Z,DEFRA178,"877,792.67",Property Holding Costs related to Rents to Landlords and service charges and insurance.  February 2013.
Defra,Core Defra,07/03/2013,Oil,Chief Operating Officer DG,Corona Energy,7903262,"82,259.53",Defra Property Holding costs Gas - December 2012
Defra,Core Defra,07/03/2013,Other Current Payments (Evidence R&D),Policy Delivery DG,Pricewaterhouse Coopers,1353928480,"56,657.00",International Risk and Opportunities of Climate Change to the UK
Defra,Core Defra,07/03/2013,Current Grants E,Policy Delivery DG,Nidderdale AONB,80213,"102,942.83",2012-2013 Area of Outstanding Natural Beauty - grant payment. 
Defra,Core Defra,07/03/2013,Other Current Payments E,Policy Delivery DG,Cornwall Council,98120669,"25,000.00",Japanese Knotweed project  February 2013 payment
Defra,Core Defra,07/03/2013,Evidence Non R&D,Policy Delivery DG,R S P B,SLINV00023653,"32,384.40",2012-2013 Wild Bird Populations Indices.
Defra,Core Defra,07/03/2013,Prog - Admin Costs - FLS Office Services Consultancy,Policy Delivery DG,Freshfields Bruckhaus Deringer,EUKFF134504,"157,364.68",Legal advice for the Thames Tideway Tunnel Project 1/4/12 - 31/3/13
Defra,Core Defra,07/03/2013,Consultancy Non-Scheme,Policy Delivery DG,Ernst & Young LLP,GB10700015477,"83,399.84",Framework Agreement for Thames Tunnel Commercial Consultancy February 2013.
Defra,Core Defra,07/03/2013,Consultancy Non-Scheme,Policy Delivery DG,Ernst & Young LLP,GB10700015385,"49,694.40",Framework Agreement for Thames Tunnel Commercial Consultancy February 2013.
Defra,Core Defra,07/03/2013,Other Current Payments (Evidence R&D),Policy Delivery DG,University Of York,65175,"58,610.71",Inorganic Polymer Bio-composites  1 June 2012
Defra,Core Defra,07/03/2013,Other Current Payments (Evidence R&D),Policy Delivery DG,University Of York,65174,"47,286.06",Inorganic Polymer Bio-composites 1 October - 31 December 2012
Defra,Core Defra,07/03/2013,Other Current Payments (Evidence R&D),Policy Delivery DG,A D A S UK Ltd,RIRP067664,"84,465.00",2012 - 2013 Environmental and Nutritional Benefits of Bioethanol Co-Products February 2013 payment
Defra,Core Defra,07/03/2013,Other Current Payments (Evidence R&D),Policy Delivery DG,University Of Surrey,85004006,"100,000.00",Sustainable Lifestyles Research Group 2010-11 and 2011-12 payments.
Defra,Core Defra,07/03/2013,Other Current Payments (Evidence R&D),Policy Delivery DG,University Of Surrey,85004004,"50,000.00",Economic and Social Research Councils contribution to the Sustainable Lifestyles Research Group
Defra,Core Defra,11/03/2013,Estates IFM Contract Variation costs,Chief Operating Officer DG,Interserve (Facilities Mngmnt) Ltd,FI00024171,"113,302.30",2009-2010 and 2010-2011 Variation and Final Charges due as determined by an audit.
Defra,Core Defra,11/03/2013,Other Current Payments E,Chief Operating Officer DG,Interserve (Facilities Mngmnt) Ltd,FI00023940,"107,066.02",Costs incurred for the Maintenance of Foot and Mouth burial sites January 2013.
Defra,Core Defra,11/03/2013,Civil service Pension Administration,Chief Operating Officer DG,R C P S,6365,"35,577.46",Horticulture Research International Gross Staff Pension Scheme - Pension Payment January 2013
Defra,Core Defra,11/03/2013,Application Services/Applications Delivery,Chief Operating Officer DG,IBM United Kingdom Ltd,5801131409,"43,092.26",Development of Standard Desktop Build January 2013 payment.
Defra,Core Defra,11/03/2013,Work package/WPO Implementation,Chief Operating Officer DG,IBM United Kingdom Ltd,5802131111,"59,046.04",Software refresh - Upgrade of AIX system
Defra,Core Defra,11/03/2013,Application Hosting 2 - Business Applications,Chief Operating Officer DG,IBM United Kingdom Ltd,5802131114,"72,821.38",2011-2013 Catchup charges to December 2012 for various IT infrastructure projects.
Defra,Core Defra,11/03/2013,Estates IFM Pass- Through Maintenance,Chief Operating Officer DG,Interserve (Facilities Mngmnt) Ltd,FI00023939,"98,861.11",Maintenance estates costs incurred over multiple sites which have been invoiced for in January 2013
Defra,Core Defra,11/03/2013,Training - Other External,Chief Operating Officer DG,H M Treasury,1.80E+13,"41,000.00",Project to increase the UK contingent of the permanent staff of the EU institution including re-launched European Fast Stream
Defra,Core Defra,11/03/2013,Business & Technical/Consultancy Assignments,Chief Operating Officer DG,IBM United Kingdom Ltd,5802130702,"49,849.93",Application development costs for Kew onboarding.  January 2013 payment
Defra,Core Defra,11/03/2013,Other Current Payments E,Policy Delivery DG,Animal Health and Veterinary Laboratories Agency,5000023736,"26,191.30",Wildlife Licensing 2012-13 
Defra,Core Defra,11/03/2013,Other Current Payments E,Policy Delivery DG,Animal Health and Veterinary Laboratories Agency,5000022706,"411,011.47",Payments relating to disease investigation December 2012 charges.
Defra,Core Defra,11/03/2013,Other Current Payments E,Policy Delivery DG,Animal Health and Veterinary Laboratories Agency,5000022660,"149,315.30",Payments relating to disease investigation November 2012 charges.
Defra,Core Defra,11/03/2013,Other Current Payments E,Policy Delivery DG,Animal Health and Veterinary Laboratories Agency,5000023730,"288,175.61",Payments relating to disease investigation January 2013 charges
Defra,Core Defra,11/03/2013,Other Current Payments E,Policy Delivery DG,Animal Health and Veterinary Laboratories Agency,5000022664,"391,835.95",Payments relating to disease investigation November 2012 charges.
Defra,Core Defra,11/03/2013,Other Current Payments E,Policy Delivery DG,Animal Health and Veterinary Laboratories Agency,5000023726,"109,322.95",Payments relating to disease investigation January 2013 charges.
Defra,Core Defra,11/03/2013,Other Current Payments E,Policy Delivery DG,Animal Health and Veterinary Laboratories Agency,5000022702,"151,216.18",Payments relating to disease investigation December 2012 charges.
Defra,Core Defra,11/03/2013,Payments to Agencies GB,Policy Delivery DG,Food & Environment Research Agency,ERS-513812-43073,"43,000.00",2011-2012 Memorandum of Understanding covering Wildlife Emerging Diseases
Defra,Core Defra,11/03/2013,Other Current Payments (Evidence R&D),Policy Delivery DG,B B S R C,360768,"25,000.00",Campylobacter Strategy Workshop 2013
Defra,Core Defra,11/03/2013,Payments to Agencies GB,Policy Delivery DG,Animal Health and Veterinary Laboratories Agency,5000023727,"499,765.72",2012-2013 Funding for Border Control
Defra,Core Defra,11/03/2013,Capital LA Grant E,Policy Delivery DG,Warrington Borough Council,50313,"35,000.00",2012-2013 Air Quality Grant
Defra,Core Defra,11/03/2013,Other Current Payments E,Policy Delivery DG,The Planning Inspectorate,1800000258,"97,474.04",2012-2013 Planning Inspectorate Casework Quarter 3 Charges.
Defra,Core Defra,11/03/2013,Other Current Payments (Evidence R&D),Policy Delivery DG,Ministry Of Justice,10RL110172,"25,000.00",2012-2013 Memorandum of Understanding with the Law Commission for Conservation Covenants - Quarter 4 payment
Defra,Core Defra,11/03/2013,Current Grants - Local Authorities,Policy Delivery DG,Dept For Communities & Local Gov,40313,"3,000,000.00",Local Services Support Grant March 2013 payment
Defra,Core Defra,11/03/2013,Evidence Non R&D,Policy Delivery DG,Animal Health and Veterinary Laboratories Agency,5000023911,"243,250.00",2012-2013 Laboratory  Surveillance February 2013 payment.
Defra,Core Defra,11/03/2013,Other Current Payments (Evidence R&D),Policy Delivery DG,Department For Business Innovation & Skills,60113,"29,419.25",2011-2012 A longitudinal model for the spread of bovine tuberculosis  - Jointly funded project with Biotechnology and Biological Sciences Research Council
Defra,Core Defra,11/03/2013,Other Current Payments E,Policy Delivery DG,Animal Health and Veterinary Laboratories Agency,5000023733,"6,126,494.68",Payments for Tuberculosis Testing  January  2013
Defra,Core Defra,11/03/2013,Other Current Payments E,Policy Delivery DG,Animal Health and Veterinary Laboratories Agency,5000022667,"6,530,297.15",Payments for Tuberculosis Testing  November 2012.
Defra,Core Defra,11/03/2013,Other Current Payments E,Policy Delivery DG,Animal Health and Veterinary Laboratories Agency,5000023484,"217,436.89",Payments for Tuberculosis Testing  Slaughterhouse cases.  February 2013 payment
Defra,Core Defra,11/03/2013,Other Current Payments E,Policy Delivery DG,Animal Health and Veterinary Laboratories Agency,5000022709,"4,395,523.78",Payments forTuberculosisTesting  December 2012
Defra,Core Defra,11/03/2013,Evidence Non R&D,Policy Delivery DG,Animal Health and Veterinary Laboratories Agency,5000023908,"175,000.00",2012-2013 Laboratory Surveillance February 2013 payment
Defra,Core Defra,11/03/2013,Payments to Agencies GB,Policy Delivery DG,Animal Health and Veterinary Laboratories Agency,5000023728,"182,589.07",2012-2013 Memorandum of Understanding Funding for Associated British Ports. January 2013 payment
Defra,Core Defra,11/03/2013,Payments to Agencies GB,Policy Delivery DG,Animal Health and Veterinary Laboratories Agency,5000023734,"100,984.45",2012-2013 Funding for perflurocarbons Transmissible Spongiform Encephalopathies - January 2013 payment
Defra,Core Defra,11/03/2013,Evidence Non R&D,Policy Delivery DG,Animal Health and Veterinary Laboratories Agency,5000023706,"69,084.14",Fallen Stock Sampling Fee. January 2013 payment
Defra,Core Defra,11/03/2013,Evidence Non R&D,Policy Delivery DG,Animal Health and Veterinary Laboratories Agency,5000023912,"190,516.67",2012-2013 Laboratory Surveillance February 2013
Defra,Core Defra,11/03/2013,Evidence Non R&D,Policy Delivery DG,Ricardo-A E A Ltd,6151232,"25,827.59",Sustainable Consumption and Production Lead Contract  - Energy Using Products - December 2012 payment
Defra,Core Defra,11/03/2013,Evidence Non R&D,Policy Delivery DG,Ricardo-A E A Ltd,6151233,"36,570.56",Sustainable Consumption and Production Lead Contract  - Energy Using Products - January 2013 payment
Defra,Core Defra,11/03/2013,Current Grants - Local Authorities,Policy Delivery DG,Dept For Communities & Local Gov,4.12E+12,"18,629,046.00",2012-2013 Private Finance Initiative Grant to Local Authorities 4th Quarter
Defra,Core Defra,11/03/2013,Evidence Non R&D,Policy Delivery DG,Natural Environ Research Council,7060003983,"175,000.00",2012-2013 Marine Environment Data and Information Network
Defra,Core Defra,11/03/2013,Evidence Non R&D,Policy Delivery DG,Natural Environ Research Council,7060004098,"34,252.00",2012-2013 Charges for Administration of MERMAN database
Defra,Core Defra,11/03/2013,Evidence Non R&D,Policy Delivery DG,Animal Health and Veterinary Laboratories Agency,5000023906,"512,500.00",Scanning Surveillance of Emerging Disease covering February 2013
Defra,Core Defra,11/03/2013,Evidence Non R&D,Policy Delivery DG,Animal Health and Veterinary Laboratories Agency,5000023907,"244,960.42",2012-2013 Zoonoses - February 2013 payment.
Defra,Core Defra,11/03/2013,Evidence Non R&D,Policy Delivery DG,Animal Health and Veterinary Laboratories Agency,5000023910,"31,583.33",2012-2013 Enhancing Surveillance - February 2013 payment
Defra,Core Defra,11/03/2013,Other Current Payments E,Policy Delivery DG,Animal Health and Veterinary Laboratories Agency,5000023729,"106,083.38",2012-2013 Egg Marketing Expenditure - January 2013 payment.
Defra,Core Defra,11/03/2013,Other Current Payments (Evidence R&D),"Strategy, Evidence and Customers DG",Food & Environment Research Agency,F0027708,"105,000.00",Verifying the declared origin of timber using Stable Isotope and Trace Element (SITE) fingerprinting
Defra,Core Defra,12/03/2013,Other Current Payments (Evidence R&D),Policy Delivery DG,Global Bio Info Facility Sec,2013UK15,"194,240.76",2013 contribution for voting participation in The Global Biodiversity Information Facility
Defra,Core Defra,12/03/2013,Current Transfers Abroad UK,Policy Delivery DG,International Union for Conservation of Nature,SI000704,"50,000.00",Preparation for Emergency International Union for the Conservation of Nature (ICUN) Elephant meeting on Ivory Poaching Crisis. 
Defra,Core Defra,12/03/2013,Payments to Agencies GB,Policy Delivery DG,D L O Holding/Prionics AG,33592,"188,707.36",Purchase of Tuberculin.  March 2013
Defra,Core Defra,12/03/2013,Other Current Payments E,"Strategy, Evidence and Customers DG",United Nations Environment Prog,2013MCL23102B231151,"100,000.00",Costs of the preparation of the Fifth Session of the Inter-governmental Negotiating Committee to Prepare a Global Legally Binding Instrument on Mercury NIC5 
Defra,Core Defra,13/03/2013,Estates IFM Core Maintenance,Chief Operating Officer DG,Interserve (Facilities Mngmnt) Ltd,FI00023675,"2,051,217.55",Payment of the March 2013 Facilities Management Core Contract fee
Defra,Core Defra,13/03/2013,Reactive Element of Core IFM fee,Chief Operating Officer DG,Interserve (Facilities Mngmnt) Ltd,FI00023676,"576,352.07",Payment of the March 2013 Facilities Management maintenance fee for reacting to incidents
Defra,Core Defra,13/03/2013,Other Current Payments (Evidence R&D),Policy Delivery DG,Regeneris Consulting Limited,20122055,"32,474.40",Evaluation of the Rural Community Broadband Fund 
Defra,Core Defra,13/03/2013,Other Current Payments (Evidence R&D),Policy Delivery DG,Analytical Methods Trust,1010313,"35,700.00",A Reassessment of Pork Nitrogen Factors
Defra,Core Defra,13/03/2013,Other Current Payments (Evidence R&D),Policy Delivery DG,Vivid Economics Ltd,22282152DEF280213,"48,054.00",The Economic Impacts of Drought in England - February 2013 payment
Defra,Core Defra,13/03/2013,Evidence Non R&D,Policy Delivery DG,RBG Kew Enterprises Ltd,S9059NM,"27,171.46",Provision of Scientific Services for Flora - October to December 2012
Defra,Core Defra,13/03/2013,Other Current Payments (Evidence R&D),Policy Delivery DG,Analytical Methods Trust,2,"32,620.00",Determination of Nitrogen Factors for Pangasius and Alaska Pollack 
Defra,Core Defra,13/03/2013,Other Current Payments (Evidence R&D),Policy Delivery DG,UNEP-WCMC,1276,"106,041.00",National Ecosystem Assessment - December 2013
Defra,Core Defra,13/03/2013,Other Current Payments (Evidence R&D),Policy Delivery DG,A B P Marine Environmental Res Ltd,4338,"80,000.00",In-Depth review of Evidence Supporting the Recommended Marine Conservation Zones 
Defra,Core Defra,14/03/2013,Business Rates,Chief Operating Officer DG,D T Z,DEFRA179,"5,012,167.01",Property Holding Costs related to Rents to Landlords and service charges and insurance.  March 2013 payment
Defra,Core Defra,15/03/2013,Gas,Chief Operating Officer DG,Corona Energy,7969889,"27,816.52",Defra Property Holding costs - Gas - January-February 2013
Defra,Core Defra,15/03/2013,Electricity,Chief Operating Officer DG,E D F Energy,139020313,"60,496.80",Defra Property Holding Costs - Electricity bill payment - period of supply 1-28 February 2013
Defra,Core Defra,15/03/2013,Gas,Chief Operating Officer DG,Corona Energy,7969942,"95,735.77",Defra property holding costs - Gas. January - February-2013
Defra,Core Defra,15/03/2013,Gas,Chief Operating Officer DG,Corona Energy,7989518,"127,692.24",Defra property holding costs - Gas. January - February-2013
Defra,Core Defra,15/03/2013,Gas,Chief Operating Officer DG,Corona Energy,7989622,"42,492.50",Defra property holding costs - Gas.  March 2013
Defra,Core Defra,15/03/2013,FM Projects Non Capital Works,Chief Operating Officer DG,Interserve (Facilities Mngmnt) Ltd,FI00024103,"63,382.45","Refurbishment works, Nobel House "
Defra,Core Defra,15/03/2013,Other Current Payments (Evidence R&D),Policy Delivery DG,The Royal Veterinary College,1.20E+13,"96,129.00","Cost-effective strategies for Bovine Spongiform Encephalopathy and scrapie surveillance in Great Britain, and policy implications - October 2012 - March 2013"
Defra,Core Defra,15/03/2013,Evidence Non R&D,Policy Delivery DG,Ricardo-A E A Ltd,6151182,"26,196.00",2012-2013 Baseline measurements UK Stratospheric Ozone and Spectral UV. March 2013 payment. 
Defra,Core Defra,15/03/2013,Evidence Non R&D,Policy Delivery DG,Extrium Ltd,0217DEFRA,"131,528.17",Accoustic Modelling Geographic Information Systems Advisory Contract.  March 2013 payment
Defra,Core Defra,15/03/2013,Evidence Non R&D,Policy Delivery DG,Bureau Veritas UK Ltd,13001312,"36,849.74",2011-2012 Local Air Quality Management Support
Defra,Core Defra,15/03/2013,Evidence Non R&D,Policy Delivery DG,Bureau Veritas UK Ltd,13002283,"142,156.00",2012-2013 Air Quality Evidence base - Non-Research and Development for the Automatic Urban & Rural Network.  February 2013 payment.
Defra,Core Defra,15/03/2013,Consultancy Non-Scheme,Policy Delivery DG,Ernst & Young LLP,GB10700015383,"89,580.00",Provision of expert external commercial financial advice to Defra for the Thames Tunnel.  29/10/12 - 30/11/12
Defra,Core Defra,15/03/2013,Evidence Non R&D,Policy Delivery DG,L G C Limited,50216522,"157,318.53",Transmissible Spongiform Encephalopathy Testing - February 2013
Defra,Core Defra,15/03/2013,Evidence Non R&D,Policy Delivery DG,Identigen Ltd,Feb-13,"32,518.27",Transmissible Spongiform Encephalopathy testing - Private Laboratories - February 2013
Defra,Core Defra,15/03/2013,Other Current Payments (Evidence R&D),Policy Delivery DG,Ricardo-A E A Ltd,6151370,"36,190.00",Investigation of the CO2 Emissions of the Service Industries - March 2013 payment
Defra,Core Defra,15/03/2013,Other Current Payments E,Policy Delivery DG,Local Partnerships LLP,41101148,"271,651.91",Contract for Private Finance Initiative projects - February 2013. 
Defra,Core Defra,15/03/2013,Payments to Agencies GB,Policy Delivery DG,Animal Health and Veterinary Laboratories Agency,5000023732,"98,182.65",Funding for Reportable Diseases and Zoonoses - January 2013 
Defra,Core Defra,15/03/2013,Grant-in Aid Payments,Policy Delivery DG,Joint Nature Conservation Committee,110313,"2,521,000.00",2012-2013 Grant in Aid payment
Defra,Core Defra,15/03/2013,Other Current Payments E,Policy Delivery DG,National Farmers Union,OP0027758,"155,698.77",National Farming Union - Campaign for the Farmed Environment - Defra Grant  - July to December 2012
Defra,Core Defra,15/03/2013,Other Current Payments E,"Strategy, Evidence and Customers DG",Gangmasters Licensing Authority,5.03E+11,"35,202.00",Accounts Receivable Refund ARIS: IT Forensic Equipment 
Defra,Core Defra,15/03/2013,Other Current Payments (Evidence R&D),"Strategy, Evidence and Customers DG",Sac Commercial Ltd,1.20E+12,"35,000.00",Transforming our use of veterinary economic assessment - March 13
Defra,Core Defra,15/03/2013,Other Current Payments (Evidence R&D),"Strategy, Evidence and Customers DG",Cranfield University,1370511,"50,000.00",The Collaborative Centre of Excellence in Understanding and Managing Natural and Environmental Risk and Futures.  March 2013 payment
Defra,Core Defra,19/03/2013,IT Software,Chief Operating Officer DG,BravoSolution UK Ltd,BUK13V0004584,"87,600.00",Enterprise Licence Implementation and Training.  March 13
Defra,Core Defra,19/03/2013,IT Software,Chief Operating Officer DG,BravoSolution UK Ltd,BUK12V0004493,"189,090.00","Enterprise Licence Implementation and Training including e-tendering, e-Vendor Management and e-Performance - December 12"
Defra,Core Defra,19/03/2013,Consultancy Non-Scheme,Chief Operating Officer DG,Local Partnerships LLP,41101165,"34,556.40",To provide commercial support to the Future of Food and Environment Research Agency - February 2013.
Defra,Core Defra,19/03/2013,Payments to Agencies UK,Chief Operating Officer DG,Food & Environment Research Agency,F0027809,"1,941,249.96",Structural Funding charges - January 2013 to March 2013 
Defra,Core Defra,19/03/2013,Grant-in Aid Payments,Policy Delivery DG,Commission For Rural Communities,130313,"79,745.00",2012-2013 Grant in Aid
Defra,Core Defra,19/03/2013,Other Current Payments E,Policy Delivery DG,Natural England,8000011057,"110,917.08",Reimbursement of legal charges incurrred in preparation of Project Milton as a candidate for Special Areas of Conservation under the Habitats Directive
Defra,Core Defra,19/03/2013,Current Grants E,Policy Delivery DG,Natural England,8000011216,"81,500.00",2012-2013 - 2013-2014 Local Biodiversity Record Centre funding - Quarters 3 & 4
Defra,Core Defra,19/03/2013,Current Grants E,Policy Delivery DG,Natural England,8000011377,"76,369.00",2012-2013 - 2013-2014 Local Biodiversity Record Centre funding - Quarter 3 & 4 payment
Defra,Core Defra,19/03/2013,Other Current Payments (Evidence R&D),Policy Delivery DG,Advanced Pest Solutions Ltd,SI000208,"30,381.00",Strategy development for bacteriophage-based biopesticides - February/March 2013
Defra,Core Defra,19/03/2013,Other Current Payments (Evidence R&D),Policy Delivery DG,Health & Safety Laboratory,33130,"84,850.00",2012-2013 Biological monitoring of pesticide exposure in residents 
Defra,Core Defra,19/03/2013,Other Current Payments E,Policy Delivery DG,Natural Environ Research Council,7060004216,"40,941.30",2012-2013 Understanding of the effects of climate change on water quality.
Defra,Core Defra,19/03/2013,Other Current Payments (Evidence R&D),Policy Delivery DG,Risk Solutions,140313,"40,658.66",Evidence on Impacts of Abstraction Reform Options on the Environment and Abstractors - March 2013
Defra,Core Defra,19/03/2013,Other Current Payments E,Policy Delivery DG,Food Standards Agency,1701982,"57,514.40",Supervision of the Cleaning and Disinfection of Livestock vehicles 2012-2013
Defra,Core Defra,19/03/2013,Other Current Payments (Evidence R&D),Policy Delivery DG,B B S R C,BBSR10055,"26,249.80",2012- 2013 Development of Rationally Attenuated live Vaccines for Effective Control of Infectious Bronchitis 
Defra,Core Defra,19/03/2013,Capital LA Grant E,Policy Delivery DG,London Borough Of Hounslow,120313,"32,000.00",2012-2013  Air Quality Grant 
Defra,Core Defra,19/03/2013,Capital LA Grant E,Policy Delivery DG,Oxfordshire County Council,120313,"50,000.00",2012-2013 Air Quality Grant
Defra,Core Defra,19/03/2013,Evidence Non R&D,Policy Delivery DG,Ricardo-A E A Ltd,6151171,"77,848.00",2012-2013 Quality services for Automatic Urban and Rural Network  - February 2013 Payment
Defra,Core Defra,19/03/2013,Evidence Non R&D,Policy Delivery DG,Ricardo-A E A Ltd,6150782,"77,848.00",2012-2013 Quality services for Automatic Urban and Rural Network  - February 2013 payment
Defra,Core Defra,19/03/2013,Other Current Payments (Evidence R&D),Policy Delivery DG,Health Protection Agency,5431224,"25,406.00",2012-2013 Infectious diseases associated with private water supply in England and Wales
Defra,Core Defra,19/03/2013,Evidence Non R&D,Policy Delivery DG,Food & Environment Research Agency,F0028071,"28,805.00",2012-2013 Differences between Genotypes of Phytophthora Ramorum In the UK in Relation to Risk and Disease Management 
Defra,Core Defra,19/03/2013,Evidence Non R&D,Policy Delivery DG,Centre For Ecology & Hydrology,7060004248,"33,000.00",2012-2013 Analytical and methodological development to support UK Butterfly Recording
Defra,Core Defra,19/03/2013,Other Current Payments (GB),Policy Delivery DG,Food & Environment Research Agency,F0027840,"35,511.00",2012-2013 Memorandum of Understanding - Badger control advice and support - January and February 2013 payment
Defra,Core Defra,19/03/2013,Evidence Non R&D,Policy Delivery DG,Food & Environment Research Agency,F0027868,"36,050.00",2012-2013 Memorandum of Understanding - Badger Vaccine Deployment Project - January and February 2013
Defra,Core Defra,19/03/2013,Evidence Non R&D,Policy Delivery DG,Animal Health and Veterinary Laboratories Agency,5000024514,"243,250.00",2012-2013 Bovine Tuberculosis Laboratory Surveillance.  March 2013 payment.
Defra,Core Defra,19/03/2013,Other Current Payments E,Policy Delivery DG,Food & Environment Research Agency,"""F0028001""","194,113.00",2012-2013 Emergency Response and Recovery Programme - March 2013 payment
Defra,Core Defra,19/03/2013,Other Current Payments E,Policy Delivery DG,Food & Environment Research Agency,F0028002,"89,201.00",2012-2013 Emergency Response and Recovery Programme - March 2013 payment
Defra,Core Defra,19/03/2013,Other Current Payments E,Policy Delivery DG,Food & Environment Research Agency,F0028024,"178,000.00",2012-2013 Emergency Response and Recovery Programme - Metagenomics project - March 2013 payment
Defra,Core Defra,19/03/2013,Capital LA Grant E,Policy Delivery DG,Council Of The Isles Of Scilly,140313,"1,000,000.00",2012-2013 The Sewerage Local Authority Support Grant Determination - March 2013 payment
Defra,Core Defra,19/03/2013,Evidence Non R&D,Policy Delivery DG,Animal Health and Veterinary Laboratories Agency,5000024511,"175,000.00",2012-2013 Laboratory Surveillance - March 2013 payment.
Defra,Core Defra,19/03/2013,Other Current Payments (GB),Policy Delivery DG,Food Standards Agency,1701983,"30,429.87",2012-2013 Memorandum of Understanding (Service Level Agreement) 28/1/13 - 24/2/13 payment
Defra,Core Defra,19/03/2013,Other Current Payments (Evidence R&D),Policy Delivery DG,Technology Strategy Board,715,"2,800,854.00",2012-2013 New Approaches to Crop Protection - Contribution to the Sustainable Agriculture and Food Innovation Platform Programme
Defra,Core Defra,19/03/2013,Evidence Non R&D,Policy Delivery DG,National Measurement Office,E015742,"490,000.00",2012-2013 Funding for Enforcing the Ecodesign and Energy Labelling Directives - second payment
Defra,Core Defra,19/03/2013,Evidence Non R&D,Policy Delivery DG,Animal Health and Veterinary Laboratories Agency,5000024510,"244,960.42",2012-2013 Laboratory Surveillance Zoonoses - March 2013 payment
Defra,Core Defra,19/03/2013,Evidence Non R&D,Policy Delivery DG,Animal Health and Veterinary Laboratories Agency,5000024513,"31,583.33",2012-2013 Enhancing Surveillance - March 2013 payment
Defra,Core Defra,19/03/2013,Evidence Non R&D,Policy Delivery DG,Animal Health and Veterinary Laboratories Agency,5000024509,"512,500.00",2012-2013 Scanning Surveillance of Emerging Disease - March 2013 payment
Defra,Core Defra,19/03/2013,Other Current Payments E,Policy Delivery DG,Ricardo-A E A Ltd,6151425,"50,574.92",2012-2014 Farming Advice Service - March 2013 payment
Defra,Core Defra,19/03/2013,Evidence Non R&D,Policy Delivery DG,C E F A S,8002664,"500,000.00",Joint Nature Conservation Committee High Level Agreement Partnership - March 2013 payment
Defra,Core Defra,19/03/2013,Evidence Non R&D,Policy Delivery DG,C E F A S,8002631,"156,000.00",Joint Nature Conservation Committee High Level Agreement Partnership - March 2013 payment
Defra,Core Defra,21/03/2013,Business Rates,Chief Operating Officer DG,D T Z,FR180,"2,613,054.65",Property-related costs - rent and service charges and insurance.  March 2013 payment
Defra,Core Defra,21/03/2013,Other Current Payments (Evidence R&D),Policy Delivery DG,S Q W Ltd,16833,"64,159.20",Developing and implementing a monitoring and evaluation framework for the Rural Growth Network initiative - First Milestone
Defra,Core Defra,21/03/2013,Other Current Payments (Evidence R&D),Policy Delivery DG,Arthur D Little,INV0009485,"29,927.38",Mapping current innovation and emerging Research and Development needs in the food and drink industry required for sustainable economic growth.  February 2013 payment.
Defra,Core Defra,21/03/2013,Other Current Payments (Evidence R&D),Policy Delivery DG,Meteorological Office,180313,"59,413.00",2012-2013 Scientific Support For National and International Policy - March 2013 payment.
Defra,Core Defra,21/03/2013,Evidence Non R&D,Policy Delivery DG,Forest Research Agency,R0007442,"41,498.00",2012-2013 Differences Between Genotypes of Phytophthora Ramorum in the UK in relation to risk and disease 
Defra,Core Defra,21/03/2013,Other Current Payments (Evidence R&D),Policy Delivery DG,Intellectual Property Office,I102489,"32,000.00",An analysis of genetic resources and patent activity
Defra,Core Defra,21/03/2013,Current Grants E,Policy Delivery DG,Waste & Resources Action Programme,MAR1150213,"5,228,185.00",Waste Resources Action Programme grant funding - March 2013 payment.
Defra,Core Defra,21/03/2013,Other Current Payments (Evidence R&D),Policy Delivery DG,Exeter Enterprises Ltd,GHA0107492,"58,868.00",2012-2013 Impacts of street lighting on Biodiversity
Defra,Core Defra,21/03/2013,Consultancy Non-Scheme,Policy Delivery DG,Ernst & Young LLP,GB10700015722,"39,398.08",Expert external commercial financial advice to Defra
Defra,Core Defra,21/03/2013,Consultancy Non-Scheme,Policy Delivery DG,Ernst & Young LLP,GB10700015755,"38,999.17",Expert external commercial financial advice to Defra 9/7/12 - 31/3/13
Defra,Core Defra,21/03/2013,Evidence Non R&D,Policy Delivery DG,A H D B,180014393,"44,880.00",1/11/12 - 31/10/13 Provision of Potato Statistics 
Defra,Core Defra,21/03/2013,Other Current Payments (Evidence R&D),Policy Delivery DG,A D A S UK Ltd,1.80E+12,"28,265.83",Potential for nitrification inhibitors and fertiliser nitrogen application timing strategies to reduce direct and indirect nitrous oxide emissions from UK agriculture - March 2013 payment
Defra,Core Defra,21/03/2013,Current Subsidies To Public Corporations,Policy Delivery DG,Covent Garden Market Authority,200213,"2,030,000.00",2012-2013 Capital Charge subsidy
Defra,Core Defra,22/03/2013,Other Current Payments (Evidence R&D),Policy Delivery DG,Imares,210313,"25,000.00",Processing backlog of UK Fulmar carcasses 2011 and 2012
Defra,Core Defra,22/03/2013,Other Current Payments E,Policy Delivery DG,Food & Agriculture Organisation Of The U N,200313,"150,000.00","2013-2014 UK Annual Contribution to Plant Genetic Resources for Food and Agriculture treaty
"
Defra,Core Defra,22/03/2013,Other Current Payments E,Policy Delivery DG,International Plant Genetic Resources Institute,120313,"43,885.00",European Cooperative Programme for Plant Genetic Resources (ECPGR) � Phase VIII 5th year's contribution
Defra,Core Defra,25/03/2013,Training - Learning & Development,Chief Operating Officer DG,J H P Group Ltd,325366,"30,000.00",20/11/12-30/10/14 National Vocational Qualification Provision
Defra,Core Defra,25/03/2013,Telephone Call Charges (C),Chief Operating Officer DG,British Telecommunications plc.,Q04501,"32,036.44",2012-2013 Telphone Bill Quarter 4 
Defra,Core Defra,25/03/2013,Voluntary Redundancies/Early Retirements,Chief Operating Officer DG,Department For Work & Pensions,2893900,"122,880.00",Payments relating to Voluntary Redundancy/Volunary Exit Scheme - April 2011 - January 2012 
Defra,Core Defra,25/03/2013,Grant-in Aid Payments,Chief Operating Officer DG,Royal Botanic Gardens Kew,KEWGIA121213190313,"375,000.00",2012-2013 Grant in Aid - March 2013 payment.
Defra,Core Defra,25/03/2013,Current Grants UK,Policy Delivery DG,Wiltshire Council,90157830,"520,000.00",2012-2013 Swindon and Wiltshire Rural Growth Network Pilot funding
Defra,Core Defra,25/03/2013,Other Current Payments (Evidence R&D),Policy Delivery DG,Medical Research Council,46442,"80,000.00","2012-2013 Contribution to the National Centre for the Replacement, Refinement and Reduction of Animals in research in CRACK IT challenge"
Defra,Core Defra,25/03/2013,Other Current Payments (Evidence R&D),Policy Delivery DG,C E F A S,8002718,"118,045.00",2012-2013 UK/Japan Research - Endocrine Disruptors in the Aquatic Environment - Quarter 4 payment
Defra,Core Defra,25/03/2013,Other Current Payments (Evidence R&D),Policy Delivery DG,Brunel University,FI151671,"198,852.60",Intelligent Ecotoxicology from single chemicals to mixtures.  March 2012 payment
Defra,Core Defra,25/03/2013,Other Current Payments (Evidence R&D),Policy Delivery DG,Food & Environment Research Agency,ERS-514855-43420,"40,000.00","Study on the determination of the species origin of gelatine in commercially available foods, including a supplementary validation study.  January - March 2013 payment."
Defra,Core Defra,25/03/2013,Other Current Payments E,Policy Delivery DG,Cascade Consulting (Environment & Planning) Ltd,2659,"43,884.72",2012-2013 Evaluation of the catchment-based approch - Drinking Water Inspectorate.  March 2013 payment
Defra,Core Defra,25/03/2013,Evidence Non R&D,Policy Delivery DG,Animal Health and Veterinary Laboratories Agency,ERS-514300-43434,"233,168.75",Surveillance for notable diseases - March 2013 payment
Defra,Core Defra,25/03/2013,Other Current Payments E,Policy Delivery DG,Rural Payments Agency,333778,"26,050.48",Design and Test Strategy for Sheep Interface - March 2013 payment
Defra,Core Defra,25/03/2013,Other Current Payments (Evidence R&D) (Agency),Policy Delivery DG,Animal Health and Veterinary Laboratories Agency,ERS-514488-43462,"37,638.50",Development of research tools to support arthropod-borne virus investigation.  March 2013 payment
Defra,Core Defra,25/03/2013,Other Current Payments (Evidence R&D) (Agency),Policy Delivery DG,Animal Health and Veterinary Laboratories Agency,ERS-514504-43468,"61,065.75","Antigen mining, differentiating infected from vaccinated animals, assays and other diagnostic approaches - March 2013 payment"
Defra,Core Defra,25/03/2013,Other Current Payments (Evidence R&D) (Agency),Policy Delivery DG,Animal Health and Veterinary Laboratories Agency,ERS-514437-43488,"31,053.50",Pathology and Pathogenesis of prion diseases - March 2013 payment
Defra,Core Defra,25/03/2013,Other Current Payments (Evidence R&D),Policy Delivery DG,B B S R C,ERS-514526-43231,"37,600.00",Emerging and Major Infectious Diseases of Livestock integrated systems approach for preventing uterine disease in dairy cattle - March 2013 payment.
Defra,Core Defra,25/03/2013,Other Current Payments (Evidence R&D) (Agency),Policy Delivery DG,Animal Health and Veterinary Laboratories Agency,ERS-514462-43490,"28,280.33",Assessment of the risk of selection of Extended Spectrum Beta Lactamase resistance in calves by feeding waste milk.  March 2013 payment
Defra,Core Defra,25/03/2013,Other Current Payments (Evidence R&D) (Agency),Policy Delivery DG,Animal Health and Veterinary Laboratories Agency,ERS-515246-43483,"89,073.00",2012-2013 Control measures for Salmonella on pig farms and their effect on endemic disease and productivity
Defra,Core Defra,25/03/2013,Other Current Payments (Evidence R&D) (Agency),Policy Delivery DG,Animal Health and Veterinary Laboratories Agency,ERS-514439-43447,"51,067.16",Studies of natural and experimental Transmissible Spongiform Encephalopathies - March 2013
Defra,Core Defra,25/03/2013,Other Current Payments (Evidence R&D) (Agency),Policy Delivery DG,Animal Health and Veterinary Laboratories Agency,ERS-514436-43445,"49,578.50",Maintenance of a Transmissible Spongiform Encephalopathies-free sheep flock after importation from New Zealand.  March 2013 payment.
Defra,Core Defra,25/03/2013,Other Current Payments (Evidence R&D) (Agency),Policy Delivery DG,Animal Health and Veterinary Laboratories Agency,ERS-514503-43467,"134,403.08",Continued vaccine development: Improving Bacille Calmette Guerin and developing non-sensitising vaccines for cattle - March 2013
Defra,Core Defra,25/03/2013,Other Current Payments (Evidence R&D) (Agency),Policy Delivery DG,Animal Health and Veterinary Laboratories Agency,ERS-514967-43481,"156,506.00",2012-2013 Improving the immunodiagnosis of bovine and porcine brucellosis.  March 2013 payment
Defra,Core Defra,25/03/2013,Other Current Payments (Evidence R&D) (Agency),Policy Delivery DG,Food & Environment Research Agency,ERS-514498-43387,"37,093.33",Badger Survey of England and Wales - March 2013 payment
Defra,Core Defra,25/03/2013,Other Current Payments (Evidence R&D) (Agency),Policy Delivery DG,Animal Health and Veterinary Laboratories Agency,ERS-515083-43482,"221,523.00",2012-2013 Baseline Sampling of Pig Zoonotic Disease
Defra,Core Defra,25/03/2013,Other Current Payments (Evidence R&D) (Agency),Policy Delivery DG,Animal Health and Veterinary Laboratories Agency,ERS-514432-43487,"31,415.32",Persistance of scrapie infectivity in buildings and the factors that influence this.  March 2013 payment
Defra,Core Defra,25/03/2013,Other Current Payments (Evidence R&D),Policy Delivery DG,University Of Birmingham,210I07744,"27,228.75",Use of Chemical Composition and Molecular Makers to infer the Sources of Airborne Particulate.  Final quarter 
Defra,Core Defra,25/03/2013,Other Current Payments (Evidence R&D),Policy Delivery DG,Centre For Ecology & Hydrology,ERS-515215-43330,"92,879.00",Heavy Metal Deposition
Defra,Core Defra,25/03/2013,Other Current Payments (Evidence R&D),Policy Delivery DG,University Of Birmingham,210I07489,"27,228.75",2012 -2013 Use of Chemical Composition and Molecular Makers to infer the Sources of Airborne Particulate.  Quarter 1
Defra,Core Defra,25/03/2013,Other Current Payments (Evidence R&D),Policy Delivery DG,Centre For Ecology & Hydrology,ERS-515187-43325,"28,096.00",2012-2013 Operation of the UK Eutrophying & Acidifying Atmospheric Pollutants.  March 2013 payment
Defra,Core Defra,25/03/2013,Evidence Non R&D,Policy Delivery DG,Department Of Energy and Climate Change,1100005564,"42,788.00",Grant in Aid for Adaptation Sub-Committee - payment for February 2013
Defra,Core Defra,25/03/2013,Evidence Non R&D,Policy Delivery DG,Department Of Energy and Climate Change,1100005565,"184,184.00",Grant in Aid for Adaptation Sub-Committee - payment for March 2013
Defra,Core Defra,25/03/2013,Evidence Non R&D,Policy Delivery DG,SKM Enviros,JW02792,"34,246.26",WasteDataFlow administration and management 1-13 March 2013
Defra,Core Defra,25/03/2013,Evidence Non R&D,Policy Delivery DG,Food & Environment Research Agency,ERS-514845-43416,"48,070.00",2012-2013 Understanding the challenges and opportunities for better detection and enhanced biosecurity in tree health 
Defra,Core Defra,25/03/2013,Evidence Non R&D,Policy Delivery DG,Food & Environment Research Agency,ERS-514847-43417,"43,766.00",2012-2013 Innovative solutions for control of current and emerging threats to UK trees and woodlands from pest invertebrates 
Defra,Core Defra,25/03/2013,Other Current Payments E,Policy Delivery DG,C E F A S,8002693,"29,192.00",2012-2013 Defra Funding - Dikerogammarus haemobaphes
Defra,Core Defra,25/03/2013,Other Current Payments (Evidence R&D),Policy Delivery DG,University Of Bristol,ERS-513888-43069,"96,587.00","2012-2013 Improving mitigation success where bats occupy houses and historic buildings, particularly churches.  February 2013 payment"
Defra,Core Defra,25/03/2013,Other Current Payments (Evidence R&D),Policy Delivery DG,Centre For Ecology & Hydrology,ERS-515291-43331,"244,637.00",2012-2013 Milestones - 'Lowland peatland systems in England and Wales - evaluating greenhouse gas fluxes & carbon balances.'  March 2013 payment
Defra,Core Defra,25/03/2013,Other Current Payments (Evidence R&D),Policy Delivery DG,Centre For Ecology & Hydrology,ERS-515292-43332,"182,768.00",2012-2013 Milestones - 'Lowland peatland systems in England and Wales - evaluating greenhouse gas fluxes & carbon balances'.  March 2013 payment
Defra,Core Defra,25/03/2013,Other Current Payments (Evidence R&D) (Agency),Policy Delivery DG,Animal Health and Veterinary Laboratories Agency,ERS-514494-43466,"41,206.00",An exploration of factors that influence the expansion of the area affected by endemic bovine Tuberculosis.  March 2013 payment
Defra,Core Defra,25/03/2013,Other Current Payments (Evidence R&D) (Agency),Policy Delivery DG,Animal Health and Veterinary Laboratories Agency,ERS-514501-43497,"71,234.08",Development of an oral Bacille Calmette Guerin (BCG) vaccine for badgers - March 2013 payment.
Defra,Core Defra,25/03/2013,Other Current Payments (Evidence R&D) (Agency),Policy Delivery DG,Food & Environment Research Agency,ERS-514500-43388,"47,396.28",Estimating badger group sizes in different landscapes in England and Wales.  March 2013 payment
Defra,Core Defra,25/03/2013,Payments to Agencies E,Policy Delivery DG,Food & Environment Research Agency,F0028188,"638,122.00","2012-2013 Depreciation 
"
Defra,Core Defra,25/03/2013,Evidence Non R&D,Policy Delivery DG,Animal Health and Veterinary Laboratories Agency,5000024828,"68,467.05",Fallen Stock Sampling Fee.  February 2013
Defra,Core Defra,25/03/2013,Evidence Non R&D,Policy Delivery DG,Animal Health and Veterinary Laboratories Agency,5000024515,"190,516.67",2012-2013 Laboratory Surveillance.  March 2013 payment
Defra,Core Defra,25/03/2013,Other Current Payments (Evidence R&D),Policy Delivery DG,A D A S UK Ltd,1.80E+12,"51,034.00",Developing the Farmscoper Decision support tool - March 2013 payment. 
Defra,Core Defra,25/03/2013,Other Current Payments (Evidence R&D),Policy Delivery DG,A D A S UK Ltd,1.80E+12,"38,241.16",Nitrous Oxide Emissions Factors - March 2013 payment
Defra,Core Defra,25/03/2013,Other Current Payments (Evidence R&D),Policy Delivery DG,Technology Strategy Board,725,"36,513.74",2012-2013 Knowledge Transfer Partnership - Quarter 4 payment
Defra,Core Defra,25/03/2013,Other Current Payments (Evidence R&D),Policy Delivery DG,Sac Commercial Ltd,1.80E+12,"25,795.83",Nitrous Oxide Emissions Factors - March 2013 payment
Defra,Core Defra,25/03/2013,Other Current Payments (Evidence R&D),Policy Delivery DG,The Freshwater Biological Association,1.80E+12,"39,700.00",2012-2013 Demonstration Test Catchments: Data sharing and archival.  March 2013 payment. 
Defra,Core Defra,25/03/2013,Other Current Payments (Evidence R&D),Policy Delivery DG,Ricardo-A E A Ltd,6151489,"33,190.00",Evaluation of the Waste Reward and Recognition Fund.  March 2013 payment.
Defra,Core Defra,25/03/2013,Evidence Non R&D,Policy Delivery DG,C E F A S,8002720,"2,415,871.00",2012-2013 High Level Agreement Payment - March 2013
Defra,Core Defra,25/03/2013,Other Current Payments E,Policy Delivery DG,JSS Pensions Administration,6562,"112,010.04",Nature Conservancy Council Pensions Scheme - Payment for February 2013
Defra,Core Defra,25/03/2013,Other Current Payments (Evidence R&D),Policy Delivery DG,C E F A S,8002654,"1,530,000.00",Data collection programme for recommended Marine Conservation Zones
Defra,Core Defra,25/03/2013,Other Current Payments (Evidence R&D),"Strategy, Evidence and Customers DG",Food & Environment Research Agency,F0028069,"33,000.00",Indication of Food Origin Using a Metagenomic Approach.  March 2013 payment
Defra,Core Defra,25/03/2013,Other Current Payments (Evidence R&D),"Strategy, Evidence and Customers DG",Animal Health and Veterinary Laboratories Agency,ERS-514491-43463,"37,100.00",Anticipating the global onset of Novel Epidemics.  March 2013  payment.
Defra,Core Defra,25/03/2013,Other Current Payments (Evidence R&D),"Strategy, Evidence and Customers DG",C E F A S,8002617,"25,000.00",2012-2013 Response of ecosystems and fisheries to management in a changing envirionment.  March 2013 payment 
Defra,Core Defra,25/03/2013,Other Current Payments (Evidence R&D),"Strategy, Evidence and Customers DG",Food & Environment Research Agency,ERS-515120-43428,"74,678.00",Evaluation of Procedures to Improve Estimates of Exposure of Pollinators to Neonicotinoid Insecticides
Defra,Core Defra,27/03/2013,Gas,Chief Operating Officer DG,Corona Energy,8051531,"43,607.41",Defra - Property Holding Costs - Gas - 1 February 2013 -1 March 2013
Defra,Core Defra,27/03/2013,Gas,Chief Operating Officer DG,Corona Energy,8051589,"113,502.86",Defra - Property Holding Costs - Gas -1 February 2013 - 1 March 2013
Defra,Core Defra,27/03/2013,Gas,Chief Operating Officer DG,Corona Energy,8051644,"27,996.72",Defra - Property Holding Costs - Gas - February - March 2013
Defra,Core Defra,27/03/2013,Gas,Chief Operating Officer DG,Corona Energy,8073709,"126,105.25",Defra - Property Holding Costs - Gas - 1 February 2013 -1 March 2013
Defra,Core Defra,27/03/2013,Grant-in Aid Payments,Chief Operating Officer DG,Royal Botanic Gardens Kew,KEWGIA141213,"700,000.00",2012 - 2013 Grant in Aid 
Defra,Core Defra,27/03/2013,Work package/WPO Implementation,Chief Operating Officer DG,IBM United Kingdom Ltd,5803130366,"51,740.71",Internet Explorer 9 Application Testing charged on a time and materials basis.  4-25 Janurary 2013 payment.
Defra,Core Defra,27/03/2013,Work package/WPO Implementation,Chief Operating Officer DG,IBM United Kingdom Ltd,5803130364,"45,931.39",Upgrade of Tivoli Access Manager - Sandpit Environment build
Defra,Core Defra,27/03/2013,Application Services/Minor Enhancements,Chief Operating Officer DG,IBM United Kingdom Ltd,5802131119,"29,045.51",2012-2013 Minor Enhancement Request Framework.  1-28 February 2013 payment
Defra,Core Defra,27/03/2013,IBM Base Services Control,Chief Operating Officer DG,IBM United Kingdom Ltd,5803130139,"6,007,529.70",1-31 March 2013 Defra IT Baseline Services
Defra,Core Defra,27/03/2013,Publications - Storage & Distribution (C),Chief Operating Officer DG,Iron Mountain (UK) Ltd,Z599211Z599230,"30,492.59",Blanket purchase order for Defra Records Contract.  February 2013 payment
Defra,Core Defra,27/03/2013,Current Grants UK,Policy Delivery DG,Devon County Council,53009810,"2,615,500.00",Rural Growth Network Pilot funding.  February 2013 payment
Defra,Core Defra,27/03/2013,Current Grants UK,Policy Delivery DG,Waste & Resources Action Programme,1833,"15,000,000.00",Grant payment for Rural Community Renewable Energy Fund
Defra,Core Defra,27/03/2013,Current Grants UK,Policy Delivery DG,Northumberland County Council,73841,"2,815,735.00",Durham and Northumberland Rural Growth Network Pilot funding.  February 2013 payment
Defra,Core Defra,27/03/2013,Current Grants UK,Policy Delivery DG,Warwickshire County Council,10048594,"2,085,456.00",Coventry and Warwickshire Rural Growth Network Pilot funding.  February 2013 payment
Defra,Core Defra,27/03/2013,Current Grants UK,Policy Delivery DG,Cumbria County Council,225004,"2,272,500.00",Cumbria Rural Growth Network Pilot funding.  February 2013 payment
Defra,Core Defra,27/03/2013,Other Current Payments (Evidence R&D),Policy Delivery DG,University Of Bristol,ERS-11-MAR-13-43276,"35,463.41",Evaluation of Meat Chicken Regulations.  March 2013 payment
Defra,Core Defra,27/03/2013,Other Current Payments (Evidence R&D),Policy Delivery DG,The Pirbright Institute,ERS-514483-43511,"34,804.00",Tracing the origins of foot-and-mouth disease outbreaks.  March 2013 payment.
Defra,Core Defra,27/03/2013,Other Current Payments (Evidence R&D),Policy Delivery DG,The Pirbright Institute,ERS-514479-43505,"29,502.44",Orbivirus molecular epidemiology studies and development of diagnostic assay systems.  March 2013 payment.
Defra,Core Defra,27/03/2013,Other Current Payments (Evidence R&D),Policy Delivery DG,The Pirbright Institute,ERS-514474-43504,"95,472.44",Further development of Reverse-Transcription Polymerase Chain Reaction technology in support of Foot and Mouth disease diagnosis.  March 2013 payment.
Defra,Core Defra,27/03/2013,Other Current Payments (Evidence R&D),Policy Delivery DG,University Of Edinburgh,ERS-514424-43284,"27,119.75",2012-2013 Carrier state: do sheep of resistant PrP genotypes become sub-clinically infected when exposed to scrapie?  March 2013 payment.
Defra,Core Defra,27/03/2013,Other Current Payments (Evidence R&D),Policy Delivery DG,The Pirbright Institute,ERS-514489-43512,"31,616.00",Understanding and predicting the spread of vector and aerosol borne livestock pathogens in the UK.  March 2013 payment
Defra,Core Defra,27/03/2013,Other Current Payments (Evidence R&D),Policy Delivery DG,The Pirbright Institute,ERS-514475-43506,"27,600.58",2012-2013 African swine fever virus: improvement of diagnostic tests and vaccine development.  March 2013 payment.
Defra,Core Defra,27/03/2013,Other Current Payments (Evidence R&D),Policy Delivery DG,The Pirbright Institute,ERS-514481-43509,"27,662.33",Development of methods to enhance implementation of foot-and-mouth disease virus control measures.  March 2013 payment.
Defra,Core Defra,27/03/2013,Other Current Payments (Evidence R&D),Policy Delivery DG,The Pirbright Institute,ERS-514480-43508,"57,810.83",Development of novel Footh and Mouth disease vaccines.  March 2013 payment
Defra,Core Defra,27/03/2013,Evidence Non R&D,Policy Delivery DG,Hartley Mcmaster Ltd,12356,"27,316.00",2012-2013 Statistical Survey for Local Authority Pollution Prevention Control 
Defra,Core Defra,27/03/2013,Other Current Payments (Evidence R&D),Policy Delivery DG,Ricardo-A E A Ltd,6151606,"65,864.00",2012-2013 UK Eutrophying & Acidfying Atmospheric Pollutants.  March 2013 payment 
Defra,Core Defra,27/03/2013,Evidence Non R&D,Policy Delivery DG,Hepworth Acoustics Ltd,C0065,"31,147.77",2012-2013 Calculation of Noise Levels from Road and Rail Sources.  March 2013 payment.
Defra,Core Defra,27/03/2013,Evidence Non R&D,Policy Delivery DG,Bureau Veritas UK Ltd,13004653,"146,365.00",2012-2013 The Automatic Urban & Rural Network.  March 2013 payment.
Defra,Core Defra,27/03/2013,Evidence Non R&D,Policy Delivery DG,Ricardo-A E A Ltd,6151560,"34,199.00",2012-2013 Baseline measurements - UK Stratospheric Ozone and Spectral UV.  March 2013 payment 
Defra,Core Defra,27/03/2013,Other Current Payments (Evidence R&D),Policy Delivery DG,URS Infrastructure & Environment UK Ltd,5462155,"74,046.00",2012-2013 Noise Monitoring Study.  March 2013 payment.
Defra,Core Defra,27/03/2013,Other Current Payments (Evidence R&D),Policy Delivery DG,URS Infrastructure & Environment UK Ltd,5430994,"27,287.00",2012-2013 Noise Monitoring Study.  February 2013 payment. 
Defra,Core Defra,27/03/2013,Evidence Non R&D,Policy Delivery DG,Ricardo-A E A Ltd,6151558,"106,103.94",2012-2013 UK Hydrocarbons Monitoring - for January to March 2013
Defra,Core Defra,27/03/2013,Current Grants E,Policy Delivery DG,Vehicle Certification Agency,SIAR174091,"44,000.00",Memorandum of Understanding.  March 2013 payment. 
Defra,Core Defra,27/03/2013,Application Services/Applications On-Boarding,Policy Delivery DG,IBM United Kingdom Ltd,5803130501,"50,477.62",Raw Water Business Object Reporting Solution - start of design and development - 1-31 March 2013
Defra,Core Defra,27/03/2013,Current Grants E,Policy Delivery DG,R S P B,70313,"33,510.00",Addressing the threat of invasive species in Pitcairn Overseas Territory - 1 April 2012 to 31 December 2012
Defra,Core Defra,27/03/2013,Other Current Payments (Evidence R&D),Policy Delivery DG,Collingwood Environmental Planning,749,"50,000.00",2012-2013 Evaluation of the Biodiversity Offsetting pilot phase.  March 2013 payment
Defra,Core Defra,27/03/2013,Current Grants E,Policy Delivery DG,Bangor University,190213,"27,209.75",Strengthening the world's largest Marine Protected Area - October 12 to December 12
Defra,Core Defra,27/03/2013,Other Current Payments (Evidence R&D),Policy Delivery DG,British Trust For Ornithology,ACCS0309,"120,000.00",2012-2013 Biological Impacts of Climate Change Observation Network.
Defra,Core Defra,27/03/2013,Current grants to charitable bodies,Policy Delivery DG,R S P B,SLINV00023763,"50,000.00",Contribution to a prioritised framework for invasive species eradication in the Overseas Territories Project 
Defra,Core Defra,27/03/2013,Other Current Payments (Evidence R&D),Policy Delivery DG,Rothamsted Research.,ERS-515310-43344,"28,901.00",2012-2013 Lowland peatland systems in England and Wales: evaluating greenhouse gas fluxes and carbon balances.  March 2013 payment
Defra,Core Defra,27/03/2013,Other Current Payments (Evidence R&D),Policy Delivery DG,British Geological Survey,ERS-514253-43236,"34,126.75",2012-2013 Establishing Data on Normal/ Background Levels of Soil Contamination in England
Defra,Core Defra,27/03/2013,Other Current Payments (Evidence R&D),Policy Delivery DG,Rothamsted Research.,ERS-515311-43345,"37,901.00",2012-2013  and 2013-2014 Milestones for Lowland peatland systems in England & Wales: evaluating greenhouse gas fluxes & carbon balances
Defra,Core Defra,27/03/2013,Other Current Payments (Evidence R&D),Policy Delivery DG,Imperial College London,ERS-514499-43346,"57,878.00",Transmission modelling and cost-effectiveness analysis of cattle vaccination at a herd level.  March 2013 payment
Defra,Core Defra,27/03/2013,Other Current Payments (Evidence R&D),Policy Delivery DG,Zoological Society Of London.,ERS-514495-43431,"62,778.00",A study to examine the interactions between cattle and badgers.  March 2013 Payment
Defra,Core Defra,27/03/2013,Other Current Payments (Evidence R&D),Policy Delivery DG,University Of Reading,ERS-514817-43303,"32,753.33",Optimising the efficiency of dietary nitrogen use to reduce emissions and waste in dairy systems.  March 2013 Payment
Defra,Core Defra,27/03/2013,Other Current Payments (Evidence R&D),Policy Delivery DG,North Wyke Research.,ERS-514816-43373,"36,437.74",Greenhouse Gas Platform - Nitrous Oxide Emissions Factors. March 2013 payment
Defra,Core Defra,27/03/2013,Evidence Non R&D,Policy Delivery DG,Ricardo-A E A Ltd,6151583,"31,750.94",Sustainable Consumption and Production Lead Contract  - Energy Using Products - March 2013 payment.
Defra,Core Defra,27/03/2013,Other Current Payments (GB),Policy Delivery DG,University Of Reading,ERS-515216-43306,"36,506.67",The Long-Term Maintenance and Scientific Curation of the National Fruit Collection -  March 2013 payment
Defra,Core Defra,27/03/2013,Other Current Payments (Evidence R&D),Policy Delivery DG,Economics For The Environ Consult Ltd,797,"32,467.50",2012-2013 Passage of Fish - Benefits Study
Defra,Core Defra,27/03/2013,Other Current Payments (Evidence R&D),"Strategy, Evidence and Customers DG",G H K Consulting Ltd,30405592,"42,000.00","The Red Tape Challenge - Cross-cutting reform review ""Smarter Environmental Regulation for a Greener Economy.""."
Defra,Core Defra,27/03/2013,Other Current Payments (Evidence R&D),"Strategy, Evidence and Customers DG",G H K Consulting Ltd,30405588,"48,000.00","The Red Tape Challenge - Mapping the regulatory Landscape ""Smarter Environmental Regulation for a Greener Economy.""."
Defra,Core Defra,27/03/2013,Other Current Payments (Evidence R&D),"Strategy, Evidence and Customers DG",Rothamsted Research.,ERS-514851-43338,"69,259.00","2012-2013 Organic matter to improve soil structure for crop growth, competitiveness and environmental protection - Strategic Evidence Partnership fund.  March 2013 payment"
Defra,Core Defra,27/03/2013,Publicity Campaigns,"Strategy, Evidence and Customers DG",Bang Communications Ltd,SC0425,"35,016.00",Defra Connect 6 Month Hosting - for 2013
Defra,Core Defra,28/03/2013,Property Lease Costs,Chief Operating Officer DG,D T Z,DEFRA181,"350,483.74",Property Holding Costs - Rents to Landlords and service charges and insurance - March 2013 payment
Defra,Core Defra,28/03/2013,Other Current Payments (Evidence R&D),"Strategy, Evidence and Customers DG",USDA/ARS/AFM,270313,"61,000.00","The Geospatial Open Source Hosting of Agriculture, Resource and Environmental Data "
Defra,Core Defra,05/03/2013,Payover,Central Finance Group,Rural Payments Agency,311212,"1,399,253.69",2012-2013 Value Added Tax Quarter 3
Defra,Core Defra,05/03/2013,Payover,Central Finance Group,Veterinary Medicines Directorate,311212,"58,575.94",2012-2013 Value Added Tax Quarter 3
Defra,Core Defra,11/03/2013,Payover,Central Finance Group,Animal Health and Veterinary Laboratories Agency,311212,"398,651.56",2012-2013 Value Added Tax Quarter 3 
Defra,Core Defra,12/04/2013,GPC Card,Central Finance Group,Barclaycard Business Issuing,4.72E+21,"47,996.58",Barclaycard Monthly Bill - March 2012
Defra,Core Defra,22/04/2013,Redfern Suspense,Central Finance Group,Redfern Travel Ltd,54375,"311,300.69",Redfern Travel Bill - March 2012
Defra,Core Defra,10/04/2013,Clearing Construction in Progress (Building Works),Chief Operating Officer DG,Interserve (Facilities Mngmnt) Ltd,FI00024804,"37,663.46","Provision of flexiform lockers for Nobel House, London"
Defra,Core Defra,10/04/2013,Clearing Construction in Progress (Building Works),Chief Operating Officer DG,Interserve (Facilities Mngmnt) Ltd,FI00024775,"44,836.60","Alterations to provide disabled access to Northgate House, Reading "
Defra,Core Defra,10/04/2013,Clearing Construction in Progress (Building Works),Chief Operating Officer DG,Interserve (Facilities Mngmnt) Ltd,FI00024805,"49,600.68","Provision of furniture (task chairs) in Nobel House, London"
Defra,Core Defra,10/04/2013,Clearing Construction in Progress (Building Works),Chief Operating Officer DG,Interserve (Facilities Mngmnt) Ltd,FI00024807,"60,924.65","Furniture - London Rationalisation programme, Nobel House"
Defra,Core Defra,10/04/2013,Agency Recharge,Chief Operating Officer DG,Interserve (Facilities Mngmnt) Ltd,FI00024790,"266,554.34",Bio Security Design And Works at Weybridge
Defra,Core Defra,10/04/2013,Clearing Construction in Progress (Building Works),Chief Operating Officer DG,Interserve (Facilities Mngmnt) Ltd,FI00024811,"49,645.74","Machinery and equipment repairs as part of the Nobel House, London Rationalisation Programme"
Defra,Core Defra,12/04/2013,Clearing Construction in Progress (Building Works),Chief Operating Officer DG,Interserve (Facilities Mngmnt) Ltd,FI00024800,"895,174.12",Office refurbishment of Stirling House
Defra,Core Defra,16/04/2013,Clearing Construction in Progress (Building Works),Chief Operating Officer DG,Interserve (Facilities Mngmnt) Ltd,FI00024785,"32,161.10","Provision of furniture (DO chairs) in Nobel House, London"
Defra,Core Defra,16/04/2013,Clearing Construction in Progress (Building Works),Chief Operating Officer DG,Interserve (Facilities Mngmnt) Ltd,FI00024781,"42,903.49","Staff and Furniture Moves - London Rationalisation programme, Nobel House"
Defra,Core Defra,16/04/2013,Agency Recharge,Chief Operating Officer DG,Interserve (Facilities Mngmnt) Ltd,FI00024801,"72,498.00",Office refurbishment of Clyst House
Defra,Core Defra,16/04/2013,Clearing Construction in Progress (Building Works),Chief Operating Officer DG,Interserve (Facilities Mngmnt) Ltd,FI00024806,"61,795.42","General Floor Furniture - London Rationalisation programme, Nobel House"
Defra,Core Defra,16/04/2013,Clearing Construction in Progress (Building Works),Chief Operating Officer DG,Interserve (Facilities Mngmnt) Ltd,FI00024792,"38,492.14","Refurbishment Works at Nobel House, London (new tea points, new meeting rooms with AC as required, supply and Install carpets for new areas. Install data and power changes)"
Defra,Core Defra,16/04/2013,FM Projects Non Capital Works,Chief Operating Officer DG,Interserve (Facilities Mngmnt) Ltd,FI00024773,"35,139.66",Various facility management works
Defra,Core Defra,16/04/2013,IT Software,Chief Operating Officer DG,Environment Agency,1152509,"497,000.00",Purchase of Infrastructure for Spatial Information in Europe (INSPIRE) Technology Software March 2013
Defra,Core Defra,18/04/2013,Agency Recharge,Chief Operating Officer DG,Interserve (Facilities Mngmnt) Ltd,FI00024816,"46,153.19","Supply, deliver and install 3  condensing boilers complete with associated flues and ancillary services, Weymouth"
Defra,Core Defra,18/04/2013,Clearing Construction in Progress (Building Works),Chief Operating Officer DG,Interserve (Facilities Mngmnt) Ltd,FI00024786,"168,439.87","Lighting replacement, Nobel House, London"
Defra,Core Defra,18/04/2013,Clearing Construction in Progress (Building Works),Chief Operating Officer DG,Interserve (Facilities Mngmnt) Ltd,FI00024803,"320,164.01","Space plan and fit study at Toothill Close, Unex House"
Defra,Core Defra,18/04/2013,Agency Recharge,Chief Operating Officer DG,Interserve (Facilities Mngmnt) Ltd,FI00024817,"134,295.95","Install 2 new high efficiency chillers and modify existing pipework, heat rejection duct work and cap off, Weymouth"
Defra,Core Defra,18/04/2013,Agency Recharge,Chief Operating Officer DG,Interserve (Facilities Mngmnt) Ltd,FI00024815,"38,795.72",Animal Health and Veterinary Laboratories Agency - Laboratory Refurbishment - March 2013
Defra,Core Defra,22/04/2013,Clearing Construction in Progress (Building Works),Chief Operating Officer DG,Interserve (Facilities Mngmnt) Ltd,FI00024793,"99,894.40",Refurbishment works at Ergon House - March 2013
Defra,Core Defra,22/04/2013,Agency Recharge,Chief Operating Officer DG,Interserve (Facilities Mngmnt) Ltd,FI00024813,"99,617.59","Roof repairs, Northgate House"
Defra,Core Defra,22/04/2013,Agency Recharge,Chief Operating Officer DG,Interserve (Facilities Mngmnt) Ltd,FI00024812,"43,093.26","Balcony repairs, Northgate House"
Defra,Core Defra,22/04/2013,Agency Recharge,Chief Operating Officer DG,Interserve (Facilities Mngmnt) Ltd,FI00024799,"127,121.17",Strip out and refubishment of Starcross office accommodation 
Defra,Core Defra,22/04/2013,Clearing Construction in Progress (Building Works),Chief Operating Officer DG,Interserve (Facilities Mngmnt) Ltd,FI00024789,"54,384.00",Supply of general floor furniture to Nobel House a part of the London Rationalisation project
Defra,Core Defra,22/04/2013,Clearing Construction in Progress (Building Works),Chief Operating Officer DG,Interserve (Facilities Mngmnt) Ltd,FI00024791,"125,009.33","Roofing and scaffold works, Nobel House"
Defra,Core Defra,24/04/2013,Other recharges,Chief Operating Officer DG,Interserve (Facilities Mngmnt) Ltd,FI00024780,"31,193.10",Animal Health and Veterinary Laboratories Agency project
Defra,Core Defra,26/04/2013,Clearing Construction in Progress (Building Works),Chief Operating Officer DG,IBM United Kingdom Ltd,5803130564,"37,467.26",Data Centre Disaster Recovery investigations and scoping
Defra,Core Defra,26/04/2013,Clearing Construction in Progress (Building Works),Chief Operating Officer DG,IBM United Kingdom Ltd,5803131193,"76,474.51","Refurbishment work for Ergon House, Nobel House and Mill Bank"
Defra,Core Defra,26/04/2013,Clearing Construction in Progress (Building Works),Chief Operating Officer DG,IBM United Kingdom Ltd,5803131183,"51,194.39","Office moves, Colchester and Newcastle"
Defra,Core Defra,30/04/2013,Agency Recharge,Chief Operating Officer DG,Interserve (Facilities Mngmnt) Ltd,FI00024794,"41,336.54",Laboratory Strip Out and Refurbishment works at Longbenton - March 2013 Payment
Defra,Core Defra,30/04/2013,Agency Recharge,Chief Operating Officer DG,Interserve (Facilities Mngmnt) Ltd,FI00024130,"220,461.55",aboratory Strip Out and Refurbishment works at Longbenton - February 2013 payment
Defra,Core Defra,02/04/2013,Gas,Chief Operating Officer DG,Corona Energy,8073271,"29,113.26",agree with column k
Defra,Core Defra,02/04/2013,Estates Professional Fees & Services,Chief Operating Officer DG,D T Z,204438,"38,032.60",Professional Management Services - March 2013
Defra,Core Defra,02/04/2013,Overhead Incidental Expenses,Chief Operating Officer DG,H M Revenue & Customs,1.80E+13,"75,026.22","Recruitment campaign for Higher Executive Officer to include design work on the written exercise, costs for sifting, managing the written exercise and advertising fees.  "
Defra,Core Defra,02/04/2013,Other Current Payments E,Chief Operating Officer DG,Foden Grealy Limited,505376,"26,238.76",Consulting service for Change Management Programme 2/1/13 - 15/2/13
Defra,Core Defra,02/04/2013,Grant-in Aid Payments,Chief Operating Officer DG,Royal Botanic Gardens Kew,KEWGIA011314,"3,000,000.00",2013-2014 Grant in aid payment April 2013
Defra,Core Defra,02/04/2013,Other Capital UK,Chief Operating Officer DG,Epimorphics Ltd,A000137,"28,344.00",UK Location Registry 'Proof of Concept' Development Project
Defra,Core Defra,03/04/2013,Publications - Storage & Distribution (C),Chief Operating Officer DG,Iron Mountain (UK) Ltd,340088,"60,000.00",Blanket purchase order for Defra Records Contract
Defra,Core Defra,03/04/2013,Publications - Storage & Distribution (C),Chief Operating Officer DG,Iron Mountain (UK) Ltd,340099,"46,800.00",Blanket purchase order for Defra Records Contract
Defra,Core Defra,04/04/2013,Business Rates,Chief Operating Officer DG,D T Z,DEFRA182,"71,492.99",agree with column k
Defra,Core Defra,04/04/2013,Estates Professional Fees & Services,Chief Operating Officer DG,D T Z,204568,"41,775.00",Desk Top Review of Fixed Assets as at 31 December 2012 and 31 March 2013
Defra,Core Defra,04/04/2013,Consultancy Non-Scheme,Chief Operating Officer DG,Local Partnerships LLP,41101131,"29,938.97",Support Defra�s work to identify a strategic approach for Food & Environment Research Agency in order to further exploit the commercial potential of the organization 
Defra,Core Defra,04/04/2013,Overhead Incidental Expenses,Chief Operating Officer DG,Royal Botanic Gardens Kew,S9056MT,"113,355.74",Human Resouce and Information Communication Technology Costs Associated with the onboard of Kew processes to DEFRA
Defra,Core Defra,08/04/2013,Work package/WPO Implementation,Chief Operating Officer DG,IBM United Kingdom Ltd,5803131482,"33,646.70","Flexible Devices Stage 2 project for supply of Pilot Tablet, build and deploy"
Defra,Core Defra,08/04/2013,Inwards Secondments,Chief Operating Officer DG,Food & Environment Research Agency,F0028337,"25,730.93",Salary costs for member of staff on loan to DEFRA. March 2013 payment
Defra,Core Defra,08/04/2013,IT Software,Chief Operating Officer DG,Environment Agency,1152357,"100,000.00",Collaborative Agreement relating to the Supply of a Data Sharing Service on behalf of the Defra Network. March 2013 payment
Defra,Core Defra,08/04/2013,Payments to Agencies UK,Chief Operating Officer DG,Food & Environment Research Agency,F0028063,"710,999.00",Memorandum of Understanding. January -March 2013
Defra,Core Defra,10/04/2013,Work package/WPO Implementation,Chief Operating Officer DG,IBM United Kingdom Ltd,5803131895,"88,569.05",Software refresh - Upgrade of AIX system. March 2013 payment
Defra,Core Defra,11/04/2013,Property Lease Costs,Chief Operating Officer DG,D T Z,DEFRA183,"194,739.92",agree with column k
Defra,Core Defra,12/04/2013,Electricity,Chief Operating Officer DG,E D F Energy,140020413,"61,730.40",Property Holding Costs - Electricity bill payment  
Defra,Core Defra,12/04/2013,Reactive Element of Core IFM fee,Chief Operating Officer DG,Interserve (Facilities Mngmnt) Ltd,FI00024585,"576,352.07",Facilities Management maintenance fee for reacting to incidents 1/3/13-31/3/13
Defra,Core Defra,12/04/2013,Estates Reactive Maintenance,Chief Operating Officer DG,Interserve (Facilities Mngmnt) Ltd,FI00024771,"41,671.78",Costs incurred for the undertaking of Estates maintenance projects over multiple sites which have been invoiced for March 2013
Defra,Core Defra,12/04/2013,Estates IFM Core Maintenance,Chief Operating Officer DG,Interserve (Facilities Mngmnt) Ltd,FI00024584,"2,051,217.55",Payment of the March 2013 Facilities Management Core Contract fee
Defra,Core Defra,12/04/2013,Rents to Landlords,Chief Operating Officer DG,Interserve (Facilities Mngmnt) Ltd,FI00024772,"93,127.15",Costs incurred for the undertaking of Estates maintenance projects over multiple sites which have been invoiced for March 2013
Defra,Core Defra,12/04/2013,Other Current Payments E,Chief Operating Officer DG,Steria Limited,100045669,"124,035.50","Advisory services within IT relating to systems and concepts, including strategic studies and development of specific projects for the period 24/09/12 to 02/11/12. March 2013 payment"
Defra,Core Defra,12/04/2013,Estates IFM Pass- Through Maintenance,Chief Operating Officer DG,Interserve (Facilities Mngmnt) Ltd,FI00024767,"70,532.42",Pass through costs - April 2013
Defra,Core Defra,12/04/2013,Publications - Storage & Distribution (C),Chief Operating Officer DG,Iron Mountain (UK) Ltd,Z706858Z706876,"44,279.78",Blanket purchase order for Defra Records Contract
Defra,Core Defra,16/04/2013,Electricity,Chief Operating Officer DG,E D F Energy,138020413,"123,879.05",Property Holding Costs-Electricity bill payment- period of supply 1-31 March 2013
Defra,Core Defra,16/04/2013,Electricity,Chief Operating Officer DG,E D F Energy,149020413,"30,494.94",Property Holding Costs-Electricity bill payment- period of supply  1-31 March 2013.
Defra,Core Defra,16/04/2013,FM Projects Non Capital Works,Chief Operating Officer DG,Interserve (Facilities Mngmnt) Ltd,FI00024779,"63,382.46",Refurbishment works Nobel House
Defra,Core Defra,18/04/2013,Business Rates,Chief Operating Officer DG,D T Z,DEFRA184,"159,942.69",agree with column k
Defra,Core Defra,22/04/2013,Consultancy Non-Scheme,Chief Operating Officer DG,Local Partnerships LLP,41101187,"41,012.66",Thames Tunnel project - consultancy - April 2013
Defra,Core Defra,22/04/2013,FM Projects Non Capital Works,Chief Operating Officer DG,Interserve (Facilities Mngmnt) Ltd,FI00022645,"26,672.50",Maintenance work Northgate House Reading. December 2012 payment
Defra,Core Defra,22/04/2013,Work package/WPO Implementation,Chief Operating Officer DG,IBM United Kingdom Ltd,5803130929,"78,055.25",Technology Refresh - February 2013
Defra,Core Defra,22/04/2013,Work package/WPO Implementation,Chief Operating Officer DG,IBM United Kingdom Ltd,5803131189,"171,851.81",Technology Refresh - Upgrade of Websphere software - March 2013
Defra,Core Defra,22/04/2013,Work package/WPO Implementation,Chief Operating Officer DG,IBM United Kingdom Ltd,5803131187,"32,826.87",Technology Refresh - Websphere process choreographer replacement - April 2013
Defra,Core Defra,22/04/2013,Work package/WPO Implementation,Chief Operating Officer DG,IBM United Kingdom Ltd,5803131190,"37,241.84",Technology Refresh - Upgrade of ESX software - April 2013
Defra,Core Defra,22/04/2013,Work package/WPO Implementation,Chief Operating Officer DG,IBM United Kingdom Ltd,5803131195,"114,251.66",Technology Refresh - MS.NET Upgrade
Defra,Core Defra,22/04/2013,Application Services/Applications Delivery,Chief Operating Officer DG,IBM United Kingdom Ltd,5803131188,"352,180.17",Technology Refresh - Public sector networks
Defra,Core Defra,22/04/2013,Work package/WPO Implementation,Chief Operating Officer DG,IBM United Kingdom Ltd,5803131031,"25,718.69",Technology Refresh - Upgrade of Websphere software - April 2013
Defra,Core Defra,22/04/2013,Work package/WPO Implementation,Chief Operating Officer DG,IBM United Kingdom Ltd,5803131185,"35,827.93",Technology Refresh - Eden application testing - April 2013
Defra,Core Defra,22/04/2013,Payments to Agencies UK,Chief Operating Officer DG,Food & Environment Research Agency,F0028056,"819,418.00",Food & Environment Research Agency Plant Health Non-Evidence funding - January/February 2013
Defra,Core Defra,22/04/2013,Other Current Payments (GB),Chief Operating Officer DG,Animal Health and Veterinary Laboratories Agency,5000025293,"2,490,335.23",Animal Health and Veterinary Laboratories Agency depreciation charges - October 2012 to -February 2013
Defra,Core Defra,24/04/2013,Overhead Incidental Expenses,Chief Operating Officer DG,Oracle Corporation UK Ltd,1399946,"927,075.35",Oracle software license and support - April 2013
Defra,Core Defra,24/04/2013,Gas,Chief Operating Officer DG,Corona Energy,8164608,"91,881.53",March 2013 - Gas Bill
Defra,Core Defra,24/04/2013,Agency temps - clerical,Chief Operating Officer DG,Royal Botanic Gardens Kew,S9192MT,"80,398.16",Kew onboarding - project management 
Defra,Core Defra,25/04/2013,Business Rates,Chief Operating Officer DG,D T Z,150413,"2,021,682.65",agree with column k
Defra,Core Defra,26/04/2013,Gas,Chief Operating Officer DG,Corona Energy,8146130,"41,527.00",March 2013 - Gas Bill
Defra,Core Defra,26/04/2013,Gas,Chief Operating Officer DG,Corona Energy,8146116,"31,512.08",March 2013 - Gas Bill
Defra,Core Defra,26/04/2013,Training - Other External,Chief Operating Officer DG,Xancam Consulting Ltd,3381,"35,242.32",Career Coaching Programme - March 2013
Defra,Core Defra,26/04/2013,Consultancy Non-Scheme,Chief Operating Officer DG,Cadence Partnership LLP,DEF1303003,"31,957.20",Commercial management support - February/March 2013
Defra,Core Defra,26/04/2013,Application Services/Minor Enhancements,Chief Operating Officer DG,IBM United Kingdom Ltd,5803130924,"25,673.76",Core Defra Minor Enhancement Requests Framework  2012/13
Defra,Core Defra,26/04/2013,Application Services/Minor Enhancements,Chief Operating Officer DG,IBM United Kingdom Ltd,5803131325,"53,468.17",Core Defra Minor Enhancement Requests  Framework 2012/13 - April 2013
Defra,Core Defra,26/04/2013,Application Services/Minor Enhancements,Chief Operating Officer DG,IBM United Kingdom Ltd,5803131043,"35,718.59",Core Defra Minor Enhancement Requests  Framework 2012/13 - April 2013
Defra,Core Defra,26/04/2013,Work package/WPO Implementation,Chief Operating Officer DG,IBM United Kingdom Ltd,5803130931,"57,853.70",Data Centre Disaster Recovery Guide - April 2013
Defra,Core Defra,26/04/2013,Other Capital UK,Chief Operating Officer DG,Ordnance Survey,91597563,"98,928.00",agree with column k
Defra,Core Defra,30/04/2013,Removal Expenses (Staff),Chief Operating Officer DG,Animal Health and Veterinary Laboratories Agency,5000025307,"199,653.00",Animal Health and Veterinary Laboratories Agency staff transferring into core Defra
Defra,Core Defra,30/04/2013,Civil service Pension Administration,Chief Operating Officer DG,R C P S,RCPS10005,"35,593.27",Provision of Closed Horticulture Research International Pension Payment - March 2013
Defra,Core Defra,30/04/2013,Treasury Solicitors,Chief Operating Officer DG,Treasury Solicitors Department,A1756,"1,614,600.00",Defra legal charge to Treasury Solicitors for advice
Defra,Core Defra,30/04/2013,Treasury Solicitors,Chief Operating Officer DG,Treasury Solicitors Department,A1755,"252,480.00",Defra Legal charge to Treasury Solicitors  for representation 
Defra,Core Defra,30/04/2013,IBM Base Services Control,Chief Operating Officer DG,IBM United Kingdom Ltd,5804130732,"6,364,461.28",Technology refresh - software upgrade - April 2013
Defra,Core Defra,30/04/2013,Staff Restaurants,Chief Operating Officer DG,Eurest,92383583,"28,560.00",Eurest Services maintenance and safety testing for 14 coffee machines across 9 sites for financial year 2013/2014
Defra,Core Defra,30/04/2013,Other Current Payments (Evidence R&D),Chief Operating Officer DG,Centre For Ecology & Hydrology,7060004354,"61,599.00",Ecosystems Interactions Studies - April 2013
Defra,Core Defra,08/04/2013,Recharge of Rent Payments,Chief Operating Officer DG,Food & Environment Research Agency,F0028259,"130,789.63",agree with column k
Defra,Core Defra,08/04/2013,Recharge of Rent Payments,Chief Operating Officer DG,Food & Environment Research Agency,F0026928,"163,827.99",agree with column k
Defra,Core Defra,22/04/2013,OGD Recharge,Policy Delivery DG,IBM United Kingdom Ltd,5803131329,"63,903.49",Software Upgrade - April 2013
Defra,Core Defra,22/04/2013,OGD Recharge,Policy Delivery DG,IBM United Kingdom Ltd,5803131191,"62,404.46",Software Upgrade - April 2013
Defra,Core Defra,02/04/2013,Other Current Payments E,Policy Delivery DG,Cabi Bioscience (Egham),SI5443,"110,500.00","Biocontrol of floating pennywort, crassula and himalayan balsam"
Defra,Core Defra,02/04/2013,Other Current Payments (Evidence R&D),Policy Delivery DG,Environment Agency,1151874,"200,000.00",Project Acumen - GHG emissions from UK landfills 
Defra,Core Defra,02/04/2013,Other Current Payments (Evidence R&D),Policy Delivery DG,C E F A S,8002621,"124,112.00",agree with column k
Defra,Core Defra,02/04/2013,Other Current Payments (Evidence R&D),Policy Delivery DG,Institute Of Occupational Medicine,SLINV100002126,"195,235.00",NanoReg Project Exposure project - April 2013 
Defra,Core Defra,02/04/2013,Other Current Payments E,Policy Delivery DG,Environment Agency,1152167,"134,259.23",agree with column k
Defra,Core Defra,02/04/2013,Consultancy Non-Scheme,Policy Delivery DG,Liberata UK Ltd,ITO182HMCTS13518,"409,288.00",Provision of nitrate vulnerable zones appeal charges
Defra,Core Defra,02/04/2013,Other Current Payments (Evidence R&D),Policy Delivery DG,Centre For Ecology & Hydrology,7060004289,"75,828.00",Restored and Constructed Wetlands Mitigate Agruicultural Pollution - April 2013
Defra,Core Defra,02/04/2013,Other Current Payments (Evidence R&D),Policy Delivery DG,Risk Solutions,1899,"54,000.00",The provision of maintaining and supporting exotic diseases evidence
Defra,Core Defra,02/04/2013,Other Current Payments (Evidence R&D),Policy Delivery DG,Canal & River Trust,90679193,"25,000.00",Canal & River Trust - Project payments
Defra,Core Defra,02/04/2013,Current Subsidies To Public Corporations,Policy Delivery DG,Canal & River Trust,90678843,"9,000,000.00",Canal & River Trust - Grant payment
Defra,Core Defra,02/04/2013,Other Current Payments (Evidence R&D),Policy Delivery DG,Ricardo-A E A Ltd,6151162,"50,995.00",UK National Atmospheric Emissions Inventory - April 2013
Defra,Core Defra,02/04/2013,Evidence Non R&D,Policy Delivery DG,Extrium Ltd,0229DEFRA,"163,423.27",Accoustic Modelling/Geographic Information System
Defra,Core Defra,02/04/2013,Evidence Non R&D,Policy Delivery DG,Extrium Ltd,0227DEFRA,"51,024.22",Provision of Geographic Acoustic Data Management and Analysis 
Defra,Core Defra,02/04/2013,Other Current Payments (Evidence R&D),Policy Delivery DG,Centre For Ecology & Hydrology,ERS-515720-43648,"75,940.00",Operation of the UK Eutrophying & Acidifying Atmospheric Pollutants
Defra,Core Defra,02/04/2013,Other Current Payments (Evidence R&D),Policy Delivery DG,Ensis Ltd,250313,"49,927.00",Air Quality Evidence UK Acid Waters Monitoring Network
Defra,Core Defra,02/04/2013,IBM Base Services Control,Policy Delivery DG,Ricardo-A E A Ltd,6151590,"26,713.00",Air Quality Evidence UK Acid Waters Monitoring Network
Defra,Core Defra,02/04/2013,Other Current Payments (Evidence R&D),Policy Delivery DG,Centre For Ecology & Hydrology,ERS-515961-43650,"138,475.00",Variation Air Quality  - Heavy Metal  March 2013
Defra,Core Defra,02/04/2013,Other Current Payments (Evidence R&D),Policy Delivery DG,Ricardo-A E A Ltd,6151424,"81,692.00","Change Adaptation - Programme of Research Preparedness, Adaptation & Risk - April 2013"
Defra,Core Defra,02/04/2013,Other Current Payments (Evidence R&D),Policy Delivery DG,D S T L,MST005864,"28,870.00",Defence Science and Technology Laboratory - Completion of the Stakeholder Workshop 08/03/13
Defra,Core Defra,02/04/2013,Evidence Non R&D,Policy Delivery DG,Food & Environment Research Agency,F0028057,"1,198,763.00",Plant Health Evidence  Memorandum of Understanding January/February 2013
